{"text_format":"1","workbook":"xlsx","n_sheets":15,"sheets":["Tool","Translations","Comments","choix-multiples","Calculs surface","Facteur solaire","Page_calcul","Coût_Net","Calcul_CoûtBrut_m²","EnergieProduite_kWc_m²","Certificats_Verts","Tableau pour le rapport","Déductions_fiscales","Messages","Révision de versions"],"not_rendered":{"charts":3,"images":9,"macros":1,"external_links":0,"defined_names":68,"comments":7,"pivot_tables":0},"unopened":[],"bounds":{"document_bytes":16777216,"sheet_cells":100000,"rows_first":2000,"rows_last":500,"rows_between":2000,"halvings":0,"cell_chars":16384,"cell_head_chars":4096},"cells_cut":0,"cells_raw":0,"read":"whole","date_system":"1900"}

{"sheet":"Tool","index":0,"n_rows":154,"n_cols":23,"rows_kept":154,"cut":false,"hidden":false,"merged":[[9,2,9,7],[12,2,12,7],[10,2,10,4],[10,5,10,7],[3,3,3,4],[4,4,4,6],[7,2,7,7],[8,2,8,7],[143,22,143,23],[55,2,56,10],[16,5,16,13],[20,3,20,5],[71,2,72,10],[20,7,20,9],[21,21,21,24],[29,6,33,12],[96,7,97,12]]}
[]
[]
[]
[null,null,null,"PV Calc",null,null,null,null,{"$f":"VLOOKUP(\"version\",Translations,LANG,FALSE) &  \": \" & \"16/01/2023\"","v":"Version: 16/01/2023"}]
[null,null,null,null,"Kies uw taal / Choisissez votre langue :",null,null,"FR"]
[null,null,{"$f":"VLOOKUP(\"title_tool\",Translations,LANG,FALSE)","v":"Calcul approximatif de la rentabilité d'une installation photovoltaïque pour la Région de Bruxelles-Capitale "}]
[]
[null,null,{"$f":"VLOOKUP(\"value_situation\",Translations,LANG,FALSE)","v":"- Encodez les données relatives à votre situation dans les cases bleues."}]
[null,null,{"$f":"VLOOKUP(\"var_price\",Translations,LANG,FALSE)","v":"- Encodez des variantes au scénario d'évolution des prix, données facultatives."}]
[null,null,{"$f":"VLOOKUP(\"resu_witt\",Translations,LANG,FALSE)","v":"- Les résultats sont repris dans les cases blanches; les formules qu'elles contiennent peuvent être modifiées."}]
[null,null,"\nPrésentation de l'outil:\nCet outil est une feuille de calcul Excel. Il offre aux utilisateurs la possibilité de se familiariser avec les différents éléments impliqués dans le dimensionnement et la détermination du bilan financier d'un projet photovoltaïque. Il est destiné à clarifier l’importance de cette technologie afin de simplifier et de stimuler les investissements dans la production d’énergie solaire.\n\nLe dispositif est destiné à être utilisé par les particuliers, les gestionnaires techniques, gestionnaires de bâtiments, investisseurs, architectes, développeurs, consultants en ingénierie, gestionnaires de l'énergie, des animateurs ou décideur politique. Plus précisément, l'aide est destinée aux personnes qui disposent de la surface nécessaire pour produire de l'électricité verte.\n\nNéanmoins, ces résultats ne sont qu’une première approximation. Ils ne donnent qu'une indication ou non de poursuivre le projet, en particulier la fourniture d'une étude de faisabilité conformément aux « règles de l'art » à un bureau d'études compétent, et non l'ordre de l'équipement!",null,null,"\nPresentatie van de tool :\nDit hulpmiddel is een Excel-rekenblad. Het biedt een gebruiker de kans om kennis te maken met de verschillende elementen die een rol spelen bij de dimensionering en de bepaling van de financiële balans van een fotovoltaïsch project. Het is bedoeld om het belang van deze technologie duidelijk te maken om de investeringen in de productie van zonne-energie te vereenvoudigen en te stimuleren.\n\nHet hulpmiddel is bestemd voor gebruik door particulieren, technisch verantwoordelijken, beheerders van gebouwen, investeerders, architecten, bouwheren, ingenieurs-consulenten, energieverantwoordelijken, facilitatoren of beleidsmaker. Het hulpmiddel richt zich daarbij meer bepaald tot die personen die over de vereiste oppervlakten beschikken, die voor de opwekking van groene stroom gebruikt kunnen worden.\n\nNiettemin, zijn deze resultaten maar een eerste benadering. Ze geven slechts een aanwijzing voor het wel of niet voortzetten van het project, met name de bestelling van een haalbaarheidsstudie volgens de 'Regels van de Kunst' aan een bevoegd studiebureel, en niet de bestelling van de uitrusting !"]
[null,null,{"$f":"VLOOKUP(\"name_org\",Translations,LANG,FALSE)","v":"Nom de l'établissement :"}]
[]
[]
[]
[null,null,{"$f":"VLOOKUP(\"bep_afm\",Translations,LANG,FALSE)","v":"Dimensionnement de l'installation photovoltaïque"}]
[]
[null,null,{"$f":"VLOOKUP(\"1st_elek\",Translations,LANG,FALSE)","v":"Etape 1 : Déterminer votre consommation électrique"},null,null,null,"CELLULE A REMPLIR POUR QS !!!!!"]
[]
[null,null,{"$f":"VLOOKUP(\"act_sec\",Translations,LANG,FALSE)","v":"Secteur d'activité "}]
[null,null,null,{"$f":"VLOOKUP('choix-multiples'!$F$98,'choix-multiples'!$F$99:$Q$104,5,FALSE)","v":"Nombre de logements ="},null,null,1000,{"$f":"VLOOKUP('choix-multiples'!$F$98,'choix-multiples'!$F$99:$Q$104,10,FALSE)","v":"Logements"}]
[]
[null,null,null,null,{"$f":"VLOOKUP(\"Volgens facturen\",Translations,LANG,FALSE)","v":"Selon factures"},{"$f":"VLOOKUP(\"Schatting\",Translations,LANG,FALSE)","v":"Estimation"}]
[null,null,{"$f":"VLOOKUP(\"Jaarlijks elektriciteitsverbruik van de locatie\",Translations,LANG,FALSE)","v":"Consommation annuelle d'électricité du site "},null,null,{"$f":"VLOOKUP('choix-multiples'!F98,'choix-multiples'!F99:G104,2,FALSE)","v":788000},{"$f":"VLOOKUP(\"kWu/jaar\",Translations,LANG,FALSE)","v":"kWh/an"}]
[]
[null,null,{"$f":"VLOOKUP(\"2de stap : Bepalen van het vermogen van de installatie\",Translations,LANG,FALSE)","v":"Etape 2 : Déterminer la puissance de l'installation"}]
[]
[null,null,{"$f":"VLOOKUP(\"Beschikbare oppervlakte van dak\",Translations,LANG,FALSE)","v":"Surface disponible de toiture"},null,70,"m2"]
[]
[null,null,{"$f":"VLOOKUP(\"Type van montage\",Translations,LANG,FALSE)","v":"Type de montage "},null,null,null,{"$f":"IF('choix-multiples'!G132='choix-multiples'!E136,VLOOKUP(\"warning rug aan rug montage\",Translations,LANG,FALSE),\"\")","v":""}]
[]
[null,null,{"$f":"VLOOKUP(\"Oriëntatie van de panelen\",Translations,LANG,FALSE)","v":"Orientation des panneaux"}]
[]
[null,null,{"$f":"VLOOKUP(\"Hellingshoek van de panelen\",Translations,LANG,FALSE)","v":"Inclinaison des panneaux"}]
[]
[null,null,{"$f":"VLOOKUP(\"Type van technologie\",Translations,LANG,FALSE)","v":"Type de technologie"},null,null,null,null,null,{"$f":"'choix-multiples'!I25","v":15},"%"]
[]
[null,null,{"$f":"VLOOKUP(\"Zonneproductiefactor \",Translations,LANG,FALSE)","v":"Facteur de production solaire "},null,{"$f":"SolarFactorProduct","v":892.4},{"$f":"VLOOKUP(\"kWu/(kWp*jaar)\",Translations,LANG,FALSE)","v":"kWh/(kWc*an)"}]
[null,null,null,null,null,null," "]
[null,null,{"$f":"VLOOKUP(\"Maximaal dak potentiel\",Translations,LANG,FALSE)","v":"Potentiel maximum de la toiture"}]
[null,null,{"$f":"VLOOKUP(\"Maximaal vermogen van de fotovoltaïsche generator\",Translations,LANG,FALSE)","v":"Puissance photovoltaïque maximale "},null,{"$f":"MaximumSurface/EnergieProduite_kWc_m²!F29","v":3.9130000000000003},{"$f":"VLOOKUP(\"kWp\",Translations,LANG,FALSE)","v":"kWc"}]
[null,null,{"$f":"VLOOKUP(\"Maximaal pannelen oppervlakte\",Translations,LANG,FALSE)","v":"Surface maximale de capteur"},null,{"$f":"IF(OR(ISBLANK(Surface),ISTEXT(Surface),Surface<0),0,Surface*FactSurfMax)","v":30.099999999999998},"m²"]
[null,null,{"$f":"VLOOKUP(\"Raming van de geproduceerde hoeveelheid nuttige energie\",Translations,LANG,FALSE)","v":"Estimation de l'énergie utile produite"},null,{"$f":"E41*SolarProductionFactor","v":3491.9612000000002},{"$f":"VLOOKUP(\"kWu/jaar\",Translations,LANG,FALSE)","v":"kWh/an"}]
[]
[null,null,{"$f":"VLOOKUP(\"Gewenste vermogen\",Translations,LANG,FALSE)","v":"Puissance souhaitée"}]
[null,null,{"$f":"VLOOKUP(\"Gewenste vermogen van de fotovoltaïsche generator\",Translations,LANG,FALSE)","v":"Puissance de générateur photovoltaïque souhaitée"},null,10,{"$f":"VLOOKUP(\"kWp\",Translations,LANG,FALSE)","v":"kWc"},{"$f":"IF(Tool!E46>E41,VLOOKUP(\"Te groot vermogen voor de gegeven oppervlakte\",Translations,LANG,FALSE),\"\")","v":"Puissance trop grande pour la surface donnée"}]
[null,null,{"$f":"VLOOKUP(\"Pannelen oppervlakte\",Translations,LANG,FALSE)","v":"Surface capteur"},null,{"$f":"_Cmt_Peak*1000/335*1.6","v":47.761194029850749},"m2"]
[]
[null,null,{"$f":"VLOOKUP(\"Gebruikte gegevens berekiningen\",Translations,LANG,FALSE)","v":"Données utilisées pour les calculs"}]
[null,null,{"$f":"VLOOKUP(\"Generator gebruikt vermogen\",Translations,LANG,FALSE)","v":"Puissance de générateur utilisée"},null,{"$f":"_Cmt_Peak","v":10},{"$f":"VLOOKUP(\"kWp\",Translations,LANG,FALSE)","v":"kWc"}]
[null,null,{"$f":"VLOOKUP(\"Oppervlakte gebruikte panelen\",Translations,LANG,FALSE)","v":"Surface capteur utilisée"},null,{"$f":"E47","v":47.761194029850749},"m²"]
[null,null,{"$f":"VLOOKUP(\"Raming van de geproduceerde hoeveelheid nuttige energie\",Translations,LANG,FALSE)","v":"Estimation de l'énergie utile produite"},null,{"$f":"_Cmt_Peak*SolarProductionFactor","v":8924},{"$f":"VLOOKUP(\"kWu/jaar\",Translations,LANG,FALSE)","v":"kWh/an"},"<< helioscope !!"]
[]
[null,null,null,{"$f":"IF(E52>Page_calcul!J4,VLOOKUP(\"Opgepast, uw theoretisch elektrische productie is hoger dan uw verbruik\",Translations,LANG,FALSE),\"\")","v":""}]
[]
[null,null,{"$f":"VLOOKUP(\"warning_schadow\",Translations,LANG,FALSE)","v":"Ce logiciel ne calcule pas l'impact des ombres sur la production des panneaux. Il est important de vérifier s'il y a, à un ou plusieurs moments de la journée, un ou des obstacles entre le soleil et les panneaux solaires.  10% d'ombrage sur le panneau et toute la puissance électrique s'écroule."}]
[]
[]
[]
[null,null,{"$f":"VLOOKUP(\"Rendabiliteit van uw fotovoltaïsch project  \",Translations,LANG,FALSE)","v":"Rentabilité de votre projet photovoltaïque"}]
[null,null,""]
[null,null,{"$f":"VLOOKUP(\"1ste stap : Berekenen van de winst op uw elektriciteitsrekening\",Translations,LANG,FALSE)","v":"Etape 1 : Calculer le gain sur la facture électrique"}]
[null,null,"",null,null,{"$f":"VLOOKUP(\"Schatting\",Translations,LANG,FALSE)","v":"Estimation"},null,"prix avril 2023"]
[null,null,{"$f":"VLOOKUP(\"Tarief elektriciteit (met BTW)\",Translations,LANG,FALSE)","v":"Tarif de l'électricité (avec TVA)"},"HTVA",{"$f":"I67","v":0.36373584905660378},0.2,{"$f":"VLOOKUP(\"€/kWu\",Translations,LANG,FALSE)","v":"€/kWh"},"https://app.powerbi.com/view?r=eyJrIjoiMjBkYTJiOTItMzczMy00MjY3LTg0YTUtY2Q3YmI5YWQ5ODk0IiwidCI6ImMwYjg2YzA3LWRhZGUtNDkyMC1hYzEzLWIwZWNhZDNiMmM5NSIsImMiOjh9"]
[null,null,"",null,null,{"$f":"VLOOKUP(\"Bij gebrek aan informatie\",Translations,LANG,FALSE)","v":"Par défaut"}]
[null,null,{"$f":"VLOOKUP(\"Tarief van afkoop van de elektriciteit\",Translations,LANG,FALSE)","v":"Tarif de rachat de l'électricité "},"HTVA",0.04,{"$f":"'choix-multiples'!H49","v":0.05},{"$f":"VLOOKUP(\"€/kWu\",Translations,LANG,FALSE)","v":"€/kWh"},"Avril 2023","Prix de l'électricité","Prix du Gaz"]
[null,null,"",null,null,{"$f":"VLOOKUP(\"Bij gebrek aan informatie\",Translations,LANG,FALSE)","v":"Par défaut"},null,"Résidentiel",{"$f":"0.38556/1.06","v":0.36373584905660378},{"$f":"0.08206/1.06","v":7.7415094339622625E-2}]
[null,null,{"$f":"VLOOKUP(\"Stijging van de elektriciteitsprijs (zonder inflatie)\",Translations,LANG,FALSE)","v":"Augmentation du prix de l'électricité (hors inflation)"},null,null,{"$f":"'choix-multiples'!H51","v":5.8700000000000002E-2},{"$f":"VLOOKUP(\"/jaar\",Translations,LANG,FALSE)","v":"/an"},"Tertiaire",0.3049,8.1699999999999995E-2]
[null,null,""]
[null,null,{"$f":"VLOOKUP(\"Niveau van auto-consumptie\",Translations,LANG,FALSE)","v":"Taux d'auto-consommation "},null,0.35]
[]
[null,null,{"$f":"VLOOKUP(\"auto-conso\",Translations,LANG,FALSE)","v":"Il est très important d'évaluer correctement sa propre consommation. L'électricité consommée en même temps que sa production sur le même compteur d' électricité apporte une économie plus grande parce que la charge réelle du réseau électrique diminue. La surproduction d' électricité est achetée à un tarif, inférieur au tarif d'achat, comme contractuellement convenu avec le fournisseur. Pour les installations inférieures à 5 kWc, le mécanisme de compensation (le compteur \"tourne à l'envers\") est toujours d'application jusqu'en 2021, mais cela n'est pas pris en compte dans l'outil."}]
[]
[null,null,""]
[null,null,{"$f":"VLOOKUP(\"Winst op de aankoopfactuur van elektriciteit         \",Translations,LANG,FALSE)","v":"Gain sur la facture d'achat de l'électricité"},{"$f":"I76 & \" - \" &I77","v":"44197 - Avril 2023"},{"$f":"ROUND((Page_calcul!H22*J76),1) & \" - \" & ROUND((Page_calcul!H22*J77),1)","v":"674,7 - 1136,9"},{"$f":"VLOOKUP(\"€/jaar\",Translations,LANG,FALSE)","v":"€/an"},null,null,null,"Prix de l'élecricité"]
[null,null,"",null,{"$f":"Page_calcul!H22*Tool!J76","v":674.6543999999999},{"$f":"Page_calcul!H22*Tool!J77","v":1136.9175999999998},null,null,"2021-01-01",0.216,"€ HTVA/kWh"]
[null,null,{"$f":"VLOOKUP(\"Winst op de verkoop van elektriciteit         \",Translations,LANG,FALSE)","v":"Gain issu de la vente d'électricité"},null,{"$f":"Page_calcul!Q22","v":232.02400000000003},{"$f":"VLOOKUP(\"€/jaar\",Translations,LANG,FALSE)","v":"€/an"},null,null,"Avril 2023",0.36399999999999999,"€ HTVA/kWh"]
[null,null,""]
[null,null,"",null,null,null,null,"https://www.brugel.brussels/themes/energies-renouvelables-11/mecanisme-des-certificats-verts-35"]
[null,null,{"$f":"VLOOKUP(\"2de stap : Berekenen van de inkomsten door de Groenestroomcertificaten (GSC) \",Translations,LANG,FALSE)","v":"Etape 2 : Calculer le gain sur les certificats verts (CV)"}]
[null,null,""]
[null,null,{"$f":"VLOOKUP(\"CO2 emissie coëfficiënt van de referentie installatie\",Translations,LANG,FALSE)","v":"Coefficient d'émission en CO2 de l'installation de référence"},null,{"$f":"Certificats_Verts!O4","v":394.5},{"$f":"VLOOKUP(\"kg CO2/Mwu\",Translations,LANG,FALSE)","v":"kg CO2/MWh"}]
[null,null,"",null,null,""]
[null,null,{"$f":"VLOOKUP(\"CO2 besparing van de fotovoltaïsche installatie\",Translations,LANG,FALSE)","v":"Economie en CO2 de l'installation PV"},null,{"$f":"((Page_calcul!G22/1000)*'choix-multiples'!G92)","v":3520.5179999999996},{"$f":"VLOOKUP(\"kg CO2/jaar\",Translations,LANG,FALSE)","v":"kg CO2/an"}]
[null,null,"",null,null,""]
[null,null,{"$f":"VLOOKUP(\"Uitgespaarde hoeveelheid primaire energie\",Translations,LANG,FALSE)","v":"Energie primaire économisée"},null,{"$f":"E52/0.55","v":16225.454545454544},{"$f":"VLOOKUP(\"kWu/jaar\",Translations,LANG,FALSE)","v":"kWh/an"}]
[null,null,""]
[null,null,"Taux d'octroi CV",null,{"$f":"IF(_cmt_peak_used<=5,1.9,IF(_cmt_peak_used<=36,1.8,IF(_cmt_peak_used<=100,1.7,IF(_cmt_peak_used<=250,1.4,1.2))))","v":1.8},"CV/MWh (à partir de janvier 2023)"]
[null,null,{"$f":"VLOOKUP(\"Aantal toegekende GSC  \",Translations,LANG,FALSE)","v":"Nombre annuel de certificats verts attribué"},null,{"$f":"E88*_Cmt_Estimat/1000","v":16.063200000000002}]
[null,null,""]
[null,null,{"$f":"VLOOKUP(\"Prijs van de GSC  \",Translations,LANG,FALSE)","v":"Valeur d'un Certificat Vert (sur le marché) "},null,85,"€",{"$f":"VLOOKUP(\"De gegarandeerde aankoop prijs van ELIA is 65€/GSC\",Translations,LANG,FALSE)","v":"Le prix garanti par ELIA est de 65€/CV"}]
[null,null,""]
[null,null,{"$f":"VLOOKUP(\"Inkomsten door de verkoop van GSC     \",Translations,LANG,FALSE)","v":"Gain issu de la vente des certificats verts"},null,{"$f":"E89*E91","v":1365.3720000000001},{"$f":"VLOOKUP(\"€/jaar\",Translations,LANG,FALSE)","v":"€/an"}]
[null,null,""]
[null,null,{"$f":"VLOOKUP(\"3de stap : Berekenen van de uitgave voor het onderhoud (zonder de verzekering)\",Translations,LANG,FALSE)","v":"Etape 3 : Calculer les dépenses en entretien (sans assurance)"}]
[null,null,"",null,null,{"$f":"VLOOKUP(\"Schatting\",Translations,LANG,FALSE)","v":"Estimation"}]
[null,null,{"$f":"VLOOKUP(\"Jaarlijkse kosten van het onderhoud\",Translations,LANG,FALSE)","v":"Coût annuel de l'entretien "},null,null,{"$f":"Calcul_CoûtBrut_m²!I8","v":225},{"$f":"VLOOKUP(\"€/jaar\",Translations,LANG,FALSE)","v":"€/an"},{"$f":"VLOOKUP(\"Let op: er wordt geen rekening meer gehouden met verzekeringskosten en schoonmaakkosten\",Translations,LANG,FALSE)","v":"Attention : les coûts de l'assurance et de nettoyage ne sont plus pris en compte (trop variables)"}]
[null,null,"",null,null,null,""]
[null,null,{"$f":"VLOOKUP(\"4de stap : Raming van de investering \",Translations,LANG,FALSE)","v":"Etape 4 : Estimer le montant d'investissement"}]
[null,null,""]
[null,null,{"$f":"VLOOKUP(\"BTW \",Translations,LANG,FALSE)","v":"TVA "},null,null,null,null,"!! If above  30kVA, add extra 10 k€ (armoire de découplage) "]
[null,null,"",null,null,null,null,"https://www.sibelga.be/fr/raccordements-compteurs/energie-renouvelable/exigences-techniques",null,null,null,null,null,null,null,null,null,null,null,null,null,"28 kWc","X:\\Projecten extern\\E 07340 Facilitateur 2ème ligne 2022\\M020 - Concept\\M02020 - Guidance premium\\45427_Résidence Stiénon_Laurance LEMAIRE\\M02010 - Info IN\\DEVIS EXU_N°00146 - L&S IMMOTECH - Av. J-B Depaire 101 V1.pdf"]
[null,null,"",null,{"$f":"VLOOKUP(\"Prijsofferte van installateur\",Translations,LANG,FALSE)","v":"Devis installateur"},{"$f":"VLOOKUP(\"Schatting\",Translations,LANG,FALSE)","v":"Estimation"},null,"!!!! 25% moins cher sur base d'un devis de Avril 2022"]
[null,null,{"$f":"VLOOKUP(\"Raming van de netto financiële investering\",Translations,LANG,FALSE)","v":"Estimation du coût financier brut "},null,{"$f":"_Cmt_CoutEst","v":15245.98},{"$f":"Calcul_CoûtBrut_m²!R39","v":15245.98},{"$f":"IF('choix-multiples'!H111>1,VLOOKUP(\"€ (incl. BTW)\",Translations,LANG,FALSE),VLOOKUP(\"€ (excl. BTW)\",Translations,LANG,FALSE))","v":"€ (TVAC)"}]
[null,null,""]
[null,null,{"$f":"VLOOKUP(\"Andere premies (gemeente, subsidies, ...)\",Translations,LANG,FALSE)","v":"Autres primes (communales, subsides...)"},null,null,"€"]
[null,null,""]
[null,null,{"$f":"VLOOKUP(\"Investeringsaftrek\",Translations,LANG,FALSE)","v":"Déductions fiscales (entreprises) "},null,{"$f":"'choix-multiples'!V24","v":0},"€"]
[null,null,""]
[null,null,{"$f":"VLOOKUP(\"Installatiekostprijs per Wpiek\",Translations,LANG,FALSE)","v":"Prix de l'installation par Wc"},null,{"$f":"IF(OR(ISBLANK(E104),ISTEXT(E104),E104<0),F104/(IF(E46>0,E46,E41)*1000),E104/(IF(E46>0,E46,E41)*1000))","v":1.5245979999999999},{"$f":"IF('choix-multiples'!H111>1,VLOOKUP(\"€/Wp (incl. BTW)\",Translations,LANG,FALSE),VLOOKUP(\"€/Wp (excl. BTW)\",Translations,LANG,FALSE))","v":"€/Wc (TVAC)"}]
[null,null,""]
[null,null,{"$f":"VLOOKUP(\"Raming van de netto financiële investering\",Translations,LANG,FALSE)","v":"Estimation du coût financier brut "},null,{"$f":"(IF(Tool!E104<1,Tool!F104,Tool!E104))-E108-E106","v":15245.98},{"$f":"IF('choix-multiples'!H111>1,VLOOKUP(\"€ (incl. BTW)\",Translations,LANG,FALSE),VLOOKUP(\"€ (excl. BTW)\",Translations,LANG,FALSE))","v":"€ (TVAC)"}]
[null,null,""]
[null,null,{"$f":"VLOOKUP(\"5de stap : Schatting van de rendabiliteit van het project \",Translations,LANG,FALSE)","v":"Etape 5 : Estimer la rentabilité du projet"}]
[null,null,"",null,null,{"$f":"VLOOKUP(\"Bij gebrek aan informatie\",Translations,LANG,FALSE)","v":"Par défaut"}]
[null,null,{"$f":"VLOOKUP(\"Belastingtarief\",Translations,LANG,FALSE)","v":"Taux d''imposition "},null,null,{"$f":"IF('choix-multiples'!F98>1,0,0.3399)","v":0}]
[null,null,"",null,null,{"$f":"VLOOKUP(\"Bij gebrek aan informatie\",Translations,LANG,FALSE)","v":"Par défaut"}]
[null,null,{"$f":"VLOOKUP(\"Intrestvoet (zonder inflatie)\",Translations,LANG,FALSE)","v":"Taux d'actualisation (hors inflation)"},null,null,{"$f":"IF('choix-multiples'!F98>1,0,0.055)","v":0}]
[null,null,""]
[null,null,{"$f":"VLOOKUP(\"Jaarlijkse netto-opbrengst van het fotovoltaïsche project \",Translations,LANG,FALSE)","v":"Gain annuel du projet photovoltaïque "},null,{"$f":"ROUND((E76+E77+E93-Page_calcul!M23-Page_calcul!N23),1) & \" - \" & ROUND((F76+E77+E93-Page_calcul!M23-Page_calcul!N23),1)","v":"2047,1 - 2509,3"},{"$f":"VLOOKUP(\"€/jaar\",Translations,LANG,FALSE)","v":"€/an"}]
[null,null,"",null,{"$f":"E76+E77+E93-Page_calcul!M23-Page_calcul!N23","v":2047.0504000000001},{"$f":"F76+E77+E93-Page_calcul!M23-Page_calcul!N23","v":2509.3136}]
[null,null,{"$f":"VLOOKUP(\"Pay-back periode van het project \",Translations,LANG,FALSE)","v":"Temps de Retour Simple "},null,{"$f":"ROUND((E112/E121),1) & \" - \" & ROUND((E112/F121),1)","v":"7,4 - 6,1"},{"$f":"VLOOKUP(\"jaren\",Translations,LANG,FALSE)","v":"ans"}]
[null,null,""]
[null,null,{"$f":"VLOOKUP(\"Interne intrestvoet van het project (10 jaren)\",Translations,LANG,FALSE)","v":"Taux de rentabilité interne après 10 ans"},null,{"$f":"IFERROR(Page_calcul!V5,0)","v":0.140034742412394}]
[null,null,{"$f":"VLOOKUP(\"                                                  (20 jaren)\",Translations,LANG,FALSE)","v":"                                                20 ans"},null,{"$f":"IFERROR(Page_calcul!V6,0)","v":0.1785735948165561}]
[null,null,""]
[null,null,{"$f":"VLOOKUP(\"Netto-actuele waarde van de winsten (10 jaren)\",Translations,LANG,FALSE)","v":"Valeur actualisée nette des gains après 10 ans"},null,{"$f":"IFERROR(Page_calcul!AA31,0)","v":14698.504377835448},"€"]
[null,null,{"$f":"VLOOKUP(\"                                                      (20 jaren)\",Translations,LANG,FALSE)","v":"                                                          20 ans"},null,{"$f":"IFERROR(Page_calcul!AA41,0)","v":40798.637118118393},"€"]
[null,null,""]
[null,null,{"$f":"VLOOKUP(\"Dynamische pay-back periode\",Translations,LANG,FALSE)","v":"Temps de retour dynamique"},null,{"$f":"IFERROR(Page_calcul!V4,0)","v":5.4010777949809894},{"$f":"VLOOKUP(\"jaren\",Translations,LANG,FALSE)","v":"ans"}]
[]
[]
[]
[]
[]
[]
[]
[]
[]
[]
[]
[]
[]
[]
[]
[]
[]
[]
[]
[]
[]
[]
[]
[null,null,""]

{"sheet":"Translations","index":1,"n_rows":276,"n_cols":15,"rows_kept":276,"cut":false,"hidden":true,"merged":[]}
["Copy paste","Key","NL","FR","EN","DE","Traduction utilisé dans tool",null,null,null,null,null,null,"Indice lang traduction",{"$f":"MATCH(Tool!H5,Translations!$C$1:$AA$1,0)+1","v":3}]
[null,"version","Versie","Version",null,null,{"$f":"VLOOKUP(B2,Translations,LANG,FALSE)","v":"Version"}]
[{"$f":"\"#VLOOKUP(\" & \"\"\"\" & B3 & \"\"\"\" & \";Translations;LANG;FALSE)\"","v":"#VLOOKUP(\"title_tool\";Translations;LANG;FALSE)"},"title_tool","Benaderende studie van de rendabiliteit van een fotovoltaïsche installatie in het Brussels Hoofdstedelijk Gewest","Calcul approximatif de la rentabilité d'une installation photovoltaïque pour la Région de Bruxelles-Capitale ","Approximative study",null,"Calcul approximatif de la rentabilité d'une installation photovoltaïque pour la Région de Bruxelles-Capitale "]
[{"$f":"\"#VLOOKUP(\" & \"\"\"\" & B4 & \"\"\"\" & \";Translations;LANG;FALSE)\"","v":"#VLOOKUP(\"value_situation\";Translations;LANG;FALSE)"},"value_situation","- Gelieve de waarde aangaande uw situatie toe te voegen in de blauwe cel.","- Encodez les données relatives à votre situation dans les cases bleues.",null,null,"- Encodez les données relatives à votre situation dans les cases bleues."]
["#VLOOKUP(\"var_price\";Translations;LANG;FALSE)","var_price","- Gelieve uw varianten van de prijsontwikkeling en facultatieve gegevens toe te voegen.","- Encodez des variantes au scénario d'évolution des prix, données facultatives.",null,null,"- Encodez des variantes au scénario d'évolution des prix, données facultatives."]
["#VLOOKUP(\"resu_witt\";Translations;LANG;FALSE)","resu_witt","- De resultaten worden in de witte cellen opgenomen, de onderliggende formules kunnen gewijzigd worden.","- Les résultats sont repris dans les cases blanches; les formules qu'elles contiennent peuvent être modifiées.",null,null,"- Les résultats sont repris dans les cases blanches; les formules qu'elles contiennent peuvent être modifiées."]
["#VLOOKUP(\"name_org\";Translations;LANG;FALSE)","name_org","Benaming van de instelling :","Nom de l'établissement :",null,null,"Nom de l'établissement :"]
["#VLOOKUP(\"bep_afm\";Translations;LANG;FALSE)","bep_afm","Bepaling van de afmetingen van de fotovoltaïsche installatie","Dimensionnement de l'installation photovoltaïque",null,null,"Dimensionnement de l'installation photovoltaïque"]
["#VLOOKUP(\"1st_elek\";Translations;LANG;FALSE)","1st_elek","1ste stap : Bepaling van uw elektriciteitsverbruik","Etape 1 : Déterminer votre consommation électrique",null,null,"Etape 1 : Déterminer votre consommation électrique"]
["#VLOOKUP(\"act_sec\";Translations;LANG;FALSE)","act_sec","Activiteitensector","Secteur d'activité ",null,null,"Secteur d'activité "]
[{"$f":"\"#VLOOKUP(\" & \"\"\"\" & B11 & \"\"\"\" & \";Translations;LANG;FALSE)\"","v":"#VLOOKUP(\"Jaarlijks elektriciteitsverbruik van de locatie\";Translations;LANG;FALSE)"},{"$f":"C11","v":"Jaarlijks elektriciteitsverbruik van de locatie"},"Jaarlijks elektriciteitsverbruik van de locatie","Consommation annuelle d'électricité du site ",null,null,"Consommation annuelle d'électricité du site "]
["#VLOOKUP(\"2de stap : Bepalen van het vermogen van de installatie\";Translations;LANG;FALSE)",{"$f":"C12","v":"2de stap : Bepalen van het vermogen van de installatie"},"2de stap : Bepalen van het vermogen van de installatie","Etape 2 : Déterminer la puissance de l'installation",null,null,"Etape 2 : Déterminer la puissance de l'installation"]
["#VLOOKUP(\"Beschikbare oppervlakte van dak\";Translations;LANG;FALSE)","Beschikbare oppervlakte van dak","Beschikbare oppervlakte van dak","Surface disponible de toiture",null,null,"Surface disponible de toiture"]
["#VLOOKUP(\"Type van montage\";Translations;LANG;FALSE)","Type van montage","Type van montage","Type de montage ",null,null,"Type de montage "]
["#VLOOKUP(\"Oost-West orientatie voor plate dak\";Translations;LANG;FALSE)","Oost-West orientatie voor plate dak","Oost-West orientatie voor plate dak","Orientation Est-Ouest en toiture plate ",null,null,"Orientation Est-Ouest en toiture plate "]
["#VLOOKUP(\"Oriëntatie van de panelen\";Translations;LANG;FALSE)","Oriëntatie van de panelen","Oriëntatie van de panelen","Orientation des panneaux",null,null,"Orientation des panneaux"]
["#VLOOKUP(\"Deze orientatie maakt het mogelijk om het te exploiteren dakoppervlak te maximaliseren, de pannelen worden achterwaarts geplaast en helderen bij 10° (zie afbeelding hieronder)\";Translations;LANG;FALSE)","Deze orientatie maakt het mogelijk om het te exploiteren dakoppervlak te maximaliseren, de pannelen worden achterwaarts geplaast en helderen bij 10° (zie afbeelding hieronder)","Deze orientatie maakt het mogelijk om het te exploiteren dakoppervlak te maximaliseren, de pannelen worden achterwaarts geplaast en helderen bij 10° (zie afbeelding hieronder)","Cette orientation permet de maximiser la surface de toiture exploitable, les capteurs sont placés dos à dos et inclinés à 10° (voir image ci-dessous)",null,null,"Cette orientation permet de maximiser la surface de toiture exploitable, les capteurs sont placés dos à dos et inclinés à 10° (voir image ci-dessous)"]
["#VLOOKUP(\"Hellingshoek van de panelen\";Translations;LANG;FALSE)","Hellingshoek van de panelen","Hellingshoek van de panelen","Inclinaison des panneaux",null,null,"Inclinaison des panneaux"]
["#VLOOKUP(\"Installatiekostprijs per Wpiek\";Translations;LANG;FALSE)","Installatiekostprijs per Wpiek","Installatiekostprijs per Wpiek","Prix de l'installation par Wc",null,null,"Prix de l'installation par Wc"]
["#VLOOKUP(\"Type van technologie\";Translations;LANG;FALSE)","Type van technologie","Type van technologie","Type de technologie",null,null,"Type de technologie"]
["#VLOOKUP(\"Pannelen oppervlakte (m²)\";Translations;LANG;FALSE)","Pannelen oppervlakte (m²)","Pannelen oppervlakte (m²)","Surface de capteur (m²)",null,null,"Surface de capteur (m²)"]
["#VLOOKUP(\"Zonneproductiefactor \";Translations;LANG;FALSE)","Zonneproductiefactor ","Zonneproductiefactor ","Facteur de production solaire ",null,null,"Facteur de production solaire "]
["#VLOOKUP(\"Maximaal dak potentiel\";Translations;LANG;FALSE)","Maximaal dak potentiel","Maximaal dak potentiel","Potentiel maximum de la toiture",null,null,"Potentiel maximum de la toiture"]
["#VLOOKUP(\"Maximaal vermogen van de fotovoltaïsche generator\";Translations;LANG;FALSE)","Maximaal vermogen van de fotovoltaïsche generator","Maximaal vermogen van de fotovoltaïsche generator","Puissance photovoltaïque maximale ",null,null,"Puissance photovoltaïque maximale "]
["#VLOOKUP(\"Maximaal pannelen oppervlakte\";Translations;LANG;FALSE)","Maximaal pannelen oppervlakte","Maximaal pannelen oppervlakte","Surface maximale de capteur",null,null,"Surface maximale de capteur"]
["#VLOOKUP(\"Gewenste vermogen van de fotovoltaïsche generator\";Translations;LANG;FALSE)","Gewenste vermogen van de fotovoltaïsche generator","Gewenste vermogen van de fotovoltaïsche generator","Puissance de générateur photovoltaïque souhaitée",null,null,"Puissance de générateur photovoltaïque souhaitée"]
["#VLOOKUP(\"Gewenste vermogen\";Translations;LANG;FALSE)","Gewenste vermogen","Gewenste vermogen","Puissance souhaitée",null,null,"Puissance souhaitée"]
["#VLOOKUP(\"Pannelen oppervlakte\";Translations;LANG;FALSE)","Pannelen oppervlakte","Pannelen oppervlakte","Surface capteur",null,null,"Surface capteur"]
["#VLOOKUP(\"Fotovoltaïsche generator vermogen (kWp)\";Translations;LANG;FALSE)","Fotovoltaïsche generator vermogen (kWp)","Fotovoltaïsche generator vermogen (kWp)","Puissance crête (kWc)",null,null,"Puissance crête (kWc)"]
["#VLOOKUP(\"Raming van de geproduceerde hoeveelheid nuttige energie\";Translations;LANG;FALSE)","Raming van de geproduceerde hoeveelheid nuttige energie","Raming van de geproduceerde hoeveelheid nuttige energie","Estimation de l'énergie utile produite",null,null,"Estimation de l'énergie utile produite"]
["#VLOOKUP(\"kWu/(kWp*jaar)\";Translations;LANG;FALSE)","kWu/(kWp*jaar)","kWu/(kWp*jaar)","kWh/(kWc*an)",null,null,"kWh/(kWc*an)"]
["#VLOOKUP(\"kWp\";Translations;LANG;FALSE)","kWp","kWp","kWc",null,null,"kWc"]
["#VLOOKUP(\"kWu/jaar\";Translations;LANG;FALSE)","kWu/jaar","kWu/jaar","kWh/an",null,null,"kWh/an"]
["#VLOOKUP(\"mont_held\";Translations;LANG;FALSE)","mont_held","Bovenop een hellend dak","En surimposition sur une toiture inclinée",null,null,"En surimposition sur une toiture inclinée"]
["#VLOOKUP(\"Plat dak\";Translations;LANG;FALSE)",{"$f":"C35","v":"Plat dak"},"Plat dak","Toiture plate",null,null,"Toiture plate"]
["#vlookup(\"plat dak oost west\";translations;lang;false)","plat dak oost west","Plat dak rug-aan-rug opstelling Oost-West 10","Toiture plate montage dos-à-dos Est-Ouest 10°",null,null,"Toiture plate montage dos-à-dos Est-Ouest 10°"]
["#VLOOKUP(\"Op de grond\";Translations;LANG;FALSE)",{"$f":"C37","v":"Op de grond"},"Op de grond","Au sol",null,null,"Au sol"]
["#VLOOKUP(\"Geïntegreerd in een hellend dak\";Translations;LANG;FALSE)","Geïntegreerd in een hellend dak","Geïntegreerd in een hellend dak","En intégré dans une toiture inclinée",null,null,"En intégré dans une toiture inclinée"]
["#VLOOKUP(\"Andere\";Translations;LANG;FALSE)","Andere","Andere","Autre",null,null,"Autre"]
["#VLOOKUP(\"Tertiaire sector\";Translations;LANG;FALSE)","Tertiaire sector","Tertiaire sector","Secteur tertiaire",null,null,"Secteur tertiaire"]
["#VLOOKUP(\"Collectieve huisvesting\";Translations;LANG;FALSE)","Collectieve huisvesting","Collectieve huisvesting","Logement collectif",null,null,"Logement collectif"]
["#VLOOKUP(\"Huis\";Translations;LANG;FALSE)","Huis","Huis","Maison individuelle",null,null,"Maison individuelle"]
["#VLOOKUP(\"Andere\";Translations;LANG;FALSE)","Andere","Andere","Autre",null,null,"Autre"]
["#VLOOKUP(\"BTW-plichtig of vrijgesteld van BTW\";Translations;LANG;FALSE)","BTW-plichtig of vrijgesteld van BTW","BTW-plichtig of vrijgesteld van BTW","Assujetti ou exempté de TVA ",null,null,"Assujetti ou exempté de TVA "]
["#VLOOKUP(\"BTW-tarief van 6%\";Translations;LANG;FALSE)","BTW-tarief van 6%","BTW-tarief van 6%","TVA à 6%",null,null,"TVA à 6%"]
["#VLOOKUP(\"BTW-tarief van 21%\";Translations;LANG;FALSE)","BTW-tarief van 21%","BTW-tarief van 21%","TVA à 21%",null,null,"TVA à 21%"]
["#VLOOKUP(\"Ja\";Translations;LANG;FALSE)","Ja","Ja","Oui",null,null,"Oui"]
["#VLOOKUP(\"Nee\";Translations;LANG;FALSE)","Nee","Nee","Non",null,null,"Non"]
["#VLOOKUP(\"Categorie basispremie\";Translations;LANG;FALSE)","Categorie basispremie","Categorie basispremie","Catégorie de base",null,null,"Catégorie de base"]
["#VLOOKUP(\"Categorie gemiddeld inkomen\";Translations;LANG;FALSE)","Categorie gemiddeld inkomen","Categorie gemiddeld inkomen","Catégorie revenus moyens",null,null,"Catégorie revenus moyens"]
["#VLOOKUP(\"Categorie laag inkomen\";Translations;LANG;FALSE)","Categorie laag inkomen","Categorie laag inkomen","Catégorie faibles revenus",null,null,"Catégorie faibles revenus"]
["#VLOOKUP(\"Polykristallijn (silicium)\";Translations;LANG;FALSE)","Polykristallijn (silicium)","Polykristallijn (silicium)","Polycristallin",null,null,"Polycristallin"]
["#VLOOKUP(\"Monokristallijn (silicium)\";Translations;LANG;FALSE)","Monokristallijn (silicium)","Monokristallijn (silicium)","Monocristallin",null,null,"Monocristallin"]
["#VLOOKUP(\"Monokristallijn (silicium) hoog rendement\";Translations;LANG;FALSE)","Monokristallijn (silicium) hoog rendement","Monokristallijn (silicium) hoog rendement","Monocristallin haute performance",null,null,"Monocristallin haute performance"]
["#VLOOKUP(\"Amorf (silicium)\";Translations;LANG;FALSE)","Amorf (silicium)","Amorf (silicium)","Amorphe",null,null,"Amorphe"]
["#VLOOKUP(\"CdTe\";Translations;LANG;FALSE)","CdTe","CdTe","CdTe",null,null,"CdTe"]
["#VLOOKUP(\"CI(G)S\";Translations;LANG;FALSE)","CI(G)S","CI(G)S","CI(G)S",null,null,"CI(G)S"]
["#VLOOKUP(\"Weet niet\";Translations;LANG;FALSE)","Weet niet","Weet niet","Par défaut",null,null,"Par défaut"]
["#VLOOKUP(\"Richting\";Translations;LANG;FALSE)","Richting","Richting","Orientation",null,null,"Orientation"]
["#VLOOKUP(\"Oosten\";Translations;LANG;FALSE)","Oosten","Oosten","Est",null,null,"Est"]
["#VLOOKUP(\"Zuidoosten\";Translations;LANG;FALSE)","Zuidoosten","Zuidoosten","Sud-est",null,null,"Sud-est"]
["#VLOOKUP(\"Zuiden\";Translations;LANG;FALSE)","Zuiden","Zuiden","Sud",null,null,"Sud"]
["#VLOOKUP(\"Zuidwesten\";Translations;LANG;FALSE)","Zuidwesten","Zuidwesten","Sud-ouest",null,null,"Sud-ouest"]
["#VLOOKUP(\"Westen\";Translations;LANG;FALSE)","Westen","Westen","Ouest",null,null,"Ouest"]
["#VLOOKUP(\"Roterend fotovoltaïsch systeem\";Translations;LANG;FALSE)","Roterend fotovoltaïsch systeem","Roterend fotovoltaïsch systeem","Système rotatif traceur",null,null,"Système rotatif traceur"]
["#VLOOKUP(\"Oost-West\";Translations;LANG;FALSE)","Oost-West","Oost-West","Est-Ouest",null,null,"Est-Ouest"]
["#VLOOKUP(\"Vloeroppervlakte =\";Translations;LANG;FALSE)","Vloeroppervlakte =","Vloeroppervlakte =","Surface de planchers =",null,null,{"$f":"VLOOKUP(B67,Translations,LANG,FALSE)","v":"Surface de planchers ="}]
["#VLOOKUP(\"Aantal woningen =\";Translations;LANG;FALSE)","Aantal woningen =","Aantal woningen =","Nombre de logements =",null,null,"Nombre de logements ="]
["#VLOOKUP(\"Woningen\";Translations;LANG;FALSE)","Woningen","Woningen","Logements",null,null,"Logements"]
["#VLOOKUP(\"2de stap : Bepalen van het vermogen van de installatie\";Translations;LANG;FALSE)",{"$f":"C12","v":"2de stap : Bepalen van het vermogen van de installatie"},"Bepalen van het vermogen van de installatie","Déterminer la puissance de l'installation",null,null,"Etape 2 : Déterminer la puissance de l'installation"]
["#VLOOKUP(\"Volgens facturen\";Translations;LANG;FALSE)","Volgens facturen","Volgens facturen","Selon factures",null,null,"Selon factures"]
["#VLOOKUP(\"Schatting\";Translations;LANG;FALSE)","Schatting","Schatting","Estimation",null,null,"Estimation"]
["#VLOOKUP(\"Oost-West orientatie : Maximaal vermogen\";Translations;LANG;FALSE)",{"$f":"C73","v":"Oost-West orientatie : Maximaal vermogen"},"Oost-West orientatie : Maximaal vermogen","Orientation Est-Ouest : Maximum de puissance installée",null,null,"Orientation Est-Ouest : Maximum de puissance installée"]
["#VLOOKUP(\"Opgepast, uw theoretisch elektrische productie is hoger dan uw verbruik\";Translations;LANG;FALSE)","Opgepast, uw theoretisch elektrische productie is hoger dan uw verbruik","Opgepast, uw theoretisch elektrische productie is hoger dan uw verbruik","Attention, votre production électrique théorique dépasse votre consommation électrique",null,null,"Attention, votre production électrique théorique dépasse votre consommation électrique"]
["#VLOOKUP(\"Oost-west opstelling\";Translations;LANG;FALSE)","Oost-west opstelling","Oost-west opstelling","Orientation Est-Ouest",null,null,"Orientation Est-Ouest"]
["#VLOOKUP(\"Aan te raden (plat dak)\";Translations;LANG;FALSE)","Aan te raden (plat dak)","Aan te raden (plat dak)","Surface de toiture plate conseillée",null,null,"Surface de toiture plate conseillée"]
["#VLOOKUP(\"Te groot vermogen voor de gegeven oppervlakte\";Translations;LANG;FALSE)","Te groot vermogen voor de gegeven oppervlakte","Te groot vermogen voor de gegeven oppervlakte","Puissance trop grande pour la surface donnée",null,null,"Puissance trop grande pour la surface donnée"]
["#VLOOKUP(\"warning_schadow\";Translations;LANG;FALSE)","warning_schadow","Dit programma houdt geen rekening met eventueel op de panelen geworpen schaduwen. Het is dan ook belangrijk om na te gaan of er op één of meerdere momenten in de loop van de dag niet één of meerdere obstakels zijn, die de inval van de zonnestralen op de zonnepanelen hinderen. Een schaduwpercentage van 10 % op een paneel is namelijk al voldoende om het volledige elektriciteit producerende vermogen ervan aanzienlijk te beperken!","Ce logiciel ne calcule pas l'impact des ombres sur la production des panneaux. Il est important de vérifier s'il y a, à un ou plusieurs moments de la journée, un ou des obstacles entre le soleil et les panneaux solaires.  10% d'ombrage sur le panneau et toute la puissance électrique s'écroule.",null,null,"Ce logiciel ne calcule pas l'impact des ombres sur la production des panneaux. Il est important de vérifier s'il y a, à un ou plusieurs moments de la journée, un ou des obstacles entre le soleil et les panneaux solaires.  10% d'ombrage sur le panneau et toute la puissance électrique s'écroule."]
["#VLOOKUP(\"Beschikbare oppervlakte (m²)\";Translations;LANG;FALSE)","Beschikbare oppervlakte (m²)","Beschikbare oppervlakte (m²)","Surface disponible (m²)",null,null,"Surface disponible (m²)"]
["#VLOOKUP(\"Collectoroppervlak (m²)\";Translations;LANG;FALSE)","Collectoroppervlak (m²)","Collectoroppervlak (m²)","Surface capteur (m²)",null,null,"Surface capteur (m²)"]
["#VLOOKUP(\"Piek Vermogen (kWp)\";Translations;LANG;FALSE)","Piek Vermogen (kWp)","Piek Vermogen (kWp)","Puissance crête (kWc)",null,null,"Puissance crête (kWc)"]
["#VLOOKUP(\"Raming van de geproduceerde energie (kWu/jaar)\";Translations;LANG;FALSE)","Raming van de geproduceerde energie (kWu/jaar)","Raming van de geproduceerde energie (kWu/jaar)","Production d'électricité estimée (kWh/an)",null,null,"Production d'électricité estimée (kWh/an)"]
["#VLOOKUP(\"Verplichte instellingen:\";Translations;LANG;FALSE)","Verplichte instellingen:","Verplichte instellingen:","Choix obligatoires:",null,null,"Choix obligatoires:"]
["#VLOOKUP(\"Type: Plat dak\";Translations;LANG;FALSE)","Type: Plat dak","Type: Plat dak","Type: Toiture plate",null,null,"Type: Toiture plate"]
["#VLOOKUP(\"Orientatie: Oost West\";Translations;LANG;FALSE)","Orientatie: Oost West","Orientatie: Oost West","Orientation: Est-Ouest",null,null,"Orientation: Est-Ouest"]
["#VLOOKUP(\"Hellingshoek: 10°\";Translations;LANG;FALSE)","Hellingshoek: 10°","Hellingshoek: 10°","Inclinaison: 10°",null,null,"Inclinaison: 10°"]
["#VLOOKUP(\"Maximumpotentieel\";Translations;LANG;FALSE)","Maximumpotentieel","Maximumpotentieel","Potentiel Maximum",null,null,"Potentiel Maximum"]
[{"$f":"IF(B88 <> 0, \"#VLOOKUP(\" & \"\"\"\" & B88 & \"\"\"\" & \";Translations;LANG;FALSE)\", \"\")","v":"#VLOOKUP(\"Rendabiliteit van uw fotovoltaïsch project  \";Translations;LANG;FALSE)"},"Rendabiliteit van uw fotovoltaïsch project  ","Rendabiliteit van uw fotovoltaïsch project  ","Rentabilité de votre projet photovoltaïque",null,null,"Rentabilité de votre projet photovoltaïque"]
[{"$f":"IF(B89 <> 0, \"#VLOOKUP(\" & \"\"\"\" & B89 & \"\"\"\" & \";Translations;LANG;FALSE)\", \"\")","v":"#VLOOKUP(\"Gebruikte gegevens berekiningen\";Translations;LANG;FALSE)"},"Gebruikte gegevens berekiningen","Gebruikte gegevens voor de berekeningen","Données utilisées pour les calculs",null,null,"Données utilisées pour les calculs"]
[{"$f":"IF(B90 <> 0, \"#VLOOKUP(\" & \"\"\"\" & B90 & \"\"\"\" & \";Translations;LANG;FALSE)\", \"\")","v":"#VLOOKUP(\"Generator gebruikt vermogen\";Translations;LANG;FALSE)"},"Generator gebruikt vermogen","Vermogen toegepaste generator","Puissance de générateur utilisée",null,null,"Puissance de générateur utilisée"]
["#VLOOKUP(\"Oppervlakte gebruikte panelen\";Translations;LANG;FALSE)",{"$f":"C91","v":"Oppervlakte gebruikte panelen"},"Oppervlakte gebruikte panelen","Surface capteur utilisée",null,null,"Surface capteur utilisée"]
[{"$f":"IF(B92 <> 0, \"#VLOOKUP(\" & \"\"\"\" & B92 & \"\"\"\" & \";Translations;LANG;FALSE)\", \"\")","v":"#VLOOKUP(\"warning rug aan rug montage\";Translations;LANG;FALSE)"},"warning rug aan rug montage","Als het plat dak rug aan rug wordt gemonteerd, zijn de oriëntatie en de hellingshoek respectievelijk \"oost-west\" en \"10°\"; deze hoeven niet te worden gecodeerd.","Si le montage retenu est « toiture plate dos-à-dos », l’orientation et l’inclinaison des panneaux sont pré-encodées par défaut et respectivement « est-ouest » et « 10° ». Ces champs ne sont pas à compléter manuellement.",null,null,"Si le montage retenu est « toiture plate dos-à-dos », l’orientation et l’inclinaison des panneaux sont pré-encodées par défaut et respectivement « est-ouest » et « 10° ». Ces champs ne sont pas à compléter manuellement."]
["#VLOOKUP(\"1ste stap : Berekenen van de winst op uw elektriciteitsrekening\";Translations;LANG;FALSE)","1ste stap : Berekenen van de winst op uw elektriciteitsrekening","1ste stap : Berekenen van de winst op uw elektriciteitsrekening","Etape 1 : Calculer le gain sur la facture électrique",null,null,"Etape 1 : Calculer le gain sur la facture électrique"]
["#VLOOKUP(\"Zonneproductiefactor (kWh/kWc/m²/an)\";Translations;LANG;FALSE)","Zonneproductiefactor (kWh/kWc/m²/an)","Zonneproductiefactor (kWh/kWc/m²/an)","Facteur solaire (kWh/kWc/m²/an)",null,null,"Facteur solaire (kWh/kWc/m²/an)"]
["#VLOOKUP(\"Tarief elektriciteit (met BTW)\";Translations;LANG;FALSE)","Tarief elektriciteit (met BTW)","Tarief elektriciteit (met BTW)","Tarif de l'électricité (avec TVA)",null,null,"Tarif de l'électricité (avec TVA)"]
["#VLOOKUP(\"Geestimeerd elektrischproductie (kWh/jaar)\";Translations;LANG;FALSE)","Geestimeerd elektrischproductie (kWh/jaar)","Geestimeerd elektrischproductie (kWh/jaar)","Production d'électricité estimée (kWh/an)",null,null,"Production d'électricité estimée (kWh/an)"]
["#VLOOKUP(\"Tarief van afkoop van de elektriciteit\";Translations;LANG;FALSE)","Tarief van afkoop van de elektriciteit","Tarief van afkoop van de elektriciteit","Tarif de rachat de l'électricité ",null,null,"Tarif de rachat de l'électricité "]
["#VLOOKUP(\"Ga door met simulatie mer Oost-West orientatie\";Translations;LANG;FALSE)","Ga door met simulatie mer Oost-West orientatie","Ga door met simulatie mer Oost-West orientatie","Continuer la simulation avec une orientation Est-Ouest ",null,null,"Continuer la simulation avec une orientation Est-Ouest "]
["#VLOOKUP(\"Stijging van de elektriciteitsprijs (zonder inflatie)\";Translations;LANG;FALSE)","Stijging van de elektriciteitsprijs (zonder inflatie)","Stijging van de elektriciteitsprijs (zonder inflatie)","Augmentation du prix de l'électricité (hors inflation)",null,null,"Augmentation du prix de l'électricité (hors inflation)"]
["",0,null,null,null,null,0]
["#VLOOKUP(\"Niveau van auto-consumptie\";Translations;LANG;FALSE)","Niveau van auto-consumptie","Niveau van auto-consumptie","Taux d'auto-consommation ",null,null,"Taux d'auto-consommation "]
["",{"$f":"C102","v":0},null,null,null,null,0]
["#VLOOKUP(\"Winst op de aankoopfactuur van elektriciteit         \";Translations;LANG;FALSE)","Winst op de aankoopfactuur van elektriciteit         ","Winst op de aankoopfactuur van elektriciteit         ","Gain sur la facture d'achat de l'électricité",null,null,"Gain sur la facture d'achat de l'électricité"]
["",0,null,null,null,null,0]
["#VLOOKUP(\"Winst op de verkoop van elektriciteit         \";Translations;LANG;FALSE)","Winst op de verkoop van elektriciteit         ","Winst op de verkoop van elektriciteit         ","Gain issu de la vente d'électricité",null,null,"Gain issu de la vente d'électricité"]
["",0,null,null,null,null,0]
["",0,null,null,null,null,0]
["#VLOOKUP(\"2de stap : Berekenen van de inkomsten door de Groenestroomcertificaten (GSC) \";Translations;LANG;FALSE)","2de stap : Berekenen van de inkomsten door de Groenestroomcertificaten (GSC) ","2de stap : Berekenen van de inkomsten door de Groenestroomcertificaten (GSC) ","Etape 2 : Calculer le gain sur les certificats verts (CV)",null,null,"Etape 2 : Calculer le gain sur les certificats verts (CV)"]
["",0,null,null,null,null,0]
["#VLOOKUP(\"CO2 emissie coëfficiënt van de referentie installatie\";Translations;LANG;FALSE)","CO2 emissie coëfficiënt van de referentie installatie","CO2 emissie coëfficiënt van de referentie installatie","Coefficient d'émission en CO2 de l'installation de référence",null,null,"Coefficient d'émission en CO2 de l'installation de référence"]
["",0,null,null,null,null,0]
["#VLOOKUP(\"CO2 besparing van de fotovoltaïsche installatie\";Translations;LANG;FALSE)","CO2 besparing van de fotovoltaïsche installatie","CO2 besparing van de fotovoltaïsche installatie","Economie en CO2 de l'installation PV",null,null,"Economie en CO2 de l'installation PV"]
["",0,null,null,null,null,0]
["#VLOOKUP(\"Uitgespaarde hoeveelheid primaire energie\";Translations;LANG;FALSE)","Uitgespaarde hoeveelheid primaire energie","Uitgespaarde hoeveelheid primaire energie","Energie primaire économisée",null,null,"Energie primaire économisée"]
["",0,null,null,null,null,0]
["#VLOOKUP(\"Aantal toegekende GSC  \";Translations;LANG;FALSE)","Aantal toegekende GSC  ","Aantal toegekende GSC  ","Nombre annuel de certificats verts attribué",null,null,"Nombre annuel de certificats verts attribué"]
["",0,null,null,null,null,0]
["#VLOOKUP(\"Prijs van de GSC  \";Translations;LANG;FALSE)","Prijs van de GSC  ","Prijs van de GSC  ","Valeur d'un Certificat Vert (sur le marché) ",null,null,"Valeur d'un Certificat Vert (sur le marché) "]
["",0,null,null,null,null,0]
["#VLOOKUP(\"Inkomsten door de verkoop van GSC     \";Translations;LANG;FALSE)","Inkomsten door de verkoop van GSC     ","Inkomsten door de verkoop van GSC     ","Gain issu de la vente des certificats verts",null,null,"Gain issu de la vente des certificats verts"]
["",0,null,null,null,null,0]
["#VLOOKUP(\"3de stap : Berekenen van de uitgave voor het onderhoud (zonder de verzekering)\";Translations;LANG;FALSE)","3de stap : Berekenen van de uitgave voor het onderhoud (zonder de verzekering)","3de stap : Berekenen van de uitgave voor het onderhoud (zonder de verzekering)","Etape 3 : Calculer les dépenses en entretien (sans assurance)",null,null,"Etape 3 : Calculer les dépenses en entretien (sans assurance)"]
["",0,null,null,null,null,0]
["#VLOOKUP(\"Jaarlijkse kosten van het onderhoud\";Translations;LANG;FALSE)","Jaarlijkse kosten van het onderhoud","Jaarlijkse kosten van het onderhoud","Coût annuel de l'entretien ",null,null,"Coût annuel de l'entretien "]
["",0,null,null,null,null,0]
["#VLOOKUP(\"Let op: er wordt geen rekening meer gehouden met verzekeringskosten en schoonmaakkosten\";Translations;LANG;FALSE)","Let op: er wordt geen rekening meer gehouden met verzekeringskosten en schoonmaakkosten","Let op: er wordt geen rekening meer gehouden met verzekeringskosten en schoonmaakkosten (te verandelijk)","Attention : les coûts de l'assurance et de nettoyage ne sont plus pris en compte (trop variables)",null,null,"Attention : les coûts de l'assurance et de nettoyage ne sont plus pris en compte (trop variables)"]
["",0,null,null,null,null,0]
["#VLOOKUP(\"Uitgaven in onderhoud (zonder verzekering)\";Translations;LANG;FALSE)","Uitgaven in onderhoud (zonder verzekering)","Uitgaven in onderhoud (zonder verzekering)","Dépense en entretien (sans assurance)",null,null,"Dépense en entretien (sans assurance)"]
["",0,null,null,null,null,0]
["#VLOOKUP(\"4de stap : Raming van de investering \";Translations;LANG;FALSE)","4de stap : Raming van de investering ","4de stap : Raming van de investering ","Etape 4 : Estimer le montant d'investissement",null,null,"Etape 4 : Estimer le montant d'investissement"]
["",0,null,null,null,null,0]
["#VLOOKUP(\"Type gebouw\";Translations;LANG;FALSE)","Type gebouw","Type gebouw","Niveau énergétique du bâtiment ",null,null,"Niveau énergétique du bâtiment "]
["",0,null,null,null,null,0]
["#VLOOKUP(\"BTW \";Translations;LANG;FALSE)","BTW ","BTW ","TVA ",null,null,{"$f":"VLOOKUP(B134,Translations,LANG,FALSE)","v":"TVA "}]
["",0,null,null,null,null,0]
["#VLOOKUP(\"Categorie van het gezinsinkomen\";Translations;LANG;FALSE)","Categorie van het gezinsinkomen","Categorie van het gezinsinkomen","Catégorie de revenu",null,null,"Catégorie de revenu"]
["",0,null,null,null,null,0]
["",0,null,null,null,null,0]
["#VLOOKUP(\"Raming van de netto financiële investering\";Translations;LANG;FALSE)","Raming van de netto financiële investering","Raming van de netto financiële investering","Estimation du coût financier brut ",null,null,"Estimation du coût financier brut "]
["",0,null,null,null,null,0]
["#VLOOKUP(\"Bedrag van de energiepremies \";Translations;LANG;FALSE)","Bedrag van de energiepremies ","Bedrag van de energiepremies ","Montant des primes énergies",null,null,"Montant des primes énergies"]
["",0,null,null,null,null,0]
["#VLOOKUP(\"Steun in het Brussels Gewest voor ondernemingen\";Translations;LANG;FALSE)","Steun in het Brussels Gewest voor ondernemingen","Steun in het Brussels Gewest voor ondernemingen","Aides régionales (MBRC) pour les entreprises",null,null,"Aides régionales (MBRC) pour les entreprises"]
["",0,null,null,null,null,0]
["#VLOOKUP(\"Andere premies (gemeente, subsidies, ...)\";Translations;LANG;FALSE)","Andere premies (gemeente, subsidies, ...)","Andere premies (gemeente, subsidies, ...)","Autres primes (communales, subsides...)",null,null,"Autres primes (communales, subsides...)"]
["",0,null,null,null,null,0]
["#VLOOKUP(\"Investeringsaftrek\";Translations;LANG;FALSE)","Investeringsaftrek","Investeringsaftrek","Déductions fiscales (entreprises) ",null,null,"Déductions fiscales (entreprises) "]
["",0,null,null,null,null,0]
["#VLOOKUP(\"Installatiekostprijs per Wp\";Translations;LANG;FALSE)","Installatiekostprijs per Wp","Installatiekostprijs per Wp","Coût de l'installation par Wc",null,null,"Coût de l'installation par Wc"]
["",0,null,null,null,null,0]
["#VLOOKUP(\"Raming van de netto financiële investering\";Translations;LANG;FALSE)","Raming van de netto financiële investering","Raming van de netto financiële investering","Investissement financier net ",null,null,"Estimation du coût financier brut "]
["",0,null,null,null,null,0]
["#VLOOKUP(\"5de stap : Schatting van de rendabiliteit van het project \";Translations;LANG;FALSE)","5de stap : Schatting van de rendabiliteit van het project ","5de stap : Schatting van de rendabiliteit van het project ","Etape 5 : Estimer la rentabilité du projet",null,null,"Etape 5 : Estimer la rentabilité du projet"]
["",0,null,null,null,null,0]
["#VLOOKUP(\"Belastingtarief\";Translations;LANG;FALSE)","Belastingtarief","Belastingtarief","Taux d''imposition ",null,null,"Taux d''imposition "]
[{"$f":"IF(B156 <> 0, \"#VLOOKUP(\" & \"\"\"\" & B156 & \"\"\"\" & \";Translations;LANG;FALSE)\", \"\")","v":""},0,null,null,null,null,0]
["#VLOOKUP(\"Intrestvoet (zonder inflatie)\";Translations;LANG;FALSE)","Intrestvoet (zonder inflatie)","Intrestvoet (zonder inflatie)","Taux d'actualisation (hors inflation)",null,null,"Taux d'actualisation (hors inflation)"]
["",0,null,null,null,null,0]
["#VLOOKUP(\"Jaarlijkse netto-opbrengst van het fotovoltaïsche project \";Translations;LANG;FALSE)","Jaarlijkse netto-opbrengst van het fotovoltaïsche project ","Jaarlijkse netto-opbrengst van het fotovoltaïsche project ","Gain annuel du projet photovoltaïque ",null,null,"Gain annuel du projet photovoltaïque "]
["",0,null,null,null,null,0]
["#VLOOKUP(\"Pay-back periode van het project \";Translations;LANG;FALSE)","Pay-back periode van het project ","Pay-back periode van het project ","Temps de Retour Simple ",null,null,"Temps de Retour Simple "]
["",0,null,null,null,null,0]
["#VLOOKUP(\"Interne intrestvoet van het project (10 jaren)\";Translations;LANG;FALSE)","Interne intrestvoet van het project (10 jaren)","Interne intrestvoet van het project (10 jaren)","Taux de rentabilité interne après 10 ans",null,null,"Taux de rentabilité interne après 10 ans"]
["#VLOOKUP(\"                                                  (20 jaren)\";Translations;LANG;FALSE)","                                                  (20 jaren)","                                                  (20 jaren)","                                                20 ans",null,null,"                                                20 ans"]
["",0,null,null,null,null,0]
["#VLOOKUP(\"Netto-actuele waarde van de winsten (10 jaren)\";Translations;LANG;FALSE)",{"$f":"C166","v":"Netto-actuele waarde van de winsten (10 jaren)"},"Netto-actuele waarde van de winsten (10 jaren)","Valeur actualisée nette des gains après 10 ans",null,null,"Valeur actualisée nette des gains après 10 ans"]
["#VLOOKUP(\"                                                      (20 jaren)\";Translations;LANG;FALSE)","                                                      (20 jaren)","                                                      (20 jaren)","                                                          20 ans",null,null,"                                                          20 ans"]
["",0,null,null,null,null,0]
["#VLOOKUP(\"Dynamische pay-back periode\";Translations;LANG;FALSE)","Dynamische pay-back periode","Dynamische pay-back periode","Temps de retour dynamique",null,null,"Temps de retour dynamique"]
["#VLOOKUP(\"Bij gebrek aan informatie\";Translations;LANG;FALSE)","Bij gebrek aan informatie","Bij gebrek aan informatie","Par défaut",null,null,"Par défaut"]
["#VLOOKUP(\"€/jaar\";Translations;LANG;FALSE)","€/jaar","€/jaar","€/an",null,null,"€/an"]
["#VLOOKUP(\"kg CO2/MWu\";Translations;LANG;FALSE)","kg CO2/MWu","kg CO2/MWu","kg CO2/MWh",null,null,"kg CO2/MWh"]
["",0,null,null,null,null,0]
["#VLOOKUP(\"kg CO2/jaar\";Translations;LANG;FALSE)","kg CO2/jaar","kg CO2/jaar","kg CO2/an",null,null,"kg CO2/an"]
["",0,null,null,null,null,0]
["#VLOOKUP(\"kWu/jaar\";Translations;LANG;FALSE)","kWu/jaar","kWu/jaar","kWh/an",null,null,"kWh/an"]
["#VLOOKUP(\"€/kWu\";Translations;LANG;FALSE)","€/kWu","€/kWu","€/kWh",null,null,"€/kWh"]
["#VLOOKUP(\"/jaar\";Translations;LANG;FALSE)","/jaar","/jaar","/an",null,null,"/an"]
["#VLOOKUP(\"De gegarandeerde aankoop prijs van ELIA is 65€/GSC\";Translations;LANG;FALSE)","De gegarandeerde aankoop prijs van ELIA is 65€/GSC","De gegarandeerde aankoop prijs van ELIA is 65€/GSC","Le prix garanti par ELIA est de 65€/CV",null,null,"Le prix garanti par ELIA est de 65€/CV"]
["#VLOOKUP(\" van de initiële investering\";Translations;LANG;FALSE)"," van de initiële investering"," van de initiële investering","de l'investissement initial ",null,null,"de l'investissement initial "]
["",0,null,null,null,null,0]
["#VLOOKUP(\"€/jaar en per kWp\";Translations;LANG;FALSE)","€/jaar en per kWp","€/jaar en per kWp","€/an et par kWc",null,null,"€/an et par kWc"]
["#VLOOKUP(\"€ (incl. BTW)\";Translations;LANG;FALSE)","€ (incl. BTW)","€ (incl. BTW)","€ (TVAC)",null,null,"€ (TVAC)"]
["#VLOOKUP(\"€ (excl. BTW)\";Translations;LANG;FALSE)","€ (excl. BTW)","€ (excl. BTW)","€ (HTVA)",null,null,"€ (HTVA)"]
["#VLOOKUP(\"east_west\";Translations;LANG;FALSE)","east_west","Montage op plat dak - helling 10° is ingesteld. Andere mogelijkheden niet toegelaten.","Montage sur toiture plate et inclinaison de 10° est selectioné. Autres choix ne sont pas possibles.",null,null,"Montage sur toiture plate et inclinaison de 10° est selectioné. Autres choix ne sont pas possibles."]
["#VLOOKUP(\"jaren\";Translations;LANG;FALSE)","jaren","jaren","ans",null,null,"ans"]
["#VLOOKUP(\"Zie Netto-actuele waarde\";Translations;LANG;FALSE)","Zie Netto-actuele waarde","Zie Netto-actuele waarde","Voir VAN",null,null,"Voir VAN"]
["#VLOOKUP(\"Jaar 15: Vervanging omvormer\";Translations;LANG;FALSE)","Jaar 15: Vervanging omvormer","Jaar 15: Vervanging omvormer","Année 15: remplacement onduleur",null,null,"Année 15: remplacement onduleur"]
["#VLOOKUP(\"Netto Actudele Waarde [€]\";Translations;LANG;FALSE)","Netto Actudele Waarde [€]","Netto Actudele Waarde [€]","Valeur Actualisée Nette [€]",null,null,"Valeur Actualisée Nette [€]"]
["#VLOOKUP(\"Niveau van investeringssteun\";Translations;LANG;FALSE)","Niveau van investeringssteun","Niveau van investeringssteun","Taux d'aide",null,null,"Taux d'aide"]
["#VLOOKUP(\"Geen\";Translations;LANG;FALSE)","Geen","Geen","Aucune",null,null,"Aucune"]
["#VLOOKUP(\"Micro- en kleine ondernemingen 45%\";Translations;LANG;FALSE)","Micro- en kleine ondernemingen 45%","Micro- en kleine ondernemingen 45%","Micro & Petite entreprise 45%",null,null,"Micro & Petite entreprise 45%"]
["#VLOOKUP(\"Middelgrote ondernemingen 35%\";Translations;LANG;FALSE)","Middelgrote ondernemingen 35%","Middelgrote ondernemingen 35%","Moyenne entreprise 35%",null,null,"Moyenne entreprise 35%"]
["#VLOOKUP(\"Grote ondernemingen 25%\";Translations;LANG;FALSE)","Grote ondernemingen 25%","Grote ondernemingen 25%","Grande entreprise 25%",null,null,"Grande entreprise 25%"]
["#VLOOKUP(\"Contactgegevens en aanvullende informatie\";Translations;LANG;FALSE)","Contactgegevens en aanvullende informatie","Contactgegevens en aanvullende informatie","Contact et informations complémentaires",null,null,"Contact et informations complémentaires"]
["#VLOOKUP(\"Overheid\";Translations;LANG;FALSE)","Overheid","Overheid","Pouvoir public ",null,null,"Pouvoir public "]
["#VLOOKUP(\"Facilitatoren\";Translations;LANG;FALSE)","Facilitatoren","Facilitatoren","Facilitateurs ",null,null,"Facilitateurs "]
["#VLOOKUP(\"Premies particulieren\";Translations;LANG;FALSE)","Premies particulieren","Premies particulieren","Primes particuliers",null,null,{"$f":"VLOOKUP(B198,Translations,LANG,FALSE)","v":"Primes particuliers"}]
["#VLOOKUP(\"Premies professionelen\";Translations;LANG;FALSE)","Premies professionelen","Premies professionelen","Primes professionnels",null,null,"Primes professionnels"]
["#VLOOKUP(\"GSC'en\";Translations;LANG;FALSE)","GSC'en","GSC'en","Certificats verts ",null,null,"Certificats verts "]
["#VLOOKUP(\"Fiscale voordelen\";Translations;LANG;FALSE)","Fiscale voordelen","Fiscale voordelen","Déductions fiscales ",null,null,"Déductions fiscales "]
["#VLOOKUP(\"Prijsofferte van installateur\";Translations;LANG;FALSE)","Prijsofferte van installateur","Prijsofferte van installateur","Devis installateur",null,null,"Devis installateur"]
["",0,null,null,null,null,0]
["#VLOOKUP(\"Steun Brussels Gewest\";Translations;LANG;FALSE)","Steun Brussels Gewest","Steun Brussels Gewest","Aides RBC",null,null,"Aides RBC"]
["#VLOOKUP(\"Prijzen en informatie van installateurs\";Translations;LANG;FALSE)",{"$f":"C205","v":"Prijzen en informatie van installateurs"},"Prijzen en informatie van installateurs","Demande de prix et d'information à des installateurs ",null,null,"Demande de prix et d'information à des installateurs "]
["#VLOOKUP(\"Gebruiksaanwijzing\";Translations;LANG;FALSE)",{"$f":"C206","v":"Gebruiksaanwijzing"},"Gebruiksaanwijzing","Mode d'emploi ",null,null,"Mode d'emploi "]
["#VLOOKUP(\"Installateurs PV\";Translations;LANG;FALSE)","Installateurs PV","Installateurs PV","Installateurs PV",null,null,"Installateurs PV"]
["#VLOOKUP(\"Leveranciers PV\";Translations;LANG;FALSE)","Leveranciers PV","Leveranciers PV","Fournisseurs PV",null,null,"Fournisseurs PV"]
["#VLOOKUP(\"Voor meer informatie\";Translations;LANG;FALSE)","Voor meer informatie","Voor meer informatie","Aller plus loin",null,null,"Aller plus loin"]
["#VLOOKUP(\"http://www.leefmilieu.brussels/pro\";Translations;LANG;FALSE)","http://www.leefmilieu.brussels/pro","http://www.leefmilieu.brussels/pro","http://www.environnement.brussels/pro",null,null,"http://www.environnement.brussels/pro"]
["#VLOOKUP(\"http://www.leefmilieu.brussels/themas/gebouwen/het-beheer-van-mijn-gebouw/om-u-te-helpen/facilitator-duurzame-gebouwen\";Translations;LANG;FALSE)","http://www.leefmilieu.brussels/themas/gebouwen/het-beheer-van-mijn-gebouw/om-u-te-helpen/facilitator-duurzame-gebouwen","http://www.leefmilieu.brussels/themas/gebouwen/het-beheer-van-mijn-gebouw/om-u-te-helpen/facilitator-duurzame-gebouwen","http://www.environnement.brussels/thematiques/batiment/la-gestion-de-mon-batiment/pour-vous-aider/le-facilitateur-batiment-durable",null,null,"http://www.environnement.brussels/thematiques/batiment/la-gestion-de-mon-batiment/pour-vous-aider/le-facilitateur-batiment-durable"]
["#VLOOKUP(\"http://www.leefmilieu.brussels/themas/energie/energiepremies-2015\";Translations;LANG;FALSE)","http://www.leefmilieu.brussels/themas/energie/energiepremies-2015","http://www.leefmilieu.brussels/themas/energie/energiepremies-2015","http://www.environnement.brussels/thematiques/energie/les-primes-energie-en-2015",null,null,"http://www.environnement.brussels/thematiques/energie/les-primes-energie-en-2015"]
["#VLOOKUP(\"http://www.leefmilieu.brussels/themas/energie/energiepremies-en-steun/andere-premies-en-steunmaatregelen-voor-ondernemingen-0\";Translations;LANG;FALSE)","http://www.leefmilieu.brussels/themas/energie/energiepremies-en-steun/andere-premies-en-steunmaatregelen-voor-ondernemingen-0","http://www.leefmilieu.brussels/themas/energie/energiepremies-en-steun/andere-premies-en-steunmaatregelen-voor-ondernemingen-0","http://www.environnement.brussels/thematiques/energie/primes-et-aides/primes-et-autres-avantages-pour-les-entreprises",null,null,"http://www.environnement.brussels/thematiques/energie/primes-et-aides/primes-et-autres-avantages-pour-les-entreprises"]
["#VLOOKUP(\"http://www.leefmilieu.brussels/themas/energie/groene-energie/groenestroomcertificaten\";Translations;LANG;FALSE)","http://www.leefmilieu.brussels/themas/energie/groene-energie/groenestroomcertificaten","http://www.leefmilieu.brussels/themas/energie/groene-energie/groenestroomcertificaten","http://www.environnement.brussels/thematiques/energie/lenergie-verte/certificats-verts",null,null,"http://www.environnement.brussels/thematiques/energie/lenergie-verte/certificats-verts"]
[{"$f":"IF(B215 <> 0, \"#VLOOKUP(\" & \"\"\"\" & B215 & \"\"\"\" & \";Translations;LANG;FALSE)\", \"\")","v":"#VLOOKUP(\"http://app.leefmilieubrussel.be/lijsten/?nr_list=7\";Translations;LANG;FALSE)"},"http://app.leefmilieubrussel.be/lijsten/?nr_list=7","http://app.leefmilieubrussel.be/lijsten/?nr_list=7","http://app.bruxellesenvironnement.be/listes/?nr_list=7",null,null,"http://app.bruxellesenvironnement.be/listes/?nr_list=7"]
["#VLOOKUP(\"http://app.leefmilieubrussel.be/lijsten/?nr_list=8\";Translations;LANG;FALSE)","http://app.leefmilieubrussel.be/lijsten/?nr_list=8","http://app.leefmilieubrussel.be/lijsten/?nr_list=8","http://app.bruxellesenvironnement.be/listes/?nr_list=8",null,null,"http://app.bruxellesenvironnement.be/listes/?nr_list=8"]
["#VLOOKUP(\"CommentTotalStrm\";Translations;LANG;FALSE)","CommentTotalStrm","Voer hier het jaarlijkse totale stroomverbruik in.  \n---\nStandaard, raamt de software een verbruik voor uw gebouw gebaseerd op volgende veronderstellingen. :\n- Een zuinig Brussels gezin (4 personen) verbruikt circa 2000 kWh/m².\n- Voor de tertiaire sector, wordt het verbruik geschat op 100 kWh/(m²*jaar)\n- Een individueel huis verbruik circa 3500 kWh/jaar.\n- Voor andere bestemmingen (Ziekenhuizen, …), gelieve het geraamd verbruik te verfijnen in cel H14\nHet is belangrijk om hierbij nogmaals te benadrukken dat een gebruik van fotovoltaïsche energie niet denkbaar is zonder een vermindering en optimalisering van het eigen stroomverbruik. Dat houdt de volgende elementen in:\n\n* Over het algemeen, het zodanig ontwerpen en optrekken - of renoveren - van gebouwen dat ze maar beperkte energiebehoeften hebben;\n* Het gebruik van apparaten die maar weinig energie verbruiken;\n* Een rationele werking doorheen de tijd.\n\nEen dergelijke aanpak resulteert in een  gevoelige vermindering van het gemiddelde verbruik van een gezin, een instelling of een onderneming en daarmee dus ook van de benodigde omvang  van de fotovoltaïsche installatie om aan de bestaande behoeften tegemoet te komen","Encoder ici la consommation totale annuelle d'électricité consommée sur le site.  \n---\nPar défaut, le logiciel estime une consommation pour votre bâtiment basé sur les hypothèses suivantes:\n- Un ménage Bruxellois économe (4 personnes) consomme de l'ordre de 2036 kWh/m²\n- Pour le secteur tertiaire, consommation estimée à 100 kWh/(m²*an) (source: Bilan énergétque Bruxellois/bureaux)\n- une maison individuelle consomme de l'ordre de 3500 kwh/an\n- Pour d'autres affectations (hopitaux...), veuillez affiner cette consommation projetée en cellulle H14,\n\nIl est nécessaire d'insister sur le fait que, en réalité, le recours à l'énergie photovoltaïque ne se conçoit pas sans une réduction et l'optimisation de la consommation électrique. Ceci implique :\n\n* d'une façon générale, la conception et la construction - ou la rénovation - des bâtiments de façon à ce qu'ils aient des besoins énergétiques limités ;\n* l'utilisation d'appareils peu énergivores ;\n* un fonctionnement rationnel dans le temps.\n\nUne telle démarche a pour conséquence de réduire très sensiblement la consommation moyenne d'un ménage, d'une institution ou d'une entreprise, et donc la taille du système photovoltaïque capable de la couvrir.",null,null,"Encoder ici la consommation totale annuelle d'électricité consommée sur le site.  \n---\nPar défaut, le logiciel estime une consommation pour votre bâtiment basé sur les hypothèses suivantes:\n- Un ménage Bruxellois économe (4 personnes) consomme de l'ordre de 2036 kWh/m²\n- Pour le secteur tertiaire, consommation estimée à 100 kWh/(m²*an) (source: Bilan énergétque Bruxellois/bureaux)\n- une maison individuelle consomme de l'ordre de 3500 kwh/an\n- Pour d'autres affectations (hopitaux...), veuillez affiner cette consommation projetée en cellulle H14,\n\nIl est nécessaire d'insister sur le fait que, en réalité, le recours à l'énergie photovoltaïque ne se conçoit pas sans une réduction et l'optimisation de la consommation électrique. Ceci implique :\n\n* d'une façon générale, la conception et la construction - ou la rénovation - des bâtiments de façon à ce qu'ils aient des besoins énergétiques limités ;\n* l'utilisation d'appareils peu énergivores ;\n* un fonctionnement rationnel dans le temps.\n\nUne telle démarche a pour conséquence de réduire très sensiblement la consommation moyenne d'un ménage, d'une institution ou d'une entreprise, et donc la taille du système photovoltaïque capable de la couvrir."]
["#VLOOKUP(\"CommentPrstTool\";Translations;LANG;FALSE)","CommentPrstTool","Presentatie van de tool :\n\nDit hulpmiddel is een Excel-rekenblad. Het biedt een gebruiker de kans om kennis te maken met de verschillende elementen die een rol spelen bij de dimensionering en de bepaling van de financiële balans van een fotovoltaïsch project. Het is bedoeld om het belang van deze technologie duidelijk te maken om de investeringen in de productie van zonne-energie te vereenvoudigen en te stimuleren.\n\nHet hulpmiddel is bestemd voor gebruik door particulieren, technisch verantwoordelijken, beheerders van gebouwen, investeerders, architecten, bouwheren, ingenieurs-consulenten, energieverantwoordelijken, facilitatoren of beleidsmaker. Het hulpmiddel richt zich daarbij meer bepaald tot die personen die over de vereiste oppervlakten beschikken, die voor de opwekking van groene stroom gebruikt kunnen worden.\n\nNiettemin, zijn deze resultaten maar een eerste benadering. Ze geven slechts een aanwijzing voor het wel of niet voortzetten van het project, met name de bestelling van een haalbaarheidsstudie volgens de 'Regels van de Kunst' aan een bevoegd studiebureel, en niet de bestelling van de uitrusting !","Présentation de l’outil :\n\nCet outil est un calculateur Excel. Il permet à un utilisateur de rencontrer les éléments entrant en compte dans le dimensionnement et le bilan financier d’un projet photovoltaïque. Il aide à faire percevoir l’intérêt de cette technique afin de faciliter et démultiplier l’investissement dans la production d’électricité solaire.\n\nCet outil d’aide est destiné aux particuliers, responsables techniques, gestionnaires de bâtiments, investisseurs, architectes, maîtres d’ouvrages, ingénieurs conseils, responsables énergies, facilitateurs ou décideur politique. Plus précisément, l’outil s’adresse à toutes personnes disposant de surfaces pouvant être valorisée par la production d’énergie verte.\n\nCependant, les résultats obtenus ne sont qu'une première approximation. Ils ne donnent qu'une indication quant à la suite ou non du projet, à savoir la commande d'une étude de faisabilité dans les \"Règles de l'art\" à une entreprise ou un bureau d'études compétent, et non la commande de l'équipement !",null,null,"Présentation de l’outil :\n\nCet outil est un calculateur Excel. Il permet à un utilisateur de rencontrer les éléments entrant en compte dans le dimensionnement et le bilan financier d’un projet photovoltaïque. Il aide à faire percevoir l’intérêt de cette technique afin de faciliter et démultiplier l’investissement dans la production d’électricité solaire.\n\nCet outil d’aide est destiné aux particuliers, responsables techniques, gestionnaires de bâtiments, investisseurs, architectes, maîtres d’ouvrages, ingénieurs conseils, responsables énergies, facilitateurs ou décideur politique. Plus précisément, l’outil s’adresse à toutes personnes disposant de surfaces pouvant être valorisée par la production d’énergie verte.\n\nCependant, les résultats obtenus ne sont qu'une première approximation. Ils ne donnent qu'une indication quant à la suite ou non du projet, à savoir la commande d'une étude de faisabilité dans les \"Règles de l'art\" à une entreprise ou un bureau d'études compétent, et non la commande de l'équipement !"]
["#VLOOKUP(\"CommentPeak\";Translations;LANG;FALSE)","CommentPeak","Het piekvermogen van een module of een fotovoltaïsche installatie is het onder standaard testcondities (STC) gegenereerde elektrische vermogen, d.w.z. voor\n-een loodrecht ten opzichte van de zonnestralen gepositioneerde module,\n-bij een nominale zonnestraling van 1.000 Watt/m², \n-een genormaliseerd AM zonnespectrum = 1,5 en\n-een celtemperatuur van + 25 °C.","La puissance crête d'un module ou d'une installation photovoltaïque est la puissance électrique délivrée dans des conditions standard de test (STC) :\n- module présenté perpendiculairement aux rayons du soleil \n- ensoleillement nominal de 1 000 Watt / m² \n- spectre solaire normalisé AM = 1,5 \n- température de cellule de + 25 °C.",null,null,"La puissance crête d'un module ou d'une installation photovoltaïque est la puissance électrique délivrée dans des conditions standard de test (STC) :\n- module présenté perpendiculairement aux rayons du soleil \n- ensoleillement nominal de 1 000 Watt / m² \n- spectre solaire normalisé AM = 1,5 \n- température de cellule de + 25 °C."]
["#VLOOKUP(\"CommentEstimat\";Translations;LANG;FALSE)","CommentEstimat","De raming van de geproduceerde hoeveelheid energie houdt rekening met de benutte oppervlakte, de gebruikte technologie, het type van montage en de richting en hellingshoek waarin het systeem werd opgesteld.","L'estimation de l'energie produite tient compte de la surface, de la technologie, du type de montage, de l'orientation et de l'inclinaison.",null,null,"L'estimation de l'energie produite tient compte de la surface, de la technologie, du type de montage, de l'orientation et de l'inclinaison."]
["#VLOOKUP(\"Het eerste jaar\";Translations;LANG;FALSE)","Het eerste jaar","Het eerste jaar","La première année",null,null,"La première année"]
["#VLOOKUP(\"CommentEstCout\";Translations;LANG;FALSE)","CommentEstCout","De raming van de te betalen prijs houdt rekening met de oppervlakte, de technologie, het type van montage en de verschuldigde btw.\nDe initiële investering voor een fotovoltaïsche installatie omvat zowel de fotovoltaïsche modules, de DC/AC-omvormer(s), de elektrische veiligheidinrichtingen, als de elektrische kabels en de plaatsing.\n\nDe aansluitingskosten in die schatting zijn niet inbegrepen.\n\nMeer informatie: www.sibelga.be","L'estimation du prix à payer tient compte de la surface, de la technologie, du type de montage et de la TVA.\nL'investissement initial pour une installation photovoltaïque comprend les modules photovoltaïques, le ou les convertisseurs DC/AC, les composants électriques de sécurité, les câbles électriques et la pose.\n\nCette estimation ne prend pas en compte les frais de raccordement au réseau électrique.\n\nPlus d'informations : www.sibelga.be",null,null,"L'estimation du prix à payer tient compte de la surface, de la technologie, du type de montage et de la TVA.\nL'investissement initial pour une installation photovoltaïque comprend les modules photovoltaïques, le ou les convertisseurs DC/AC, les composants électriques de sécurité, les câbles électriques et la pose.\n\nCette estimation ne prend pas en compte les frais de raccordement au réseau électrique.\n\nPlus d'informations : www.sibelga.be"]
["#VLOOKUP(\"CommentTypeBatPrime\";Translations;LANG;FALSE)","CommentTypeBatPrime","Het energieniveau vormt een voorwaarde voor de toekenning van de premie.\nDeze premie varieert naargelang van het gezinsinkomen (van 0,25 tot 1 euro/Watt-piek-elektrisch) op voorwaarde dat het een nieuw passief gebouw of een gebouw met lage-energierenovatie is. \nDe premie is beperkt tot 30% van de investering.","Le niveau énergétique conditionne l'octroi de la prime.\nCette prime s'élève de 0,25 à 1 euro/Watt-crête en fonction de la catégorie de revenu à laquelle vous appartenez et à condition que le bâtiment soit passif ou basse énergie. \nLa prime est plafonnée à 30 % de l'investissement.",null,null,"Le niveau énergétique conditionne l'octroi de la prime.\nCette prime s'élève de 0,25 à 1 euro/Watt-crête en fonction de la catégorie de revenu à laquelle vous appartenez et à condition que le bâtiment soit passif ou basse énergie. \nLa prime est plafonnée à 30 % de l'investissement."]
["#VLOOKUP(\"CommentHellendeDaken\";Translations;LANG;FALSE)","CommentHellendeDaken","Bij hellende daken wordt het nuttige oppervlak afgebakend door het deel dat naar het zuiden is gericht en dat geen schaduw krijgt van schouwen of andere obstakels.\n\nDakranden en kroonlijsten van platte daken die veel straling krijgen, verkleinen vaak de nuttige oppervlakte met 10 tot 15%.\n\nIn complexe situaties is steeds een nauwkeurige inventaris vereist van alle natuurlijke obstakels, zodat de impact van de schaduw kan worden gekwantificeerd.","Pour des toitures inclinées, la surface utile est celle orientée vers le Sud en retirant les zones d’ombrages, les fenêtres de toits et autres obstacles. \n\nPour les toitures plates, la surface utile est généralement diminuée de 10 à 15% pour tenir compte des bords et acrotère.\n\nEn cas de situation compliquée, un bon relevé de masque s'impose pour quantifier l'impact dû à tel ou tel obstacle.",null,null,"Pour des toitures inclinées, la surface utile est celle orientée vers le Sud en retirant les zones d’ombrages, les fenêtres de toits et autres obstacles. \n\nPour les toitures plates, la surface utile est généralement diminuée de 10 à 15% pour tenir compte des bords et acrotère.\n\nEn cas de situation compliquée, un bon relevé de masque s'impose pour quantifier l'impact dû à tel ou tel obstacle."]
["#VLOOKUP(\"auto-conso\";Translations;LANG;FALSE)","auto-conso","Het is van groot belang de auto-consumptie goed in te schatten. Stroom die op hetzelfde moment als de productie ervan verbruikt wordt op dezelfde elektriciteitsmeter, brengt een grotere winst mee gezien het werkelijke gebruik van het elektriciteitsnet afneemt. Overproductie van elektriciteit wordt afgenomen aan een afkooptarief, lager dan het afnametarief, zoals contractueel vastgelegd met de leverancier. Voor installaties kleiner dan 5 kWp is het compensatiemechanisme (een “teruggedraaide teller\") nog steeds van toepassing tot 2021, hiermee wordt echter geen rekening gehouden in de tool.  ","Il est très important d'évaluer correctement sa propre consommation. L'électricité consommée en même temps que sa production sur le même compteur d' électricité apporte une économie plus grande parce que la charge réelle du réseau électrique diminue. La surproduction d' électricité est achetée à un tarif, inférieur au tarif d'achat, comme contractuellement convenu avec le fournisseur. Pour les installations inférieures à 5 kWc, le mécanisme de compensation (le compteur \"tourne à l'envers\") est toujours d'application jusqu'en 2021, mais cela n'est pas pris en compte dans l'outil.",null,null,"Il est très important d'évaluer correctement sa propre consommation. L'électricité consommée en même temps que sa production sur le même compteur d' électricité apporte une économie plus grande parce que la charge réelle du réseau électrique diminue. La surproduction d' électricité est achetée à un tarif, inférieur au tarif d'achat, comme contractuellement convenu avec le fournisseur. Pour les installations inférieures à 5 kWc, le mécanisme de compensation (le compteur \"tourne à l'envers\") est toujours d'application jusqu'en 2021, mais cela n'est pas pris en compte dans l'outil."]
["#VLOOKUP(\"Commentprimes\";Translations;LANG;FALSE)","Commentprimes","Voor een bedrijf en onder bepaalde voorwaarden kunt u hulp krijgen voor milieu-investeringen: energie besparen en energie produceren uit hernieuwbare energiebronnen.\nMeer infos:\nhttps://www.1819.brussels/nl/subsidies/steun-voor-milieuvriendelijke-investeringen-energiebesparingen-en-productie-van-energie","Pour une entreprise et selon certaines conditions vous pouvez bénéficier d'une aide pour les investissements environnementaux : économie d'énergie et la production d'énergie à partir de sources d'énergies renouvelables.\nPlus d'infos:\nhttps://www.1819.brussels/fr/subsides/aide-pour-les-investissements-environnementaux-economie-denergie-et-la-production-denergie",null,null,"Pour une entreprise et selon certaines conditions vous pouvez bénéficier d'une aide pour les investissements environnementaux : économie d'énergie et la production d'énergie à partir de sources d'énergies renouvelables.\nPlus d'infos:\nhttps://www.1819.brussels/fr/subsides/aide-pour-les-investissements-environnementaux-economie-denergie-et-la-production-denergie"]
["#VLOOKUP(\"CommentCV\";Translations;LANG;FALSE)","CommentCV","De vermenigvuldigingscoëfficiënten voor GSC is :\n- Als Pelek > 5kWp dus coëff. = 1,32\n- Als Pelek ≤ 5kWp dus coëff. = 1,65\nMeer infos:\nhttps://www.brugel.brussels/nl_BE/actualites/vermenigvuldigingscoefficienten-die-op-fotovoltaische-en-warmtekrachtkoppeling-installaties-zijn-toegepast-227","Le coefficient multiplicateur des CV est :\n- Si Pélec > 5kWC alors coeff. = 1,32\n- Si Pélec ≤ 5kWc alors coeff. = 1,65\nPlus d'infos:\nhttps://www.brugel.brussels/actualites/coefficients-multiplicateurs-appliques-au-photovoltaique-et-a-la-cogeneration-227",null,null,"Le coefficient multiplicateur des CV est :\n- Si Pélec > 5kWC alors coeff. = 1,32\n- Si Pélec ≤ 5kWc alors coeff. = 1,65\nPlus d'infos:\nhttps://www.brugel.brussels/actualites/coefficients-multiplicateurs-appliques-au-photovoltaique-et-a-la-cogeneration-227"]
["#VLOOKUP(\"Meer informaties :\";Translations;LANG;FALSE)",{"$f":"C228","v":"Meer informaties :"},"Meer informaties :","Plus d'informations :",null,null,"Plus d'informations :"]
["#VLOOKUP(\"€/Wp (incl. BTW)\";Translations;LANG;FALSE)","€/Wp (incl. BTW)","€/Wp (incl. BTW)","€/Wc (TVAC)",null,null,"€/Wc (TVAC)"]
["#VLOOKUP(\"€/Wp (excl. BTW)\";Translations;LANG;FALSE)","€/Wp (excl. BTW)","€/Wp (excl. BTW)","€/Wc (HTVA)",null,null,"€/Wc (HTVA)"]
["",0,null,null,null,null,0]
["",0,null,null,null,null,0]
["",0,null,null,null,null,0]
["",0,null,null,null,null,0]
["",0,null,null,null,null,0]
["",0,null,null,null,null,0]
["",0,null,null,null,null,0]
["",0,null,null,null,null,0]
["",0,null,null,null,null,0]
["",0,null,null,null,null,0]
["",0,null,null,null,null,0]
["",0,null,null,null,null,0]
["",0,null,null,null,null,0]
["",0,null,null,null,null,0]
["",0,null,null,null,null,0]
["",0,null,null,null,null,0]
["",0,null,null,null,null,0]
["",0,null,null,null,null,0]
["",0,null,null,null,null,0]
["",0,null,null,null,null,0]
["",0,null,null,null,null,0]
["",0,null,null,null,null,0]
["",0,null,null,null,null,0]
["",0,null,null,null,null,0]
["",0,null,null,null,null,0]
["",0,null,null,null,null,0]
["",0,null,null,null,null,0]
["",0,null,null,null,null,0]
["",0,null,null,null,null,0]
["",0,null,null,null,null,0]
["",0,null,null,null,null,0]
["",0,null,null,null,null,{"$f":"VLOOKUP(B262,Translations,LANG,FALSE)","v":0}]
["",0,null,null,null,null,0]
["",0,null,null,null,null,0]
[null,0,null,null,null,null,0]
[null,0,null,null,null,null,0]
[null,0,null,null,null,null,0]
[null,0,null,null,null,null,0]
[null,0,null,null,null,null,0]
[null,0,null,null,null,null,0]
[null,0,null,null,null,null,0]
[null,0,null,null,null,null,0]
[null,0,null,null,null,null,0]
[null,0,null,null,null,null,0]
[null,0,null,null,null,null,0]
[null,0]

{"sheet":"Comments","index":2,"n_rows":13,"n_cols":3,"rows_kept":13,"cut":false,"hidden":true,"merged":[]}
[]
["Each cell with a comment should have a named range with as name a value in this column. "]
["Named Range","(Title)","Tekst"]
["_Cmt_ConsumAct",null,{"$f":"VLOOKUP(\"CommentTotalStrm\",Translations,LANG,FALSE)","v":"Encoder ici la consommation totale annuelle d'électricité consommée sur le site.  \n---\nPar défaut, le logiciel estime une consommation pour votre bâtiment basé sur les hypothèses suivantes:\n- Un ménage Bruxellois économe (4 personnes) consomme de l'ordre de 2036 kWh/m²\n- Pour le secteur tertiaire, consommation estimée à 100 kWh/(m²*an) (source: Bilan énergétque Bruxellois/bureaux)\n- une maison individuelle consomme de l'ordre de 3500 kwh/an\n- Pour d'autres affectations (hopitaux...), veuillez affiner cette consommation projetée en cellulle H14,\n\nIl est nécessaire d'insister sur le fait que, en réalité, le recours à l'énergie photovoltaïque ne se conçoit pas sans une réduction et l'optimisation de la consommation électrique. Ceci implique :\n\n* d'une façon générale, la conception et la construction - ou la rénovation - des bâtiments de façon à ce qu'ils aient des besoins énergétiques limités ;\n* l'utilisation d'appareils peu énergivores ;\n* un fonctionnement rationnel dans le temps.\n\nUne telle démarche a pour conséquence de réduire très sensiblement la consommation moyenne d'un ménage, d'une institution ou d'une entreprise, et donc la taille du système photovoltaïque capable de la couvrir."}]
["_Cmt_PrstTool",null,{"$f":"VLOOKUP(\"CommentPrstTool\",Translations,LANG,FALSE)","v":"Présentation de l’outil :\n\nCet outil est un calculateur Excel. Il permet à un utilisateur de rencontrer les éléments entrant en compte dans le dimensionnement et le bilan financier d’un projet photovoltaïque. Il aide à faire percevoir l’intérêt de cette technique afin de faciliter et démultiplier l’investissement dans la production d’électricité solaire.\n\nCet outil d’aide est destiné aux particuliers, responsables techniques, gestionnaires de bâtiments, investisseurs, architectes, maîtres d’ouvrages, ingénieurs conseils, responsables énergies, facilitateurs ou décideur politique. Plus précisément, l’outil s’adresse à toutes personnes disposant de surfaces pouvant être valorisée par la production d’énergie verte.\n\nCependant, les résultats obtenus ne sont qu'une première approximation. Ils ne donnent qu'une indication quant à la suite ou non du projet, à savoir la commande d'une étude de faisabilité dans les \"Règles de l'art\" à une entreprise ou un bureau d'études compétent, et non la commande de l'équipement !"}]
["_Cmt_Peak",null,{"$f":"VLOOKUP(\"CommentPeak\",Translations,LANG,FALSE)","v":"La puissance crête d'un module ou d'une installation photovoltaïque est la puissance électrique délivrée dans des conditions standard de test (STC) :\n- module présenté perpendiculairement aux rayons du soleil \n- ensoleillement nominal de 1 000 Watt / m² \n- spectre solaire normalisé AM = 1,5 \n- température de cellule de + 25 °C."}]
["_Cmt_Estimat",null,{"$f":"VLOOKUP(\"CommentEstimat\",Translations,LANG,FALSE)","v":"L'estimation de l'energie produite tient compte de la surface, de la technologie, du type de montage, de l'orientation et de l'inclinaison."}]
["_Cmt_FirstYR",null,{"$f":"VLOOKUP(\"Het eerste jaar\",Translations,LANG,FALSE)","v":"La première année"}]
["_Cmt_CoutEst",null,{"$f":"VLOOKUP(\"CommentEstCout\",Translations,LANG,FALSE)","v":"L'estimation du prix à payer tient compte de la surface, de la technologie, du type de montage et de la TVA.\nL'investissement initial pour une installation photovoltaïque comprend les modules photovoltaïques, le ou les convertisseurs DC/AC, les composants électriques de sécurité, les câbles électriques et la pose.\n\nCette estimation ne prend pas en compte les frais de raccordement au réseau électrique.\n\nPlus d'informations : www.sibelga.be"}]
["_Cmt_TypeBld",null,{"$f":"VLOOKUP(\"CommentTypeBatPrime\",Translations,LANG,FALSE)","v":"Le niveau énergétique conditionne l'octroi de la prime.\nCette prime s'élève de 0,25 à 1 euro/Watt-crête en fonction de la catégorie de revenu à laquelle vous appartenez et à condition que le bâtiment soit passif ou basse énergie. \nLa prime est plafonnée à 30 % de l'investissement."}]
["_Cmt_SurfToi",null,{"$f":"VLOOKUP(\"CommentHellendeDaken\",Translations,LANG,FALSE)","v":"Pour des toitures inclinées, la surface utile est celle orientée vers le Sud en retirant les zones d’ombrages, les fenêtres de toits et autres obstacles. \n\nPour les toitures plates, la surface utile est généralement diminuée de 10 à 15% pour tenir compte des bords et acrotère.\n\nEn cas de situation compliquée, un bon relevé de masque s'impose pour quantifier l'impact dû à tel ou tel obstacle."}]
["_Cmt_CV",null,{"$f":"VLOOKUP(\"CommentCV\",Translations,LANG,FALSE)","v":"Le coefficient multiplicateur des CV est :\n- Si Pélec > 5kWC alors coeff. = 1,32\n- Si Pélec ≤ 5kWc alors coeff. = 1,65\nPlus d'infos:\nhttps://www.brugel.brussels/actualites/coefficients-multiplicateurs-appliques-au-photovoltaique-et-a-la-cogeneration-227"}]
["_Cmt_primes",null,{"$f":"VLOOKUP(\"Commentprimes\",Translations,LANG,FALSE)","v":"Pour une entreprise et selon certaines conditions vous pouvez bénéficier d'une aide pour les investissements environnementaux : économie d'énergie et la production d'énergie à partir de sources d'énergies renouvelables.\nPlus d'infos:\nhttps://www.1819.brussels/fr/subsides/aide-pour-les-investissements-environnementaux-economie-denergie-et-la-production-denergie"}]

{"sheet":"choix-multiples","index":3,"n_rows":185,"n_cols":33,"rows_kept":185,"cut":false,"hidden":false,"merged":[[139,5,139,12],[38,3,38,6],[35,3,35,9],[97,6,97,12],[132,6,132,8],[92,11,92,13],[90,6,90,7],[121,20,122,25],[8,16,8,23],[13,9,13,11],[30,3,30,5],[13,5,13,7],[26,3,26,5],[24,6,24,7],[17,11,17,12],[19,11,19,12],[1,1,1,23],[84,1,84,10],[6,16,6,18],[24,3,24,5],[15,10,15,12],[28,3,28,5],[6,3,6,5]]}
[]
[]
[]
[null,null,null,null,null,null,null,null,null,null,null,null,null,null,null,null,"Résultats:"]
[]
[null,null,null,null,null,null,null,null,null,null,null,null,null,null,null,null,"Installation technique"]
[null,null,null,null,null,null,null,null,null,null,null,null,null,null,null,null,"Puissance installée:",null,null,null,null,{"$f":"EnergieProduite_kWc_m²!H6","v":0},"kWc"]
[null,null,null,null,null,null,null,null,null,null,null,null,null,null,null,null,"Surface de capteur à installer",null,null,null,null,{"$f":"IF(Tool!#REF!=EnergieProduite_kWc_m²!H6,Tool!E46,Tool!#REF!*1000/(EnergieProduite_kWc_m²!C25*(1+EnergieProduite_kWc_m²!F29*0.01)*EnergieProduite_kWc_m²!F24))","v":{"$error":"#REF!"}},"m²"]
[null,null,null,null,null,null,null,null,null,null,null,null,null,null,null,null,"Ce logiciel ne calcule pas l'impact d'éventuelles ombres sur la production des panneaux.Il est important de vérifier s'il y a, à un ou plusieur moments de la journée, un ou des obstacles entre le soleil et les panneaux solaires. 10% d'ombrage sur le panneau et toute la puissance électrique s'écroule ! "]
[null,null,null,null,null,null,null,null,null,null,null,null,null,null,null,null,"Bilan énergétique"]
[null,null,null,null,null,null,null,null,null,null,null,null,null,null,null,null,"Estimation de l'énergie utile produite",null,null,null,null,{"$f":"EnergieProduite_kWc_m²!#REF!","v":{"$error":"#REF!"}},"kWh/an"]
[null,null,null,null,null,null,null,null,null,null,null,null,null,null,null,null,"Energie primaire économisée",null,null,null,null,{"$f":"V11*2.5","v":{"$error":"#REF!"}},"kWh/an"]
[]
[null,null,null,null,null,null,null,null,null,null,null,null,null,null,null,null,"Bilan environnemental"]
[null,null,null,null,null,null,null,null,null,null,null,null,null,null,null,null,"Economie de CO2",null,null,null,null,{"$f":"Page_calcul!G54*'choix-multiples'!G92/1000000/30","v":2.7643050315624782},"tonnes/an"]
[null,null,null,null,null,null,null,null,null,null,null,null,null,null,null,null,"Matière radioactive évitée",null,null,null,null,{"$f":"Page_calcul!G54*0.0034/30","v":23.824175176964324},"g/an"]
[]
[null,null,null,null,null,null,null,null,null,null,null,null,null,null,null,null,"Coût financier brut"]
[null,null,null,null,null,null,null,null,null,null,null,null,null,null,null,null,"Estimation du coût financier brut :",null,null,null,null,{"$f":"Calcul_CoûtBrut_m²!#REF!","v":{"$error":"#REF!"}},"€ (TVAC)"]
[null,null,null,null,null,null,null,null,null,null,null,null,null,null,null,null,"Devis donné par un installateur :",null,null,null,null,null,"€ (TVAC)"]
[null,null,null,null,null,null,null,null,null,null,null,null,null,null,null,null,"Coût de l'installation par Wc",null,null,null,null,{"$f":"IF(V20=\"\",V19/V7/1000,V20/V7/1000)","v":{"$error":"#REF!"}},"€/Wc"]
[null,null,null,null,null,null,null,null,null,null,null,null,null,null,null,null,"Gains financiers"]
[null,null,null,null,null,null,null,null,null,null,null,null,null,null,null,null,"Primes (2008) pour ce projet",null,null,null,null,{"$f":"Page_calcul!G9","v":2499.9999999999995},"€"]
[null,null,null,null,null,null,null,null,null,null,null,null,null,null,null,null,"Réductions fiscales (dépenses 2008)",null,null,null,null,{"$f":"Page_calcul!G12","v":0},"€"]
[null,null,null,null,null,null,null,null,{"$f":"EnergieProduite_kWc_m²!D29","v":15},null,null,null,null,null,null,null,"Rentrée en certificats verts (2008)",null,null,{"$f":"Certificats_Verts!J57","v":17.428571999999999},{"$f":"Certificats_Verts!K57","v":"CV/an pour 10 ans ------->"},{"$f":"Certificats_Verts!E57","v":1481.4286199999999},"€/an"]
[null,null,null,null,null,null,null,null,null,null,null,null,null,null,null,null,"Economie d'électricité",null,null,null,null,{"$f":"Page_calcul!H22","v":3123.3999999999996},"€/an"]
[null,null,null,null,null,null,null,null,null,null,null,null,null,null,null,null,"Autres primes",null,null,null,null,null,"€"]
[]
[]
[]
[]
[]
[]
[]
[]
[]
[]
[]
[]
[]
[null,null,null,null,null,null,null,"Par défaut, valeurs de l'institut"]
[]
[null,null,"Facteur de production solaire ",null,null,null,null,{"$f":"facteurSolair","v":930},"kWh/(kWc*an)"]
[]
[null,null,"Valeur d'un Certificat Vert (sur le marché) :",null,null,null,null,85,"€"]
[]
[null,null,"Tarif de l'électricité en journée :",null,null,null,null,{"$f":"VLOOKUP('choix-multiples'!F98,Coût_Net!D4:J9,7,FALSE)","v":0.2},"€/kWh"]
[]
[null,null,"Tarif de rachât de l'électricité :",null,null,null,null,0.05,"€/kWh"]
[null,null,null,null,null,null,null,null,null,null,null,null,null,null,null,null,null,null,null,null,null,null,null,null,null,null,null,null,null,null,null,null,{"$f":"(123+111+112+164+92+104+102+32)/8","v":105}]
[null,null,"Augmentation du prix de l'électricité :",null,null,null,null,5.8700000000000002E-2]
[]
[null,null,"Taux d''imposition de la société",null,null,null,null,33.99,"%"]
[]
[null,null,"Assurance Vol / Dégâts : ",null,null,null,null,{"$f":"Coût_Net!Q36","v":18.510000000000002},"€/an et par kWc"]
[]
[null,null,"Entretien :",null,null,null,null,0.01,"% de l'investissement inititial /an "]
[]
[null,null,"Aides régionales",null,null,null,null,{"$f":"IF(F98=1,0.25,0)","v":0}]
[]
[]
[]
[]
[]
[]
[]
[]
[null,null,null,null,null,null,null,null,null,null,null,null,null,null,null,null,null,null,"Conso élec moy (hors transp/comm)"]
[null,null,null,null,null,null,null,null,null,null,null,null,null,null,null,null,null,2005,{"$f":"(102+177+137+99+41+85)/6","v":106.83333333333333},{"$f":"(102+177+137+99+41+85+313)/7","v":136.28571428571428}]
[null,null,null,null,null,null,null,null,null,null,null,null,null,null,null,null,null,2010,{"$f":"(109+150+128+96+33+139)/6","v":109.16666666666667},{"$f":"(109+150+128+96+33+139+354)/7","v":144.14285714285714}]
[null,null,null,null,null,null,null,null,null,null,null,null,null,null,null,null,null,null,{"$f":"S70/S69","v":1.0218408736349456},{"$f":"T70/T69","v":1.0576519916142557}]
[]
[]
[]
[]
[]
[]
[]
[]
[]
[]
[null,null,{"$f":"IF(Tool!E24=\"\",Tool!F24,Tool!E24)","v":788000}]
[]
[]
[]
[]
[]
[]
[]
[]
[null,null,null,null,null,null,"Emission de CO2"]
[null,null,"Régions :",null,null,1,{"$f":"VLOOKUP(F92,F93:G96,2,FALSE)","v":394.5},"kgCO2/MWh évité"]
[null,null,"Région Bruxelles Capitale",null,null,1,394.5,"kgCO2/MWh évité"]
[]
[]
[]
[]
[null,null,"Type de secteur :",null,null,2,"Grossière estimation des consommations (kWh/an)"]
[null,null,{"$f":"VLOOKUP(\"Tertiaire sector\",Translations,LANG,FALSE)","v":"Secteur tertiaire"},null,null,1,{"$f":"H99*Tool!$G$21","v":90000},90,"kWh/m²",{"$f":"VLOOKUP(\"Vloeroppervlakte =\",Translations,LANG,FALSE)","v":"Surface de planchers ="},null,null,null,null,"m²",null,null,null,null,null,null,null,null,null,null,null,null,null,null,"\"\"","\"\""]
[null,null,{"$f":"VLOOKUP(\"Collectieve huisvesting\",Translations,LANG,FALSE)","v":"Logement collectif"},null,null,2,{"$f":"H100*Tool!$G$21","v":788000},788,"kWh/logement",{"$f":"VLOOKUP(\"Aantal woningen =\",Translations,LANG,FALSE)","v":"Nombre de logements ="},null,null,null,null,{"$f":"VLOOKUP(\"woningen\",Translations,LANG,FALSE)","v":"Logements"},null,null,"* Encoder le nombre d'habitations se partagent l'investissement et les bénéfices du système photovoltaïque.",null,null,null,null,null,null,null,null,null,null,null,"Duur van bezigheid van de woning =","jaren"]
[null,null,{"$f":"VLOOKUP(\"Huis\",Translations,LANG,FALSE)","v":"Maison individuelle"},null,null,3,{"$f":"H101*Tool!$G$21","v":3500000},3500,"kWh/m²",{"$f":"\"\"","v":""},null,null,null,null,{"$f":"\"\"","v":""},null,null,null,null,null,null,null,null,null,null,null,null,null,null,"Duur van bezigheid van de woning =","jaren"]
[null,null,{"$f":"VLOOKUP(\"Andere\",Translations,LANG,FALSE)","v":"Autre"},null,null,4,{"$f":"H102*Tool!$G$21","v":0},0,"kWh/m²",{"$f":"\"\"","v":""},null,null,null,null,{"$f":"\"\"","v":""},null,""]
[null,null,"PME",null,"PME",5,{"$f":"H103*Tool!$G$21","v":70000},70,"kWh/m²",{"$f":"VLOOKUP(\"Vloeroppervlakte =\",Translations,LANG,FALSE)","v":"Surface de planchers ="},null,null,null,null,"m²",null,null,"Télécharger le Vade-mecum URE du logement collectif : http://www.ibgebim.be/francais/pdf/Energie/07_Vademecum_log_col.pdf"]
[null,null,"Grande entreprise",null,"Grande entreprise",6,{"$f":"H104*Tool!$G$21","v":105000},105,"kWh/m²",{"$f":"VLOOKUP(\"Vloeroppervlakte =\",Translations,LANG,FALSE)","v":"Surface de planchers ="},null,null,null,null,"m²",null,null,""]
[null,null,null,null,null,null,null,null,null,null,null,null,null,null,null,null,"",null,null,null,null,""]
[null,null,"Prime :",null,null,null,null,null,null,2]
[null,null,{"$f":"VLOOKUP(\"Categorie basispremie\",Translations,LANG,FALSE)","v":"Catégorie de base"},null,null,null,null,null,null,1]
[null,null,{"$f":"VLOOKUP(\"Categorie gemiddeld inkomen\",Translations,LANG,FALSE)","v":"Catégorie revenus moyens"},null,null,null,null,null,null,2]
[null,null,{"$f":"VLOOKUP(\"Categorie laag inkomen\",Translations,LANG,FALSE)","v":"Catégorie faibles revenus"},null,null,null,null,null,null,3]
[]
[null,null,"Type d'assujettissement à la TVA :",null,null,null,null,2]
[null,null,{"$f":"VLOOKUP(\"BTW-plichtig of vrijgesteld van BTW\",Translations,LANG,FALSE)","v":"Assujetti ou exempté de TVA "},null,null,null,null,1,0,null,"%"]
[null,null,{"$f":"VLOOKUP(\"BTW-tarief van 6%\",Translations,LANG,FALSE)","v":"TVA à 6%"},null,null,null,null,2,6,null,"%"]
[null,null,{"$f":"VLOOKUP(\"BTW-tarief van 21%\",Translations,LANG,FALSE)","v":"TVA à 21%"},null,null,null,null,3,21,null,"%"]
[]
[null,null,"Etes-vous une personne morale ou un pouvoir public ? ",null,null,null,null,2]
[null,null,{"$f":"VLOOKUP(\"Ja\",Translations,LANG,FALSE)","v":"Oui"},null,null,null,null,1]
[null,null,{"$f":"VLOOKUP(\"Nee\",Translations,LANG,FALSE)","v":"Non"},null,null,null,null,2]
[]
[null,null,"Catégorie de revenu",null,null,null,null,1]
[null,null,{"$f":"VLOOKUP(\"Categorie basispremie\",Translations,LANG,FALSE)","v":"Catégorie de base"},null,null,null,null,1]
[null,null,{"$f":"VLOOKUP(\"Categorie gemiddeld inkomen\",Translations,LANG,FALSE)","v":"Catégorie revenus moyens"},null,null,null,null,2,null,null,null,null,null,null,null,null,null,null,null,null,"Rendement des différentes technologies"]
[null,null,{"$f":"VLOOKUP(\"Categorie laag inkomen\",Translations,LANG,FALSE)","v":"Catégorie faibles revenus"},null,null,null,null,3]
[]
[null,null,"Type de technologie : ",null,null,null,1]
[null,null,null,null,null,null,"Rendement de conversion \nassocié :",null,"Dégression",null,null,"Coût supplémentaire par rapport au prix de base :"]
[null,null,null,{"$f":"VLOOKUP(\"Polykristallijn (silicium)\",Translations,LANG,FALSE)","v":"Polycristallin"},null,1,15,"%",5.0000000000000001E-3,null,null,0,"%"]
[null,null,null,{"$f":"VLOOKUP(\"Monokristallijn (silicium)\",Translations,LANG,FALSE)","v":"Monocristallin"},null,2,16.5,"%",5.0000000000000001E-3,null,null,0,"%"]
[null,null,null,{"$f":"VLOOKUP(\"Monokristallijn (silicium) hoog rendement\",Translations,LANG,FALSE)","v":"Monocristallin haute performance"},null,3,19,"%",5.0000000000000001E-3,null,null,10,"%"]
[null,null,null,{"$f":"VLOOKUP(\"Weet niet\",Translations,LANG,FALSE)","v":"Par défaut"},null,7,13,"%",5.0000000000000001E-3,null,null,0,"%"]
[]
[null,null,"Type de montage :",null,null,2,{"$f":"VLOOKUP(F132,C133:E137,3,)","v":"Flat roof"}]
[null,null,null,null,"Mounting type",null,"Facteur d'efficacité associé :",null,null,"Facteur coût lié au type d'installation :"]
[null,null,1,{"$f":"VLOOKUP(\"mont_held\",Translations,LANG,FALSE)","v":"En surimposition sur une toiture inclinée"},"Superimposed on an inclined roof",1,100,"%",null,null,null,0,"%"]
[null,null,2,{"$f":"VLOOKUP(\"Plat dak\",Translations,LANG,FALSE)","v":"Toiture plate"},"Flat roof",2,100,"%",null,null,null,0,"%"]
[null,null,3,{"$f":"VLOOKUP(\"plat dak oost west\",Translations,LANG,FALSE)","v":"Toiture plate montage dos-à-dos Est-Ouest 10°"},"Flat roof back-to-back East-West",3,100,"%",null,null,null,0,"%"]
[null,null,4,{"$f":"VLOOKUP(\"Geïntegreerd in een hellend dak\",Translations,LANG,FALSE)","v":"En intégré dans une toiture inclinée"},"Built-in inclined roof",4,90,"%",null,null,null,20,"%"]
[]
[null,null,"Orientation et inclinaison des panneaux : ",null,null,3,{"$f":"VLOOKUP(F139,C141:E146,3,)","v":"Sud"}]
[null,null,null,null,null,"Inclinaison (°)"]
[null,null,null,{"$f":"VLOOKUP(\"Richting\",Translations,LANG,FALSE)","v":"Orientation"},"Orientation","0° (horizontal)","15°","25°","35°","40°","45°","50° ","70°","90° (vertical)"]
[null,null,1,{"$f":"VLOOKUP(\"Oosten\",Translations,LANG,FALSE)","v":"Est"},"Est",0.88,0.87,0.85,0.83,0.8,0.79,0.77,0.65,0.5]
[null,null,2,{"$f":"VLOOKUP(\"Zuidoosten\",Translations,LANG,FALSE)","v":"Sud-est"},"Sud-Est",0.88,0.93,0.95,0.95,0.94,0.93,0.92,0.81,0.64]
[null,null,3,{"$f":"VLOOKUP(\"Zuiden\",Translations,LANG,FALSE)","v":"Sud"},"Sud",0.88,0.96,0.99,1,0.99,0.98499999999999999,0.98,0.87,0.68]
[null,null,4,{"$f":"VLOOKUP(\"Zuidwesten\",Translations,LANG,FALSE)","v":"Sud-ouest"},"Sud-Ouest",0.88,0.93,0.95,0.95,0.94,0.93,0.92,0.81,0.64]
[null,null,5,{"$f":"VLOOKUP(\"Westen\",Translations,LANG,FALSE)","v":"Ouest"},"Ouest",0.88,0.87,0.85,0.82,0.8,0.79,0.76,0.65,0.5]
[null,null,null,null,null,"Source : "]
[null,null,null,null,null,"PVGIS (Geographical Assessment of Solar Energy Resource and Photovoltaic Technology, http://sunbird.jrc.it/pvgis/apps/pvest.php, données valables pour Philippeville)"]
[null,null,null,null,null,"http://www.ef4.be/fr/photovoltaique/aspects-techniques/orientation-structure.html",null,null,null,null,null,null,null,null,null,"'+ extrapolation pour 40° et 45°"]
[null,null,"Superficie :"]
[null,null,null,null,null,null,"Facteur coût associé à la superficie :"]
[null,null,null,"0 à 19m²",null,null,260,null,"€/m²"]
[null,null,null,"20 à 99 m²",null,null,{"$f":"$G$152+($G$152*L153/100)","v":{"$error":"#REF!"}},null,"€/m²",null,null,{"$f":"-Calcul_CoûtBrut_m²!#REF!*100","v":{"$error":"#REF!"}},"%"]
[null,null,null,"100 à 499 m²",null,null,{"$f":"$G$152+($G$152*L154/100)","v":{"$error":"#REF!"}},null,"€/m²",null,null,{"$f":"-Calcul_CoûtBrut_m²!#REF!*100","v":{"$error":"#REF!"}},"%"]
[null,null,null,"500 à 999 m²",null,null,{"$f":"$G$152+($G$152*L155/100)","v":{"$error":"#REF!"}},null,"€/m²",null,null,{"$f":"-Calcul_CoûtBrut_m²!#REF!*100","v":{"$error":"#REF!"}},"%"]
[null,null,null,"1000 à 10000 m²",null,null,{"$f":"$G$152+($G$152*L156/100)","v":{"$error":"#REF!"}},null,"€/m²",null,null,{"$f":"-Calcul_CoûtBrut_m²!#REF!*100","v":{"$error":"#REF!"}},"%"]
[]
[null,null,"Ombre portée :",null,null,null,null,2]
[null,null,null,"Aucun obstacle n'apporte de l'ombrage",null,null,null,1,null,null,null,null,null,""]
[null,null,null,"Obstacle apportant de l'ombrage",null,null,null,2,null,"Attention !"]
[]
[null,null,"A voir également : http://www.energiesparen.be/energiewinst/pv.php",null,null,null,null,null,null,null,null,""]
[]
[]
[]
[null,null,null,"Degression -> déplacé vers Type de technologie"]
[]
[]
[]
[]
[]
[]
[]
[null,null,null,null,1]
[null,null,null,{"$f":"VLOOKUP(\"Geen\",Translations,LANG,FALSE)","v":"Aucune"},1,0]
[null,null,null,{"$f":"VLOOKUP(\"Micro- en kleine ondernemingen 45%\",Translations,LANG,FALSE)","v":"Micro & Petite entreprise 45%"},2,0.45]
[null,null,null,{"$f":"VLOOKUP(\"Middelgrote ondernemingen 35%\",Translations,LANG,FALSE)","v":"Moyenne entreprise 35%"},3,0.35]
[null,null,null,{"$f":"VLOOKUP(\"Grote ondernemingen 25%\",Translations,LANG,FALSE)","v":"Grande entreprise 25%"},4,0.25]
[]
[]
[null,null,"Inclinaison des panneaux:",null,null,1,{"$f":"VLOOKUP(F181,C182:E185,3,)","v":15}]
[null,null,null,null,"Tilting"]
[null,null,1,"15°",15]
[null,null,2,"25°",25]
[null,null,3,"35°",35]

{"sheet":"Calculs surface","index":4,"n_rows":17,"n_cols":4,"rows_kept":17,"cut":false,"hidden":true,"merged":[]}
["Ratio entre la surface de toiture disponible et la surface de capteur installable selon l'inclinaison"]
[null,"Inclinaison",null,"Facteur F"]
[{"$f":"'choix-multiples'!E134","v":"Superimposed on an inclined roof"},null,{"$f":"A3","v":"Superimposed on an inclined roof"},0.8]
[{"$f":"'choix-multiples'!E137","v":"Built-in inclined roof"},null,{"$f":"A4","v":"Built-in inclined roof"},0.8]
[{"$f":"'choix-multiples'!E135","v":"Flat roof"},{"$f":"'choix-multiples'!E185","v":35},{"$f":"A5&\"-\"&B5","v":"Flat roof-35"},0.3]
[{"$f":"A5","v":"Flat roof"},{"$f":"'choix-multiples'!E184","v":25},"Flat roof-25",0.35]
[{"$f":"A6","v":"Flat roof"},{"$f":"'choix-multiples'!E183","v":15},"Flat roof-15",0.43]
[{"$f":"'choix-multiples'!E136","v":"Flat roof back-to-back East-West"},null,{"$f":"A8","v":"Flat roof back-to-back East-West"},0.61]
[]
[]
["Configuration"]
["Mounting type",{"$f":"MountingTypeValue","v":"Flat roof"}]
["Tilting value",{"$f":"TiltingValue","v":15}]
["East-West mounting?"]
[]
["Total configuration","Facteur F"]
[{"$f":"IF(OR(B12='choix-multiples'!E134,B12='choix-multiples'!E137,B12='choix-multiples'!E136),B12,IF(AND(B12='choix-multiples'!E135,B14=TRUE),C8,B12&\"-\"&B13))","v":"Flat roof-15"},{"$f":"VLOOKUP(A17,C3:D8,2,FALSE)","v":0.43}]

{"sheet":"Facteur solaire","index":5,"n_rows":47,"n_cols":18,"rows_kept":47,"cut":false,"hidden":false,"merged":[[5,9,5,16]]}
[null,"Orientation","Inclinaison (°)","Production (kWh/kWc)","Max plein sud ",920]
[{"$f":"B2&\"-\"&C2","v":"Sud-0"},"Sud",0]
[{"$f":"B3&\"-\"&C3","v":"Sud-10"},"Sud",10]
["Sud-15","Sud",15,{"$f":"K27*maxsud35","v":892.4}]
["Sud-25","Sud",25,{"$f":"L27*maxsud35","v":910.8},null,null,null,"Orientation des panneaux : "]
["Sud-35","Sud",35,{"$f":"M27*maxsud35","v":920},null,null,null,null,null,"Inclinaison (°)"]
["Sud-40","Sud",40,null,null,null,null,null,null,{"$f":"I21","v":0},{"$f":"I23","v":5},{"$f":"I24","v":0},{"$f":"I25","v":1},{"$f":"I26","v":2},{"$f":"I27","v":3},{"$f":"I28","v":4},{"$f":"I29","v":5},9]
["Sud-45","Sud",45,null,null,null,null,null,{"$f":"'choix-multiples'!K97","v":0},{"$f":"VLOOKUP($D$49,$D$51:$N$57,2,FALSE)","v":{"$error":"#N/A"}},{"$f":"VLOOKUP($D$49,$D$51:$N$57,3,FALSE)","v":{"$error":"#N/A"}},{"$f":"VLOOKUP($D$49,$D$51:$N$57,4,FALSE)","v":{"$error":"#N/A"}},{"$f":"VLOOKUP($D$49,$D$51:$N$57,5,FALSE)","v":{"$error":"#N/A"}},{"$f":"VLOOKUP($D$49,$D$51:$N$57,6,FALSE)","v":{"$error":"#N/A"}},{"$f":"VLOOKUP($D$49,$D$51:$N$57,7,FALSE)","v":{"$error":"#N/A"}},{"$f":"VLOOKUP($D$49,$D$51:$N$57,8,FALSE)","v":{"$error":"#N/A"}},{"$f":"VLOOKUP($D$49,$D$51:$N$57,9,FALSE)","v":{"$error":"#N/A"}},{"$f":"VLOOKUP($D$49,$D$51:$N$57,10,FALSE)","v":{"$error":"#N/A"}}]
["Sud-50","Sud",50]
["Sud-70","Sud",70,null,null,null,null,"Est",1,0.87,0.88,0.87,0.84,0.82,0.8,0.78,0.69,0.89]
["Sud-Est-0","Sud-Est",0,null,null,null,null,"Sud-est",2,0.87,0.95,0.96,0.96,0.95,0.94,0.92,0.82,0.94]
["Sud-Est-10","Sud-Est",10,null,null,null,null,"Sud",3,0.87,0.97,0.99,1,1,0.98499999999999999,0.97,0.87,0.96]
["Sud-Est-15","Sud-Est",15,{"$f":"K26*F1","v":874},null,null,null,"Sud-ouest",4,0.87,0.95,0.96,0.96,0.96,0.95,0.93,0.84,0.94]
["Sud-Est-25","Sud-Est",25,{"$f":"L26*maxsud35","v":883.19999999999993},null,null,null,"Ouest",5,0.87,0.88,0.86,0.84,0.82,0.8,0.78,0.68,0.89]
["Sud-Est-35","Sud-Est",35,{"$f":"M26*maxsud35","v":883.19999999999993},null,null,null,"Oost west",6,0.92,0.92,0.92,0.92,0.92,0.92,0.92,0.92,0.92]
["Sud-Est-40","Sud-Est",40]
["Sud-Est-45","Sud-Est",45,null,null,null,null,"Inclinaison : ",null,"Facteur d'efficacité associé à l'orientation et l'inclinaison"]
["Sud-Est-50","Sud-Est",50]
["Sud-Est-70","Sud-Est",70]
["Sud-Ouest-0","Sud-Ouest",0,null,null,null,null,"Orientation des panneaux : "]
["Sud-Ouest-10","Sud-Ouest",10,null,null,null,null,null,null,"Inclinaison (°)"]
["Sud-Ouest-15","Sud-Ouest",15,{"$f":"K28*maxsud35","v":874},null,null,null,null,null,null,15,25,35]
["Sud-Ouest-25","Sud-Ouest",25,{"$f":"L28*maxsud35","v":883.19999999999993},null,null,null,null,5,null,0.88,0.86,0.84]
["Sud-Ouest-35","Sud-Ouest",35,{"$f":"M28*maxsud35","v":883.19999999999993}]
["Sud-Ouest-40","Sud-Ouest",40,null,null,null,null,"Est",1,null,0.88,0.87,0.84]
["Sud-Ouest-45","Sud-Ouest",45,null,null,null,null,"Sud-Est",2,null,0.95,0.96,0.96]
["Sud-Ouest-50","Sud-Ouest",50,null,null,null,null,"Sud",3,null,0.97,0.99,1]
["Sud-Ouest-70","Sud-Ouest",70,null,null,null,null,"Sud-Ouest",4,null,0.95,0.96,0.96]
["Est-0","Est",0,null,null,null,null,"Ouest",5,null,0.88,0.86,0.84]
["Est-10","Est",10,null,null,null,null,"Oost west",6,null,0.92,0.92,0.92]
["Est-15","Est",15,{"$f":"K25*maxsud35","v":809.6}]
["Est-25","Est",25,{"$f":"L25*maxsud35","v":800.4},null,null,null,"Inclinaison : ",null,"Facteur d'efficacité associé à l'orientation et l'inclinaison"]
["Est-35","Est",35,{"$f":"M25*maxsud35","v":772.8}]
["Est-40","Est",40,null,null,null,null,"Type montage",{"$f":"MountingTypeValue","v":"Flat roof"}]
["Est-45","Est",45,null,null,null,null,"Orientation",{"$f":"IF(I34='choix-multiples'!E136,B47,OrientationValue)","v":"Sud"}]
["Est-50","Est",50]
["Est-70","Est",70,null,null,null,null,"Tilting value",{"$f":"IF(I34='choix-multiples'!E136,C47,TiltingValue)","v":15}]
["Ouest-0","Ouest",0]
["Ouest-10","Ouest",10,null,null,null,null,{"$f":"D1","v":"Production (kWh/kWc)"},{"$f":"VLOOKUP(I40,A:D,4,FALSE)","v":892.4}]
["Ouest-15","Ouest",15,{"$f":"K29*maxsud35","v":809.6},null,null,null,"Combinaison Orientation-inclinaison",{"$f":"I35&\"-\"&I37","v":"Sud-15"}]
["Ouest-25","Ouest",25,{"$f":"L29*maxsud35","v":791.19999999999993}]
["Ouest-35","Ouest",35,{"$f":"M29*maxsud35","v":772.8}]
["Ouest-40","Ouest",40]
["Ouest-45","Ouest",45]
["Ouest-50","Ouest",50]
["Ouest-70","Ouest",70]
[{"$f":"B47&\"-\"&C47","v":"Est-Ouest-10"},"Est-Ouest",10,820]

{"sheet":"Page_calcul","index":6,"n_rows":82,"n_cols":31,"rows_kept":82,"cut":false,"hidden":false,"merged":[[18,28,18,29],[17,23,17,29],[17,11,17,13],[17,14,17,18],[17,20,17,22],[52,1,52,4],[53,1,53,4],[63,10,63,11],[17,7,17,8],[17,9,17,10],[17,5,18,5],[17,6,18,6]]}
[]
[null,null,"Page de calcul de l'amortissement d'une installation solaire photovoltaïque"]
[null,null,null,null,null,null,null,null,"Durée de vie économique",30,"ans"]
[null,null,"Investissement total",null,null,null,{"$f":"IF(Tool!E104<1,Tool!F104,Tool!E104)","v":15245.98},"€","Consommation projetée ",{"$f":"IF(Tool!E24=\"\",Tool!F24,Tool!E24)","v":788000},"kWh/an",null,null,null,null,null,null,null,null,null,"Temps de retour (ans)",{"$f":"AE52","v":5.4010777949809894}]
[null,null,"Montant Primes énergies ou Subsides",null,null,null,{"$f":"Coût_Net!E36*100","v":16.397765181378958},"%","Taux d'imposition",{"$f":"IF(Tool!E116=\"\",Tool!F116,Tool!E116)","v":0},null,null,null,null,null,null,null,null,null,null,"TRI (10 ans)",{"$f":"AB31","v":0.140034742412394}]
[null,null,null,"Prime énergie ou subside possible",null,null,{"$f":"G4*(G5/100)","v":2499.9999999999995},"€","Augmentation prix électricité",{"$f":"IF(Tool!E68=\"\",Tool!F68,Tool!E68)","v":5.8700000000000002E-2},null,null,null,null,null,null,null,null,null,null,"TRI (20 ans)",{"$f":"AB41","v":0.1785735948165561}]
[]
[null,null,null,"Conditions plafonnantes",null,null,{"$f":"IF('choix-multiples'!J106=1,0,Coût_Net!F36)","v":4573.7939999999999},"€"]
[null,null,null,"Primes énergies réelles",null,null,{"$f":"IF(G6<G8,G6,G8)","v":2499.9999999999995},"€","Investissement brut",{"$f":"IF(Tool!E104=\"\",Tool!F104,Tool!E104)","v":15245.98},null,null,null,null,null,null,null,null,null,null,"Coût de remplacement de l'onduleur",{"$f":"0.07*G14","v":1067.2186000000002},"à l'année",15]
[null,null,"Aides régionales entreprises",null,null,null,{"$f":"J12","v":0},"€"]
[null,null,"Primes réelles",null,null,null,null,"€"]
[null,null,"Réduction d'impôt/déduction fiscale",null,null,null,{"$f":"Déductions_fiscales!U23","v":0},"€","Aides régionales",0]
[null,null,"Investissement primes déduites",null,null,null,{"$f":"G4-Tool!E106","v":15245.98},"€"]
[null,null,"Investissement net",null,null,null,{"$f":"Tool!E112","v":15245.98},"€"]
[]
[]
[null,null,"Charge Financière par an en ... ans (K+int) sur le TOTAL de l'investissement",null,null,null,null,null,null,null,null,{"$f":"Coût_Net!N36","v":0},"€/an"]
[null,null,"Durée de l'amortissement fiscale (année) ",null,null,"Consommation électricque","Production électrique","Electricité consommée vs injectée",null,"Prix électricité   ",null,"Dépenses",null,null,"Revenues/économies",null,null,null,null,null,"Aspects fiscaux",null,null,"Totaux"]
[null,null,null,null,null,null,null,"Taux autoconsommation",{"$f":"Tool!E70","v":0.35},"Achat (€/kWh TVAC)","Vente (€/kWh TVAC)","Investissement","Entretien ","Assurance","Certificats Verts (€/an)","Economie sur facture","Vente électricité","Economies Isoc ","Primes",null,"Déduction/réductions d'Impôts ","Amortissement ","Balance","Dépenses","Revenus","Flux de trésorerie","VAN","TRI","Temps de retour"]
[null,1,"Année","kWc installés","m²","kWh/an","kWh/an","Autoconsommation (kWh/an)","Injection (kWh/an)",{"$f":"IF(Tool!E64=\"\",Tool!F64,Tool!E64)","v":0.36373584905660378},{"$f":"IF(Tool!E66=\"\",Tool!F66,Tool!E66)","v":0.04},"€",{"$f":"IF(Tool!E97=\"\",Tool!F97,Tool!E97)","v":225},0,"€/an","€/an","€/an",null,"€","Remboursement (K+I)","€",10,null,null,null,null,{"$f":"IF(Tool!E118=\"\",Tool!F118,Tool!E118)","v":0},"Gains annuel sur temps de vie (€)"]
[null,null,0,null,null,null,null,null,null,null,null,{"$f":"G13","v":15245.98},null,null,null,null,null,null,null,null,null,null,null,{"$f":"SUM(L21:N21)","v":15245.98},{"$f":"SUM(O21:S21)","v":0},{"$f":"Y21-X21-W21","v":-15245.98},{"$f":"Z21","v":-15245.98}]
[null,{"$f":"IF(#REF!<0,0,1)","v":{"$error":"#REF!"}},1,{"$f":"_cmt_peak_used","v":10},{"$f":"SurfaceUsed","v":47.761194029850749},{"$f":"J4","v":788000},{"$f":"Tool!$E$52","v":8924},{"$f":"$I$19*G22","v":3123.3999999999996},{"$f":"G22-H22","v":5800.6},{"$f":"J20","v":0.36373584905660378},{"$f":"K20","v":0.04},0,0,{"$f":"N20*D22","v":0},{"$f":"Certificats_Verts!$E$57*G22/$G$22","v":1481.4286199999999},{"$f":"H22*J22","v":1136.0925509433962},{"$f":"I22*K22","v":232.02400000000003},{"$f":"Coût_Net!P36","v":0},{"$f":"G11","v":0},{"$f":"L17","v":0},{"$f":"IF(OR('choix-multiples'!$F$98=1,'choix-multiples'!$F$98=4),Tool!E108,MIN(Tool!E108,3680))","v":0},{"$f":"IF('choix-multiples'!$F$98=1,IF(C22<=$V$20,$L$21/$V$20,0),0)","v":0},{"$f":"IF(OR('choix-multiples'!$F$98=1,'choix-multiples'!$F$98=4),J5*(O22+P22+Q22-L22-M22-N22-U22-V22),-U22)","v":0},{"$f":"SUM(L22:N22)","v":0},2849.545170943396,{"$f":"Y22-X22-W22","v":2849.545170943396},{"$f":"NPV($AA$20,$Z$22:Z22)+$Z$21","v":-12396.434829056603},{"$f":"IRR($Z$21:Z22,-0.8)","v":-0.81309530965255128},0,{"$f":"AC22*C22","v":0},{"$f":"0-(0-C22)/(AA21*AA22)*AA21","v":-8.0668354554331337E-5}]
[null,{"$f":"IF(#REF!<0,0,1)","v":{"$error":"#REF!"}},2,10,{"$f":"$E$22","v":47.761194029850749},{"$f":"$F$22","v":788000},{"$f":"IF(C23<=P64,G22,G22*(1-$M$64))","v":8879.3799999999992},{"$f":"$I$19*G23","v":3107.7829999999994},{"$f":"G23-H23","v":5771.5969999999998},{"$f":"J22*(1+$J$6)","v":0.38508714339622641},{"$f":"K22*(1+$J$6)","v":4.2347999999999997E-2},0,{"$f":"IF(C23=X$9,V$9+M$20,M$20)","v":225},{"$f":"N22","v":0},{"$f":"Certificats_Verts!$E$57*G23/$G$22","v":1474.0214768999999},{"$f":"H23*J23","v":1196.7672777653545},{"$f":"I23*K23","v":244.41558975599997},{"$f":"R22","v":0},null,{"$f":"T22","v":0},{"$f":"IF(OR('choix-multiples'!$F$98=1,'choix-multiples'!$F$98=4),0,MIN(Tool!$E$108-Page_calcul!U22,3680))","v":0},{"$f":"IF('choix-multiples'!$F$98=1,IF(C23<=$V$20,$L$21/$V$20,0),0)","v":0},{"$f":"IF(OR('choix-multiples'!$F$98=1,'choix-multiples'!$F$98=4),J5*(O23+P23+Q23-L23-M23-N23-U23-V23),-U23)","v":0},225,2915.2043444213546,2690.2043444213546,{"$f":"NPV($AA$20,$Z$22:Z23)+$Z$21","v":-9706.230484635249},{"$f":"IRR($Z$21:Z23,-0.8)","v":-0.47621441495577188},{"$f":"IF(AND(AA23>0,SUM($AC$22:AC22)<1),1,0)","v":0},0,{"$f":"IF(AND(AA23>0,SUM($AC$22:AC22)<1),C22-(C22-C23)/(AA22-AA23)*AA22,0)","v":0}]
[null,{"$f":"IF(#REF!<0,0,1)","v":{"$error":"#REF!"}},3,10,{"$f":"$E$22","v":47.761194029850749},{"$f":"$F$22","v":788000},{"$f":"IF(C24<=P65,G23,G23*(1-$M$64))","v":8834.9830999999995},3092.2440849999998,5742.7390149999992,{"$f":"J23*(1+$J$6)","v":0.40769175871358487},{"$f":"K23*(1+$J$6)","v":4.4833827599999994E-2},0,{"$f":"IF(C24=X$9,V$9+M$20,M$20)","v":225},{"$f":"N23","v":0},{"$f":"Certificats_Verts!$E$57*G24/$G$22","v":1466.6513695154997},{"$f":"H24*J24","v":1260.6824293853299},257.46897095030374,0,null,{"$f":"T23","v":0},{"$f":"IF(OR('choix-multiples'!$F$98=1,'choix-multiples'!$F$98=4),0,MIN(Tool!$E$108-(Page_calcul!U22+U23),3680))","v":0},{"$f":"IF('choix-multiples'!$F$98=1,IF(C24<=$V$20,$L$21/$V$20,0),0)","v":0},{"$f":"IF(OR('choix-multiples'!$F$98=1,'choix-multiples'!$F$98=4),Tool!$F$116*(O24+P24+Q24-L24-M24-N24-U24-V24),-U24)","v":0},225,2984.8027698511332,2759.8027698511332,{"$f":"NPV($AA$20,$Z$22:Z24)+$Z$21","v":-6946.4277147841167},{"$f":"IRR($Z$21:Z24,-0.8)","v":-0.25276138988372188},{"$f":"IF(AND(AA24>0,SUM($AC$22:AC23)<1),1,0)","v":0},0,{"$f":"IF(AND(AA24>0,SUM($AC$22:AC23)<1),C23-(C23-C24)/(AA23-AA24)*AA23,0)","v":0}]
[null,{"$f":"IF(#REF!<0,0,1)","v":{"$error":"#REF!"}},4,10,47.761194029850749,788000,8790.8081844999997,3076.7828645749996,5714.0253199250001,{"$f":"J24*(1+$J$6)","v":0.43162326495007231},4.7465573280119994E-2,0,225,0,{"$f":"Certificats_Verts!$E$57*G25/$G$22","v":1459.3181126679224},1328.0110655502974,271.21948754736115,0,null,0,{"$f":"IF(OR('choix-multiples'!$F$98=1,'choix-multiples'!$F$98=4),0,MIN(Tool!$E$108-(Page_calcul!U22+U23+U24),3680))","v":0},{"$f":"IF('choix-multiples'!$F$98=1,IF(C25<=$V$20,$L$21/$V$20,0),0)","v":0},{"$f":"IF(OR('choix-multiples'!$F$98=1,'choix-multiples'!$F$98=4),Tool!$F$116*(O25+P25+Q25-L25-M25-N25-U25-V25),-U25)","v":0},225,3058.5486657655806,2833.5486657655806,{"$f":"NPV($AA$20,$Z$22:Z25)+$Z$21","v":-4112.8790490185365},{"$f":"IRR($Z$21:Z25,-0.8)","v":-0.1147980495726928},{"$f":"IF(AND(AA25>0,SUM($AC$22:AC24)<1),1,0)","v":0},0,{"$f":"IF(AND(AA25>0,SUM($AC$22:AC24)<1),C24-(C24-C25)/(AA24-AA25)*AA24,0)","v":0}]
[null,{"$f":"IF(#REF!<0,0,1)","v":{"$error":"#REF!"}},5,10,47.761194029850749,788000,8746.8541435775005,3061.3989502521249,5685.4551933253751,0.45695955060264154,5.0251802431663037E-2,0,225,0,{"$f":"Certificats_Verts!$E$57*G26/$G$22","v":1452.021522104583},1398.9354885226096,285.70437110905931,0,null,0,0,{"$f":"IF('choix-multiples'!$F$98=1,IF(C26<=$V$20,$L$21/$V$20,0),0)","v":0},{"$f":"IF(OR('choix-multiples'!$F$98=1,'choix-multiples'!$F$98=4),Tool!$F$116*(O26+P26+Q26-L26-M26-N26-U26-V26),0)","v":0},225,3136.6613817362518,2911.6613817362518,{"$f":"NPV($AA$20,$Z$22:Z26)+$Z$21","v":-1201.2176672822843},{"$f":"IRR($Z$21:Z26,-0.8)","v":-2.6578901589687121E-2},{"$f":"IF(AND(AA26>0,SUM($AC$22:AC25)<1),1,0)","v":0},0,{"$f":"IF(AND(AA26>0,SUM($AC$22:AC25)<1),C25-(C25-C26)/(AA25-AA26)*AA25,0)","v":0}]
[null,{"$f":"IF(#REF!<0,0,1)","v":{"$error":"#REF!"}},6,10,47.761194029850749,788000,8703.1198728596137,3046.0919555008645,5657.0279173587496,0.48378307622301658,5.3201583234401655E-2,0,225,0,{"$f":"Certificats_Verts!$E$57*G27/$G$22","v":1444.7614144940601},1473.6477366903923,300.96284160469537,0,null,0,0,{"$f":"IF('choix-multiples'!$F$98=1,IF(C27<=$V$20,$L$21/$V$20,0),0)","v":0},{"$f":"IF(OR('choix-multiples'!$F$98=1,'choix-multiples'!$F$98=4),Tool!$F$116*(O27+P27+Q27-L27-M27-N27-U27-V27),0)","v":0},225,3219.371992789148,2994.371992789148,{"$f":"NPV($AA$20,$Z$22:Z27)+$Z$21","v":1793.1543255068646},{"$f":"IRR($Z$21:Z27,-0.8)","v":3.2320417806886992E-2},{"$f":"IF(AND(AA27>0,SUM($AC$22:AC26)<1),1,0)","v":1},6,{"$f":"IF(AND(AA27>0,SUM($AC$22:AC26)<1),C26-(C26-C27)/(AA26-AA27)*AA26,0)","v":5.4011584633355438}]
[null,{"$f":"IF(#REF!<0,0,1)","v":{"$error":"#REF!"}},7,10,47.761194029850749,788000,8659.6042734953153,3030.8614957233603,5628.7427777719549,0.51218114279730764,5.6324516170261033E-2,0,225,0,{"$f":"Certificats_Verts!$E$57*G28/$G$22","v":1437.5376074215897},1552.3501045399478,317.03621360485647,0,null,0,0,{"$f":"IF('choix-multiples'!$F$98=1,IF(C28<=$V$20,$L$21/$V$20,0),0)","v":0},{"$f":"IF(OR('choix-multiples'!$F$98=1,'choix-multiples'!$F$98=4),Tool!$F$116*(O28+P28+Q28-L28-M28-N28-U28-V28),0)","v":0},225,3306.9239255663938,3081.9239255663938,{"$f":"NPV($AA$20,$Z$22:Z28)+$Z$21","v":4875.078251073257},{"$f":"IRR($Z$21:Z28,-0.8)","v":7.3168821497830772E-2},{"$f":"IF(AND(AA28>0,SUM($AC$22:AC27)<1),1,0)","v":0},0,{"$f":"IF(AND(AA28>0,SUM($AC$22:AC27)<1),C27-(C27-C28)/(AA27-AA28)*AA27,0)","v":0}]
[null,{"$f":"IF(#REF!<0,0,1)","v":{"$error":"#REF!"}},8,10,47.761194029850749,788000,8616.3062521278389,3015.7071882447435,5600.5990638830954,0.54224617587950963,5.9630765269455356E-2,0,225,0,{"$f":"Certificats_Verts!$E$57*G29/$G$22","v":1430.3499193844816},1635.2556903980606,333.96800814674424,0,null,0,0,{"$f":"IF('choix-multiples'!$F$98=1,IF(C29<=$V$20,$L$21/$V$20,0),0)","v":0},{"$f":"IF(OR('choix-multiples'!$F$98=1,'choix-multiples'!$F$98=4),Tool!$F$116*(O29+P29+Q29-L29-M29-N29-U29-V29),0)","v":0},225,3399.5736179292862,3174.5736179292862,{"$f":"NPV($AA$20,$Z$22:Z29)+$Z$21","v":8049.6518690025441},{"$f":"IRR($Z$21:Z29,-0.8)","v":0.1024101628608034},{"$f":"IF(AND(AA29>0,SUM($AC$22:AC28)<1),1,0)","v":0},0,{"$f":"IF(AND(AA29>0,SUM($AC$22:AC28)<1),C28-(C28-C29)/(AA28-AA29)*AA28,0)","v":0}]
[null,{"$f":"IF(#REF!<0,0,1)","v":{"$error":"#REF!"}},9,10,47.761194029850749,788000,8573.2247208671997,3000.6286523035196,5572.5960685636801,0.57407602640363686,6.3131091190772384E-2,0,225,0,{"$f":"Certificats_Verts!$E$57*G30/$G$22","v":1423.1981697875594},1722.5889734273046,351.80407057383337,0,null,0,0,{"$f":"IF('choix-multiples'!$F$98=1,IF(C30<=$V$20,$L$21/$V$20,0),0)","v":0},{"$f":"IF(OR('choix-multiples'!$F$98=1,'choix-multiples'!$F$98=4),Tool!$F$116*(O30+P30+Q30-L30-M30-N30-U30-V30),0)","v":0},225,3497.5912137886976,3272.5912137886976,{"$f":"NPV($AA$20,$Z$22:Z30)+$Z$21","v":11322.243082791243},{"$f":"IRR($Z$21:Z30,-0.8)","v":0.12389778447142796},{"$f":"IF(AND(AA30>0,SUM($AC$22:AC29)<1),1,0)","v":0},0,{"$f":"IF(AND(AA30>0,SUM($AC$22:AC29)<1),C29-(C29-C30)/(AA29-AA30)*AA29,0)","v":0}]
[null,{"$f":"IF(#REF!<0,0,1)","v":{"$error":"#REF!"}},10,10,47.761194029850749,788000,8530.3585972628644,2985.6255090420022,5544.7330882208626,0.60777428915353038,6.6836886243670721E-2,0,225,0,{"$f":"Certificats_Verts!$E$57*G31/$G$22","v":1416.0821789386216},1814.5864214366502,370.59269466893483,0,null,0,0,{"$f":"IF('choix-multiples'!$F$98=1,IF(C31<=$V$20,$L$21/$V$20,0),0)","v":0},{"$f":"IF(OR('choix-multiples'!$F$98=1,'choix-multiples'!$F$98=4),Tool!$F$116*(O31+P31+Q31-L31-M31-N31-U31-V31),0)","v":0},225,3601.2612950442067,3376.2612950442067,{"$f":"NPV($AA$20,$Z$22:Z31)+$Z$21","v":14698.504377835448},{"$f":"IRR($Z$21:Z31,-0.8)","v":0.140034742412394},{"$f":"IF(AND(AA31>0,SUM($AC$22:AC30)<1),1,0)","v":0},0,{"$f":"IF(AND(AA31>0,SUM($AC$22:AC30)<1),C30-(C30-C31)/(AA30-AA31)*AA30,0)","v":0}]
[null,{"$f":"IF(#REF!<0,0,1)","v":{"$error":"#REF!"}},11,10,47.761194029850749,788000,8487.7068042765495,2970.6973814967923,5517.0094227797572,0.64345063992684259,7.0760211466174186E-2,0,225,0,{"$f":"Certificats_Verts!$F$57*(G32/$G$22)","v":0},1911.4971311531067,390.38475341677122,0,null,0,0,{"$f":"IF('choix-multiples'!$F$98=1,IF(C32<=$V$20,$L$21/$V$20,0),0)","v":0},{"$f":"IF(OR('choix-multiples'!$F$98=1,'choix-multiples'!$F$98=4),Tool!$F$116*(O32+P32+Q32-L32-M32-N32-U32-V32),0)","v":0},225,2301.8818845698779,2076.8818845698779,{"$f":"NPV($AA$20,$Z$22:Z32)+$Z$21","v":16775.386262405325},{"$f":"IRR($Z$21:Z32,-0.8)","v":0.14761590800674007},{"$f":"IF(AND(AA32>0,SUM($AC$22:AC31)<1),1,0)","v":0},0,{"$f":"IF(AND(AA32>0,SUM($AC$22:AC31)<1),C31-(C31-C32)/(AA31-AA32)*AA31,0)","v":0}]
[null,{"$f":"IF(#REF!<0,0,1)","v":{"$error":"#REF!"}},12,10,47.761194029850749,788000,8445.2682702551665,2955.8438945893081,5489.424375665858,0.68122119249054824,7.4913835879238611E-2,0,225,0,{"$f":"Certificats_Verts!$F$57*(G33/$G$22)","v":0},2013.5835026880347,411.23383675012394,0,null,0,0,{"$f":"IF('choix-multiples'!$F$98=1,IF(C33<=$V$20,$L$21/$V$20,0),0)","v":0},{"$f":"IF(OR('choix-multiples'!$F$98=1,'choix-multiples'!$F$98=4),Tool!$F$116*(O33+P33+Q33-L33-M33-N33-U33-V33),0)","v":0},225,2424.8173394381588,2199.8173394381588,{"$f":"NPV($AA$20,$Z$22:Z33)+$Z$21","v":18975.203601843485},{"$f":"IRR($Z$21:Z33,-0.8)","v":0.15399132347397382},{"$f":"IF(AND(AA33>0,SUM($AC$22:AC32)<1),1,0)","v":0},0,{"$f":"IF(AND(AA33>0,SUM($AC$22:AC32)<1),C32-(C32-C33)/(AA32-AA33)*AA32,0)","v":0}]
[null,{"$f":"IF(#REF!<0,0,1)","v":{"$error":"#REF!"}},13,10,47.761194029850749,788000,8403.0419289038909,2941.0646751163617,5461.9772537875288,0.72120887648974341,7.9311278045349917E-2,0,225,0,{"$f":"Certificats_Verts!$F$57*(G34/$G$22)","v":0},2121.1219500243433,433.19639665251947,0,null,0,0,{"$f":"IF('choix-multiples'!$F$98=1,IF(C34<=$V$20,$L$21/$V$20,0),0)","v":0},{"$f":"IF(OR('choix-multiples'!$F$98=1,'choix-multiples'!$F$98=4),Tool!$F$116*(O34+P34+Q34-L34-M34-N34-U34-V34),0)","v":0},225,2554.3183466768628,2329.3183466768628,{"$f":"NPV($AA$20,$Z$22:Z34)+$Z$21","v":21304.521948520345},{"$f":"IRR($Z$21:Z34,-0.8)","v":0.15935658748261683},{"$f":"IF(AND(AA34>0,SUM($AC$22:AC33)<1),1,0)","v":0},0,{"$f":"IF(AND(AA34>0,SUM($AC$22:AC33)<1),C33-(C33-C34)/(AA33-AA34)*AA33,0)","v":0}]
[null,{"$f":"IF(#REF!<0,0,1)","v":{"$error":"#REF!"}},14,10,47.761194029850749,788000,8361.026719259371,2926.3593517407799,5434.6673675185912,0.76354383753969135,8.3966850066611962E-2,0,225,0,{"$f":"Certificats_Verts!$F$57*(G35/$G$22)","v":0},2234.4036494483184,456.33190001034228,0,null,0,0,{"$f":"IF('choix-multiples'!$F$98=1,IF(C35<=$V$20,$L$21/$V$20,0),0)","v":0},{"$f":"IF(OR('choix-multiples'!$F$98=1,'choix-multiples'!$F$98=4),Tool!$F$116*(O35+P35+Q35-L35-M35-N35-U35-V35),0)","v":0},225,2690.7355494586609,2465.7355494586609,{"$f":"NPV($AA$20,$Z$22:Z35)+$Z$21","v":23770.257497979004},{"$f":"IRR($Z$21:Z35,-0.8)","v":0.16388010476764348},{"$f":"IF(AND(AA35>0,SUM($AC$22:AC34)<1),1,0)","v":0},0,{"$f":"IF(AND(AA35>0,SUM($AC$22:AC34)<1),C34-(C34-C35)/(AA34-AA35)*AA34,0)","v":0}]
[null,{"$f":"IF(#REF!<0,0,1)","v":{"$error":"#REF!"}},15,10,47.761194029850749,788000,8319.2215856630737,2911.7275549820756,5407.4940306809985,0.80836386080327116,8.8895704165522088E-2,0,1292.2186000000002,0,{"$f":"Certificats_Verts!$F$57*(G36/$G$22)","v":0},2353.7353279525796,480.70298962824467,0,null,0,0,{"$f":"IF('choix-multiples'!$F$98=1,IF(C36<=$V$20,$L$21/$V$20,0),0)","v":0},{"$f":"IF(OR('choix-multiples'!$F$98=1,'choix-multiples'!$F$98=4),Tool!$F$116*(O36+P36+Q36-L36-M36-N36-U36-V36),0)","v":0},1292.2186000000002,2834.4383175808243,1542.2197175808242,{"$f":"NPV($AA$20,$Z$22:Z36)+$Z$21","v":25312.477215559829},{"$f":"IRR($Z$21:Z36,-0.8)","v":0.16617185728794515},{"$f":"IF(AND(AA36>0,SUM($AC$22:AC35)<1),1,0)","v":0},0,{"$f":"IF(AND(AA36>0,SUM($AC$22:AC35)<1),C35-(C35-C36)/(AA35-AA36)*AA35,0)","v":0}]
[null,{"$f":"IF(#REF!<0,0,1)","v":{"$error":"#REF!"}},16,10,47.761194029850749,788000,8277.6254777347585,2897.1689172071651,5380.456560527593,0.85581481943242321,9.4113882000038229E-2,0,225,0,{"$f":"Certificats_Verts!$G$57*(G37/$G$22)","v":0},2479.4400937448791,506.37565384382543,0,null,0,0,{"$f":"IF('choix-multiples'!$F$98=1,IF(C37<=$V$20,$L$21/$V$20,0),0)","v":0},{"$f":"IF(OR('choix-multiples'!$F$98=1,'choix-multiples'!$F$98=4),Tool!$F$116*(O37+P37+Q37-L37-M37-N37-U37-V37),0)","v":0},225,2985.8157475887047,2760.8157475887047,{"$f":"NPV($AA$20,$Z$22:Z37)+$Z$21","v":28073.292963148535},{"$f":"IRR($Z$21:Z37,-0.8)","v":0.16950446933998609},{"$f":"IF(AND(AA37>0,SUM($AC$22:AC36)<1),1,0)","v":0},0,{"$f":"IF(AND(AA37>0,SUM($AC$22:AC36)<1),C36-(C36-C37)/(AA36-AA37)*AA36,0)","v":0}]
[null,{"$f":"IF(#REF!<0,0,1)","v":{"$error":"#REF!"}},17,10,47.761194029850749,788000,8236.237350346084,2882.6830726211292,5353.5542777249548,0.90605114933310649,9.9638366873440465E-2,0,225,0,{"$f":"Certificats_Verts!$G$57*(G38/$G$22)","v":0},2611.8583111114649,533.41940520083563,0,null,0,0,{"$f":"IF('choix-multiples'!$F$98=1,IF(C38<=$V$20,$L$21/$V$20,0),0)","v":0},{"$f":"IF(OR('choix-multiples'!$F$98=1,'choix-multiples'!$F$98=4),Tool!$F$116*(O38+P38+Q38-L38-M38-N38-U38-V38),0)","v":0},225,3145.2777163123005,2920.2777163123005,{"$f":"NPV($AA$20,$Z$22:Z38)+$Z$21","v":30993.570679460838},{"$f":"IRR($Z$21:Z38,-0.8)","v":0.17233500356071518},{"$f":"IF(AND(AA38>0,SUM($AC$22:AC37)<1),1,0)","v":0},0,{"$f":"IF(AND(AA38>0,SUM($AC$22:AC37)<1),C37-(C37-C38)/(AA37-AA38)*AA37,0)","v":0}]
[null,{"$f":"IF(#REF!<0,0,1)","v":{"$error":"#REF!"}},18,10,47.761194029850749,788000,8195.0561635943541,2868.2696572580239,5326.7865063363297,0.95923635179895983,0.10548713900891142,0,225,0,{"$f":"Certificats_Verts!$G$57*(G39/$G$22)","v":0},2751.3485220038397,561.90746866469408,0,null,0,0,{"$f":"IF('choix-multiples'!$F$98=1,IF(C39<=$V$20,$L$21/$V$20,0),0)","v":0},{"$f":"IF(OR('choix-multiples'!$F$98=1,'choix-multiples'!$F$98=4),Tool!$F$116*(O39+P39+Q39-L39-M39-N39-U39-V39),0)","v":0},225,3313.2559906685337,3088.2559906685337,{"$f":"NPV($AA$20,$Z$22:Z39)+$Z$21","v":34081.826670129376},{"$f":"IRR($Z$21:Z39,-0.8)","v":0.17474661439142114},{"$f":"IF(AND(AA39>0,SUM($AC$22:AC38)<1),1,0)","v":0},0,{"$f":"IF(AND(AA39>0,SUM($AC$22:AC38)<1),C38-(C38-C39)/(AA38-AA39)*AA38,0)","v":0}]
[null,{"$f":"IF(#REF!<0,0,1)","v":{"$error":"#REF!"}},19,10,47.761194029850749,788000,8154.0808827763822,2853.9283089717337,5300.1525738046485,1.0155435256495589,0.11167923406873452,0,225,0,{"$f":"Certificats_Verts!$G$57*(G40/$G$22)","v":0},2898.2884168442379,591.91697988993508,0,null,0,0,{"$f":"IF('choix-multiples'!$F$98=1,IF(C40<=$V$20,$L$21/$V$20,0),0)","v":0},{"$f":"IF(OR('choix-multiples'!$F$98=1,'choix-multiples'!$F$98=4),Tool!$F$116*(O40+P40+Q40-L40-M40-N40-U40-V40),0)","v":0},225,3490.2053967341731,3265.2053967341731,{"$f":"NPV($AA$20,$Z$22:Z40)+$Z$21","v":37347.03206686354},{"$f":"IRR($Z$21:Z40,-0.8)","v":0.17680747042908962},{"$f":"IF(AND(AA40>0,SUM($AC$22:AC39)<1),1,0)","v":0},0,{"$f":"IF(AND(AA40>0,SUM($AC$22:AC39)<1),C39-(C39-C40)/(AA39-AA40)*AA39,0)","v":0}]
[null,{"$f":"IF(#REF!<0,0,1)","v":{"$error":"#REF!"}},20,10,47.761194029850749,788000,8113.3104783625004,2839.6586674268751,5273.6518109356257,1.0751559306051879,0.11823480510856924,0,225,0,{"$f":"Certificats_Verts!$G$57*(G41/$G$22)","v":0},3053.0758571784295,623.52919407642696,0,null,0,0,{"$f":"IF('choix-multiples'!$F$98=1,IF(C41<=$V$20,$L$21/$V$20,0),0)","v":0},{"$f":"IF(OR('choix-multiples'!$F$98=1,'choix-multiples'!$F$98=4),Tool!$F$116*(O41+P41+Q41-L41-M41-N41-U41-V41),0)","v":0},225,3676.6050512548563,3451.6050512548563,{"$f":"NPV($AA$20,$Z$22:Z41)+$Z$21","v":40798.637118118393},{"$f":"IRR($Z$21:Z41,-0.8)","v":0.1785735948165561},{"$f":"IF(AND(AA41>0,SUM($AC$22:AC40)<1),1,0)","v":0},0,{"$f":"IF(AND(AA41>0,SUM($AC$22:AC40)<1),C40-(C40-C41)/(AA40-AA41)*AA40,0)","v":0}]
[null,{"$f":"IF(#REF!<0,0,1)","v":{"$error":"#REF!"}},21,10,47.761194029850749,788000,8072.743925970688,2825.4603740897405,5247.2835518809479,1.1382675837317124,0.12517518816844225,0,225,0,{"$f":"Certificats_Verts!$H$57*(G42/$G$22)","v":0},3216.1299529448293,656.82970597986969,0,null,0,0,{"$f":"IF('choix-multiples'!$F$98=1,IF(C42<=$V$20,$L$21/$V$20,0),0)","v":0},{"$f":"IF(OR('choix-multiples'!$F$98=1,'choix-multiples'!$F$98=4),Tool!$F$116*(O42+P42+Q42-L42-M42-N42-U42-V42),0)","v":0},225,3872.9596589246989,3647.9596589246989,{"$f":"NPV($AA$20,$Z$22:Z42)+$Z$21","v":44446.596777043102},{"$f":"IRR($Z$21:Z42,-0.8)","v":0.18009117797101459},{"$f":"IF(AND(AA42>0,SUM($AC$22:AC41)<1),1,0)","v":0},0,{"$f":"IF(AND(AA42>0,SUM($AC$22:AC41)<1),C41-(C41-C42)/(AA41-AA42)*AA41,0)","v":0}]
[null,{"$f":"IF(#REF!<0,0,1)","v":{"$error":"#REF!"}},22,10,47.761194029850749,788000,8032.3802063408348,2811.3330722192918,5221.0471341215434,1.2050838908967638,0.13252297171392982,0,225,0,{"$f":"Certificats_Verts!$H$57*(G43/$G$22)","v":0},3387.8921972767771,691.90868167228371,0,null,0,0,{"$f":"IF('choix-multiples'!$F$98=1,IF(C43<=$V$20,$L$21/$V$20,0),0)","v":0},{"$f":"IF(OR('choix-multiples'!$F$98=1,'choix-multiples'!$F$98=4),Tool!$F$116*(O43+P43+Q43-L43-M43-N43-U43-V43),0)","v":0},225,4079.8008789490609,3854.8008789490609,{"$f":"NPV($AA$20,$Z$22:Z43)+$Z$21","v":48301.397655992158},{"$f":"IRR($Z$21:Z43,-0.8)","v":0.18139844181985465},{"$f":"IF(AND(AA43>0,SUM($AC$22:AC42)<1),1,0)","v":0},0,{"$f":"IF(AND(AA43>0,SUM($AC$22:AC42)<1),C42-(C42-C43)/(AA42-AA43)*AA42,0)","v":0}]
[null,{"$f":"IF(#REF!<0,0,1)","v":{"$error":"#REF!"}},23,10,47.761194029850749,788000,7992.2183053091303,2797.2764068581955,5194.9418984509348,1.2758223152924038,0.14030207015353749,0,225,0,{"$f":"Certificats_Verts!$H$57*(G44/$G$22)","v":0},3568.8276619106391,728.86110268001426,0,null,0,0,{"$f":"IF('choix-multiples'!$F$98=1,IF(C44<=$V$20,$L$21/$V$20,0),0)","v":0},{"$f":"IF(OR('choix-multiples'!$F$98=1,'choix-multiples'!$F$98=4),Tool!$F$116*(O44+P44+Q44-L44-M44-N44-U44-V44),0)","v":0},225,4297.6887645906536,4072.6887645906536,{"$f":"NPV($AA$20,$Z$22:Z44)+$Z$21","v":52374.086420582826},{"$f":"IRR($Z$21:Z44,-0.8)","v":0.18252713551381383},{"$f":"IF(AND(AA44>0,SUM($AC$22:AC43)<1),1,0)","v":0},0,{"$f":"IF(AND(AA44>0,SUM($AC$22:AC43)<1),C43-(C43-C44)/(AA43-AA44)*AA43,0)","v":0}]
[null,{"$f":"IF(#REF!<0,0,1)","v":{"$error":"#REF!"}},24,10,47.761194029850749,788000,7952.2572137825846,2783.2900248239043,5168.9671889586807,1.3507130852000677,0.14853780167155015,0,225,0,{"$f":"Certificats_Verts!$H$57*(G45/$G$22)","v":0},3759.426256436469,767.78702316029455,0,null,0,0,{"$f":"IF('choix-multiples'!$F$98=1,IF(C45<=$V$20,$L$21/$V$20,0),0)","v":0},{"$f":"IF(OR('choix-multiples'!$F$98=1,'choix-multiples'!$F$98=4),Tool!$F$116*(O45+P45+Q45-L45-M45-N45-U45-V45),0)","v":0},225,4527.2132795967636,4302.2132795967636,{"$f":"NPV($AA$20,$Z$22:Z45)+$Z$21","v":56676.299700179588},{"$f":"IRR($Z$21:Z45,-0.8)","v":0.18350373384815133},{"$f":"IF(AND(AA45>0,SUM($AC$22:AC44)<1),1,0)","v":0},0,{"$f":"IF(AND(AA45>0,SUM($AC$22:AC44)<1),C44-(C44-C45)/(AA44-AA45)*AA44,0)","v":0}]
[null,{"$f":"IF(#REF!<0,0,1)","v":{"$error":"#REF!"}},25,10,47.761194029850749,788000,7912.4959277136713,2769.373574699785,5143.1223530138868,1.4299999433013117,0.15725697062967015,0,225,0,{"$f":"Certificats_Verts!$H$57*(G46/$G$22)","v":0},3960.2040548008436,808.79184081270478,0,null,0,0,{"$f":"IF('choix-multiples'!$F$98=1,IF(C46<=$V$20,$L$21/$V$20,0),0)","v":0},{"$f":"IF(OR('choix-multiples'!$F$98=1,'choix-multiples'!$F$98=4),Tool!$F$116*(O46+P46+Q46-L46-M46-N46-U46-V46),0)","v":0},225,4768.9958956135488,4543.9958956135488,{"$f":"NPV($AA$20,$Z$22:Z46)+$Z$21","v":61220.295595793141},{"$f":"IRR($Z$21:Z46,-0.8)","v":0.18435039820267107},{"$f":"IF(AND(AA46>0,SUM($AC$22:AC45)<1),1,0)","v":0},0,{"$f":"IF(AND(AA46>0,SUM($AC$22:AC45)<1),C45-(C45-C46)/(AA45-AA46)*AA45,0)","v":0}]
[null,{"$f":"IF(#REF!<0,0,1)","v":{"$error":"#REF!"}},26,10,47.761194029850749,788000,7872.9334480751031,2755.526706826286,5117.4067412488166,1.5139409399730988,0.16648795480563178,0,225,0,{"$f":"Certificats_Verts!$H$57*(G47/$G$22)","v":0},4171.704692653565,851.98658225906831,0,null,0,0,{"$f":"IF('choix-multiples'!$F$98=1,IF(C47<=$V$20,$L$21/$V$20,0),0)","v":0},{"$f":"IF(OR('choix-multiples'!$F$98=1,'choix-multiples'!$F$98=4),Tool!$F$116*(O47+P47+Q47-L47-M47-N47-U47-V47),0)","v":0},225,5023.6912749126332,4798.6912749126332,{"$f":"NPV($AA$20,$Z$22:Z47)+$Z$21","v":66018.986870705776},{"$f":"IRR($Z$21:Z47,-0.8)","v":0.18508574866668281},{"$f":"IF(AND(AA47>0,SUM($AC$22:AC46)<1),1,0)","v":0},0,{"$f":"IF(AND(AA47>0,SUM($AC$22:AC46)<1),C46-(C46-C47)/(AA46-AA47)*AA46,0)","v":0}]
[null,{"$f":"IF(#REF!<0,0,1)","v":{"$error":"#REF!"}},27,10,47.761194029850749,788000,7833.5687808347275,2741.7490732921547,5091.8197075425724,1.6028092731495196,0.17626079775272235,0,225,0,{"$f":"Certificats_Verts!$H$57*(G48/$G$22)","v":0},4394.5008393217677,897.48820366448717,0,null,0,0,{"$f":"IF('choix-multiples'!$F$98=1,IF(C48<=$V$20,$L$21/$V$20,0),0)","v":0},{"$f":"IF(OR('choix-multiples'!$F$98=1,'choix-multiples'!$F$98=4),Tool!$F$116*(O48+P48+Q48-L48-M48-N48-U48-V48),0)","v":0},225,5291.9890429862553,5066.9890429862553,{"$f":"NPV($AA$20,$Z$22:Z48)+$Z$21","v":71085.975913692033},{"$f":"IRR($Z$21:Z48,-0.8)","v":0.18572548628877938},{"$f":"IF(AND(AA48>0,SUM($AC$22:AC47)<1),1,0)","v":0},0,{"$f":"IF(AND(AA48>0,SUM($AC$22:AC47)<1),C47-(C47-C48)/(AA47-AA48)*AA47,0)","v":0}]
[null,{"$f":"IF(#REF!<0,0,1)","v":{"$error":"#REF!"}},28,10,47.761194029850749,788000,7794.4009369305541,2728.0403279256939,5066.3606090048597,1.6968941774833963,0.18660730658080715,0,225,0,{"$f":"Certificats_Verts!$H$57*(G49/$G$22)","v":0},4629.1957483970054,945.41990741349468,0,null,0,0,{"$f":"IF('choix-multiples'!$F$98=1,IF(C49<=$V$20,$L$21/$V$20,0),0)","v":0},{"$f":"IF(OR('choix-multiples'!$F$98=1,'choix-multiples'!$F$98=4),Tool!$F$116*(O49+P49+Q49-L49-M49-N49-U49-V49),0)","v":0},225,5574.6156558105004,5349.6156558105004,{"$f":"NPV($AA$20,$Z$22:Z49)+$Z$21","v":76435.591569502532},{"$f":"IRR($Z$21:Z49,-0.8)","v":0.18628289628400374},{"$f":"IF(AND(AA49>0,SUM($AC$22:AC48)<1),1,0)","v":0},0,{"$f":"IF(AND(AA49>0,SUM($AC$22:AC48)<1),C48-(C48-C49)/(AA48-AA49)*AA48,0)","v":0}]
[null,{"$f":"IF(#REF!<0,0,1)","v":{"$error":"#REF!"}},29,10,47.761194029850749,788000,7755.4289322459008,2714.4001262860652,5041.0288059598352,1.7965018657016716,0.19756115547710054,0,225,0,{"$f":"Certificats_Verts!$H$57*(G50/$G$22)","v":0},4876.4248911337691,995.91147569877353,0,null,0,0,{"$f":"IF('choix-multiples'!$F$98=1,IF(C50<=$V$20,$L$21/$V$20,0),0)","v":0},{"$f":"IF(OR('choix-multiples'!$F$98=1,'choix-multiples'!$F$98=4),Tool!$F$116*(O50+P50+Q50-L50-M50-N50-U50-V50),0)","v":0},225,5872.3363668325428,5647.3363668325428,{"$f":"NPV($AA$20,$Z$22:Z50)+$Z$21","v":82082.92793633508},{"$f":"IRR($Z$21:Z50,-0.8)","v":0.18676925652992971},{"$f":"IF(AND(AA50>0,SUM($AC$22:AC49)<1),1,0)","v":0},0,{"$f":"IF(AND(AA50>0,SUM($AC$22:AC49)<1),C49-(C49-C50)/(AA49-AA50)*AA49,0)","v":0}]
[null,{"$f":"IF(#REF!<0,0,1)","v":{"$error":"#REF!"}},30,10,47.761194029850749,788000,7716.6517875846712,2700.8281256546347,5015.8236619300369,1.9019565252183597,0.20915799530360635,0,225,0,{"$f":"Certificats_Verts!$H$57*(G51/$G$22)","v":0},5136.8576770821046,1049.0996219256801,0,null,0,0,{"$f":"IF('choix-multiples'!$F$98=1,IF(C51<=$V$20,$L$21/$V$20,0),0)","v":0},{"$f":"IF(OR('choix-multiples'!$F$98=1,'choix-multiples'!$F$98=4),Tool!$F$116*(O51+P51+Q51-L51-M51-N51-U51-V51),0)","v":0},225,6185.957299007785,5960.957299007785,{"$f":"NPV($AA$20,$Z$22:Z51)+$Z$21","v":88043.885235342867},{"$f":"IRR($Z$21:Z51,-0.8)","v":0.18719417049736897},{"$f":"IF(AND(AA51>0,SUM($AC$22:AC50)<1),1,0)","v":0},0,{"$f":"IF(AND(AA51>0,SUM($AC$22:AC50)<1),C50-(C50-C51)/(AA50-AA51)*AA50,0)","v":0}]
[null,null,null,null,null,null,null,null,null,null,null,{"$f":"SUM(L21:L46)","v":15245.98},{"$f":"SUM(M22:M46)","v":6467.2186000000002},{"$f":"SUM(N22:N46)","v":0},null,null,null,{"$f":"SUM(R22:R51)","v":0},{"$f":"SUM(U22:U46)","v":0},{"$f":"SUM(T22:T51)","v":0},null,null,null,null,null,null,null,null,{"$f":"SUM(AC22:AC51)","v":1},{"$f":"SUM(AD22:AD51)","v":6},{"$f":"SUM(AE22:AE51)","v":5.4010777949809894}]
[null,"Production en 20 ans (kWh)",null,null,null,null,{"$f":"SUM(G22:G41)","v":170251.21480586246},null,null,null,null,null,null,"Economie d'élec. (€)","Certificats verts sur temps de vie (€)",null,null,null,null,null,"Solde après 25 ans :",{"$f":"SUM(#REF!)","v":{"$error":"#REF!"}},null,"€"]
[null,"Production en 25 ans (kWh)",null,null,null,null,{"$f":"SUM(G22:G46)","v":210213.31038497936},null,null,null,null,null,null,{"$f":"SUM(H22:H46)","v":73574.658634742766},{"$f":"SUM(O22:O41)","v":14485.370391214317},{"$f":"IF('choix-multiples'!$F$98=1,IF('choix-multiples'!$J$106<>2,S52+(SUM(O22:O31))*Tool!$F$116/100,S52),S52)","v":0},null,null,null,null,"Prix du kWh moyen sur 25 ans :",{"$f":"(-L52-M52+N52-P54)/G54","v":-0.10329126428880737},null,"€/kWh"]
[]
[]
[]
[null,null,"De gemiddelde levensduur van zo een zonne-installatie op meer dan 30 jaar wordt geraamd."]
[null,null,"Invertoren (die de opgewekte gelijkstroom omzetten in wisselstroom) moeten gewoonlijk ongeveer halfweg de levensduur van de zonnepanelen vervangen worden. De kostprijs van deze vervanging bedraagt meestal zo'n 10% van de initiële investering."]
[null,null,"http://www.energiesparen.be/energiewinst/pv.php"]
[]
[]
[]
[null,null,null,null,null,null,null,null,null,null,"perte annuelle de performance",null,{"$f":" VLOOKUP(Tool!$I$36, 'choix-multiples'!$G$127:$I$130, 3, FALSE)","v":5.0000000000000001E-3},"après",null,1]
[]
[]
[]
[]
[]
[]
[]
[]
[]
[]
[null,null,"Situation actuelle: ","Mise à jour : 8/05/2013"]
[null,null,"http://www.bruxellesenvironnement.be/Templates/Professionnels/informer.aspx?id=32624"]
[null,null,"Depuis la dernière adaptation du coefficient,en vigueur depuis le 20 octobre 2012,  les prix des panneaux photovoltaïques ont encore baissé. Par conséquent un nouveau coefficient a été annoncé le 2 mai 2013, lequel est valable pour toutes nouvelles installations à partir du 2 août 2013. Il résulte de ce nouveau coefficient, combiné au principe de base, que 2,4 certificats verts sont délivrés par MWh produit."]
[]
[null,null,"Concrètement: "]
[]
[null,null,"pour les installations certifiées* entre  le 20 octobre 2012 et le premier août 2013 (inclus), vous recevez 4 certificats verts pour chaque MWh d'électricité produite. "]
[null,null,"pour toutes les installations certifiées* à partir du 2 août 2013 , vous recevez 2,4 certificats verts pour chaque MWh d'électricité produite. Les personnes morales et les instances publiques reçoivent également 2,4 certificats verts. "]

{"sheet":"Coût_Net","index":7,"n_rows":82,"n_cols":26,"rows_kept":82,"cut":false,"hidden":false,"merged":[]}
[]
[null,null,"Régions","Types de structures","1. Montant Primes ou Subsides (%)","1' Condition plafonnante calculées (€)","2. Montant Certificats Verts jusqu'à 5 kWc en RW et 20m² en RBC (€/kWh)","2'. Montant Certificats Verts au-delà de 5 kWc en RW où entre 20m² et 60 m² en RBC (€/kWh)","2'' Montant Certificats Verts pour plus de 40m² en RBC (€/kWh)","3. Prix Electricité (€/kWh TVAC)","3'. Prix Electricité en cas de rachat (€/kWh TVAC)","4. Déduction Impôt IPP (%)","4' Conditions Impôts","5. Charge Financière par an en ... ans (K+int) sur le TOTAL de l'investissement","6. Durée de l'amortissement fiscale (année) ","7. Amortissement et économie Isoc par an (21% pendant … ans)","8. Assurance Vol / Dégâts (€/an et par kW)","9, Entretien","Pouvoir public :","Facilitateurs :","Primes :","Certificats verts :","Déductions fiscales :","Primes (€/Wc)","Calcul du Montant de la primes (€)"]
[null,null,null,null,null,{"$f":"IF(Tool!E104<1,Tool!F104,Tool!E104)","v":15245.98},null,null,null,null,null,null,null,null,null,null,null,null,null,null,null,null,null,0.25,{"$f":"X3*1000*Tool!$E$46","v":2500}]
[null,null,"Région Bruxelles Capitale",1,{"$f":"IF(Tool!$E$104<1,Coût_Net!Y3/Tool!$F$104,Coût_Net!Y3/Tool!$E$104)","v":0.16397765181378959},{"$f":"IF($F$3<666666.666666667,$F$3*0.3,200000)","v":4573.7939999999999},{"$f":"Certificats_Verts!$E$13","v":0},{"$f":"Certificats_Verts!$F$13","v":0},{"$f":"Certificats_Verts!$G$13","v":0.16600499999999999},{"$f":"R69","v":0.14560000000000001},0.05,{"$f":"0.135*Page_calcul!J5","v":0},999999999999,0,0,0,18.510000000000002,0.5,"http://www.ibgebim.be","http://www.ibgebim.be/francais/contenu/content.asp?ref=1762","http://www.ibgebim.be","http://www.brugel.be","",0.25,{"$f":"X4*1000*Tool!$E$46","v":2500},"Tertiaire"]
[null,null,null,2,{"$f":"IF(Tool!$E$104<1,Coût_Net!Y4/Tool!$F$104,Coût_Net!Y4/Tool!$E$104)","v":0.16397765181378959},{"$f":"($F$3*0.3)","v":4573.7939999999999},{"$f":"Certificats_Verts!$E$13","v":0},{"$f":"Certificats_Verts!$F$13","v":0},{"$f":"Certificats_Verts!$G$13","v":0.16600499999999999},0.2,0.05,0.4,{"$f":"Tool!G21*3680","v":3680000},0,0,0,18.510000000000002,0.05,"http://www.ibgebim.be","http://www.ibgebim.be/francais/contenu/content.asp?ref=2393","http://www.ibgebim.be","http://www.brugel.be","http://mineco.fgov.be",1,{"$f":"X5*1000*Tool!$E$46","v":10000},"Log coll"]
[null,null,null,3,{"$f":"IF(Tool!$E$104<1,Coût_Net!Y7/Tool!$F$104,Coût_Net!Y7/Tool!$E$104)","v":0.16397765181378959},{"$f":"$F$3*0.3","v":4573.7939999999999},{"$f":"Certificats_Verts!$E$13","v":0},{"$f":"Certificats_Verts!$F$13","v":0},{"$f":"Certificats_Verts!$G$13","v":0.16600499999999999},0.2,0.05,0.4,3680,0,7,0.21,0,null,"http://www.ibgebim.be","http://www.apere.org","http://www.ibgebim.be","http://www.brugel.be","http://mineco.fgov.be",{"$f":" IF('choix-multiples'!H120=1,0.25,IF('choix-multiples'!H120=2,0.5,1))","v":0.25},{"$f":"X6*1000*Tool!$E$46","v":2500},"Maison indiv"]
[null,null,null,4,0,999999999999,{"$f":"Certificats_Verts!$E$13","v":0},{"$f":"Certificats_Verts!$F$13","v":0},{"$f":"Certificats_Verts!$G$13","v":0.16600499999999999},0.2,0.05,0,999999999999,0,7,0.21,0,null,"http://www.ibgebim.be",null,"http://www.ibgebim.be","http://www.brugel.be","http://mineco.fgov.be",{"$f":" IF('choix-multiples'!H120=1,0.25,IF('choix-multiples'!H120=2,0.5,1))","v":0.25},{"$f":"X7*1000*Tool!$E$46","v":2500},"Autres"]
[null,null,null,5,{"$f":"IF(Tool!$E$104<1,Coût_Net!Y3/Tool!$F$104,Coût_Net!Y3/Tool!$E$104)","v":0.16397765181378959},{"$f":"IF($F$3<666666.666666667,$F$3*0.3,200000)","v":4573.7939999999999},{"$f":"Certificats_Verts!$E$13","v":0},{"$f":"Certificats_Verts!$F$13","v":0},{"$f":"Certificats_Verts!$G$13","v":0.16600499999999999},0.2,0.05,4.5886500000000004E-2,999999999999,0,7,0.21,18.510000000000002,null,"http://www.ibgebim.be",null,null,null,null,null,{"$f":"X6*1000*Tool!$E$46","v":2500}]
[null,null,null,6,{"$f":"IF(Tool!$E$104<1,Coût_Net!Y3/Tool!$F$104,Coût_Net!Y3/Tool!$E$104)","v":0.16397765181378959},{"$f":"IF($F$3<666666.666666667,$F$3*0.3,200000)","v":4573.7939999999999},{"$f":"Certificats_Verts!$E$13","v":0},{"$f":"Certificats_Verts!$F$13","v":0},{"$f":"Certificats_Verts!$G$13","v":0.16600499999999999},0.2,0.05,4.5886500000000004E-2,999999999999,0,7,0.21,18.510000000000002,null,"http://www.ibgebim.be",null,"http://www.ibgebim.be","http://www.brugel.be",""]
[]
[]
[]
[]
[]
[]
[]
[]
[]
[]
[]
[]
[]
[]
[]
[]
[]
[]
[]
[]
[]
[]
[]
[]
[null,null,"Régions","Types de structures"]
[]
[null,null,{"$f":"'choix-multiples'!F92","v":1},{"$f":"'choix-multiples'!F98","v":2},{"$f":"VLOOKUP($C$36,$C$39:$P$42,3,FALSE)","v":0.16397765181378959},{"$f":"VLOOKUP($C$36,$C$39:$P$42,4,FALSE)","v":4573.7939999999999},{"$f":"VLOOKUP($C$36,$C$39:$P$42,5,FALSE)","v":0},{"$f":"VLOOKUP($C$36,$C$39:$P$42,6,FALSE)","v":0},{"$f":"VLOOKUP($C$36,$C$39:$P$42,7,FALSE)","v":0.16600499999999999},{"$f":"VLOOKUP($C$36,$C$39:$P$42,8,FALSE)","v":0.2},{"$f":"VLOOKUP($C$36,$C$39:$P$42,9,FALSE)","v":0.05},{"$f":"VLOOKUP($C$36,$C$39:$P$42,10,FALSE)","v":0.4},{"$f":"VLOOKUP($C$36,$C$39:$P$42,11,FALSE)","v":3680000},{"$f":"VLOOKUP($C$36,$C$39:$P$42,12,FALSE)","v":0},{"$f":"VLOOKUP($C$36,$C$39:$P$42,13,FALSE)","v":0},{"$f":"VLOOKUP($C$36,$C$39:$P$42,14,FALSE)","v":0},{"$f":"VLOOKUP($C$36,$C$39:$Q$42,15,FALSE)","v":18.510000000000002},{"$f":"VLOOKUP($C$36,$C$39:$Z$42,16,FALSE)","v":0.05},{"$f":"VLOOKUP($C$36,$C$39:$Z$42,17,FALSE)","v":0},{"$f":"VLOOKUP($C$36,$C$39:$Z$42,18,FALSE)","v":0},{"$f":"VLOOKUP($C$36,$C$39:$Z$42,19,FALSE)","v":0},{"$f":"VLOOKUP($C$36,$C$39:$Z$42,20,FALSE)","v":0},{"$f":"VLOOKUP($C$36,$C$39:$Z$42,21,FALSE)","v":0}]
[]
[]
[null,null,1,{"$f":"'choix-multiples'!F98","v":2},{"$f":"VLOOKUP($D$39,$D$4:$Q$9,2,FALSE)","v":0.16397765181378959},{"$f":"VLOOKUP($D$39,$D$4:$Q$9,3,FALSE)","v":4573.7939999999999},{"$f":"VLOOKUP($D$39,$D$4:$Q$9,4,FALSE)","v":0},{"$f":"VLOOKUP($D$39,$D$4:$Q$9,5,FALSE)","v":0},{"$f":"VLOOKUP($D$39,$D$4:$Q$9,6,FALSE)","v":0.16600499999999999},{"$f":"VLOOKUP($D$39,$D$4:$Q$9,7,FALSE)","v":0.2},{"$f":"VLOOKUP($D$39,$D$4:$Q$9,8,FALSE)","v":0.05},{"$f":"VLOOKUP($D$39,$D$4:$Q$9,9,FALSE)","v":0.4},{"$f":"VLOOKUP($D$39,$D$4:$Q$9,10,FALSE)","v":3680000},{"$f":"VLOOKUP($D$39,$D$4:$Q$9,11,FALSE)","v":0},{"$f":"VLOOKUP($D$39,$D$4:$Q$9,12,FALSE)","v":0},{"$f":"VLOOKUP($D$39,$D$4:$Q$9,13,FALSE)","v":0},{"$f":"VLOOKUP($D$39,$D$4:$Q$9,14,FALSE)","v":18.510000000000002},{"$f":"VLOOKUP($D$39,$D$4:$W$9,15,FALSE)","v":0.05}]
[]
[]
[]
[]
[null,null,null,{"$f":"200000/0.4","v":500000}]
[]
[]
[]
[]
[null,null,null,null,0.49815602565543377,30780.182400000005,0,0,0.38181818181818178,0.17,0.05]
[null,null,null,null,0.49815602565543377,30780.182400000005,0,0,0.38181818181818178,0.11,0.05]
[]
[]
[]
[]
[]
[]
[null,null,null,null,null,null,null,{"$f":"200000/0.3","v":666666.66666666674},666666.66666666698]
[]
[]
[]
[]
[]
[]
[]
[]
[]
[]
[null,null,null,null,null,null,null,null,null,null,null,null,null,"Prix secteur tertiaire EUROSTAT"]
[null,null,"CREG 2012","BRUGEL / Particulier",null,null,null,null,null,null,null,null,null,"Consommateur entre 20 et 500 MWh",null,null,null,0.14560000000000001,"€ HTVA"]
[null,null,null,null,null,null,null,null,null,null,null,null,null,"http://epp.eurostat.ec.europa.eu/statistics_explained/index.php/Energy_price_statistics/fr#Statistiques_sur_le_prix_de_l.E2.80.99.C3.A9nergie"]
[]
[]
[]
[]
[null,null,"Situation actuelle: ","Mise à jour : 8/05/2013"]
[null,null,"http://www.bruxellesenvironnement.be/Templates/Professionnels/informer.aspx?id=32624"]
[null,null,"Depuis la dernière adaptation du coefficient,en vigueur depuis le 20 octobre 2012,  les prix des panneaux photovoltaïques ont encore baissé. Par conséquent un nouveau coefficient a été annoncé le 2 mai 2013, lequel est valable pour toutes nouvelles installations à partir du 2 août 2013. Il résulte de ce nouveau coefficient, combiné au principe de base, que 2,4 certificats verts sont délivrés par MWh produit."]
[]
[null,null,"Concrètement: "]
[]
[null,null,"pour les installations certifiées* entre  le 20 octobre 2012 et le premier août 2013 (inclus), vous recevez 4 certificats verts pour chaque MWh d'électricité produite. "]
[null,null,"pour toutes les installations certifiées* à partir du 2 août 2013 , vous recevez 2,4 certificats verts pour chaque MWh d'électricité produite. Les personnes morales et les instances publiques reçoivent également 2,4 certificats verts. "]

{"sheet":"Calcul_CoûtBrut_m²","index":8,"n_rows":170,"n_cols":19,"rows_kept":170,"cut":false,"hidden":true,"merged":[]}
[]
[]
[2,"Type de technologie :",null,"Coût supplémentaire par rapport au prix de base"]
[null,null,{"$f":"'choix-multiples'!G125","v":1},{"$f":"VLOOKUP(C4,C6:D8,2,FALSE)","v":-5},"%"]
[null,null,null,null,null,null,null,"Coût d'entretien annuel"]
[null,"Polycristallin",1,-5,"%",null,null,"puissance installation",{"$f":"_cmt_peak_used","v":10}]
[null,"Monocristallin",2,-5,"%",null,null,"range",{"$f":"VLOOKUP(1,$J11:$L17,2,FALSE)","v":225},{"$f":"VLOOKUP(1,$J11:$L17,3,FALSE)","v":"€/an"}]
[null,"Monocristallin haute-performance",3,0,"%",null,null,"Coût d'entretien annuel",{"$f":"IF(J7=L11,I7,I7*I6)","v":225},{"$f":"L11","v":"€/an"}]
[]
[3,"Type de montage :",null,"Facteur coût lié au type d'installation",null,null,"De","à (non-inclus)"]
[null,null,{"$f":"'choix-multiples'!F132","v":2},{"$f":"VLOOKUP(C11,C13:D16,2,FALSE)","v":0},"%",null,0,{"$f":"G12","v":10},"0-10 kWc",{"$f":"IF(AND(_cmt_peak_used>=G11,_cmt_peak_used<H11),1,0)","v":0},75,"€/an"]
[null,null,null,null,null,null,10,30,"10-30 kWc",1,225,"€/an"]
[null,{"$f":"'choix-multiples'!E134","v":"Superimposed on an inclined roof"},{"$f":"'choix-multiples'!F134","v":1},{"$f":"'choix-multiples'!L134","v":0},"%",null,30,50,"30-50",0,300,"€/an"]
[null,{"$f":"'choix-multiples'!E135","v":"Flat roof"},{"$f":"'choix-multiples'!F135","v":2},{"$f":"'choix-multiples'!L135","v":0},"%",null,50,100,"50-100",0,6.5,"€/kWc.an"]
[null,{"$f":"'choix-multiples'!E136","v":"Flat roof back-to-back East-West"},{"$f":"'choix-multiples'!F136","v":3},{"$f":"'choix-multiples'!L136","v":0},"%",null,100,110,"100-110",0,660,"€/an"]
[null,{"$f":"'choix-multiples'!E137","v":"Built-in inclined roof"},{"$f":"'choix-multiples'!F137","v":4},{"$f":"'choix-multiples'!L137","v":20},"%",null,110,{"$f":"G17","v":150},"110-149",0,6,"€/kWc.an"]
[null,null,null,null,null,null,150,null,">150",{"$f":"IF(_cmt_peak_used>=G17,1,0)","v":0},5.7,"€/kWc.an"]
[4,"TVA"]
[null,null,{"$f":"'choix-multiples'!H111","v":2},{"$f":"VLOOKUP(C19,C21:D23,2,FALSE)","v":6},"%",{"$f":"D19","v":6},"%"]
[]
[null,"Assujeti ou exempté de  TVA ",1,{"$f":"'choix-multiples'!I112","v":0},"%"]
[null,"TVA à 6%",2,{"$f":"'choix-multiples'!I113","v":6},"%"]
[null,"TVA à 21%",3,{"$f":"'choix-multiples'!I114","v":21},"%"]
[]
[]
[]
[]
[]
[]
[]
[null,"Facteur coût associé à la puissance installée HTVA",null,"https://www.brugel.brussels/publication/document/propositions/2021/fr/PROPOSITION-28-COEFFICIENT-MULTIPLICATEUR-APPLIQUE-PV.pdf "]
[]
[null,null,"Puissance (kWc)","Investissement (€ HTVA/Wc)",null,null,null,"Puissance de générateur photovoltaïque souhaitée :",null,null,null,null,null,null,null,null,null,{"$f":"IF(ISBLANK(_Cmt_Peak),Tool!E41,_Cmt_Peak)","v":10}]
[null,null,1,1.665,null,null,null,"Facteur coût associé à la puissance installée HTVA",null,null,null,null,null,null,null,null,null,{"$f":"VLOOKUP($R$33,$C$34:$D$170,2)","v":1.514}]
[null,null,2,{"$f":"D34","v":1.665},null,null,1,"Idée de coût en tenant compte de la puissance",null,null,null,null,null,null,null,null,null,{"$f":"R33*R34*1000","v":15140}]
[null,null,3,{"$f":"D35","v":1.665},null,null,2,"Coût en tenant compte de la technologie",null,null,null,null,null,null,null,null,null,{"$f":"R35+(D4*(R35/100))","v":14383}]
[null,null,4.166666666666667,{"$f":"D36","v":1.665},null,null,3,"Coût en tenant compte du type de montage",null,null,null,null,null,null,null,null,null,{"$f":"R36+(R36*(D11/100))","v":14383}]
[null,null,5,{"$f":"D37","v":1.665},null,null,4,"Coût en tenant compte de la TVA",null,null,null,null,null,null,null,null,null,{"$f":"R37+(R37*(F19/100))","v":15245.98}]
[null,null,5.833333333333333,1.514,null,null,null,"Idée de coût brut évalué pour ce projet :",null,null,null,null,null,null,null,null,null,{"$f":"R38","v":15245.98},"TVAC"]
[null,null,6.666666666666667,{"$f":"D39","v":1.514}]
[null,null,7.5,{"$f":"D40","v":1.514}]
[null,null,8.5,1.514]
[null,null,9.5,1.514]
[null,null,10.5,1.514]
[null,null,11.5,1.514]
[null,null,12.5,1.514]
[null,null,13.5,1.514]
[null,null,14.5,1.514]
[null,null,15.5,1.514]
[null,null,18,1.514]
[null,null,20,1.514]
[null,null,23,1.514]
[null,null,25,1.514]
[null,null,28,1.514]
[null,null,30,1.514]
[null,null,33,1.514]
[null,null,35,1.514]
[null,null,38,1.282]
[null,null,40,{"$f":"D58","v":1.282}]
[null,null,41.666666666666664,{"$f":"D59","v":1.282}]
[null,null,45.833333333333336,1.282]
[null,null,50,1.282]
[null,null,54.166666666666664,1.282]
[null,null,58.333333333333336,1.282]
[null,null,62.5,1.282]
[null,null,66.666666666666671,1.282]
[null,null,70.833333333333329,1.282]
[null,null,75,1.282]
[null,null,79.166666666666671,1.282]
[null,null,83.333333333333329,1.282]
[null,null,87.5,1.282]
[null,null,91.666666666666671,1.282]
[null,null,95.833333333333329,1.282]
[null,null,100,1.282]
[null,null,104.16666666666667,1.105]
[null,null,108.33333333333333,{"$f":"D75","v":1.105}]
[null,null,112.5,{"$f":"D76","v":1.105}]
[null,null,116.66666666666667,1.105]
[null,null,120.83333333333333,1.105]
[null,null,125,1.105]
[null,null,129.16666666666666,1.105]
[null,null,133.33333333333334,1.105]
[null,null,137.5,1.105]
[null,null,141.66666666666666,1.105]
[null,null,145.83333333333334,1.105]
[null,null,150,1.105]
[null,null,154.16666666666666,1.105]
[null,null,158.33333333333334,1.105]
[null,null,162.5,1.105]
[null,null,166.66666666666666,1.105]
[null,null,170.83333333333334,1.105]
[null,null,175,1.105]
[null,null,179.16666666666666,1.105]
[null,null,183.33333333333334,1.105]
[null,null,187.5,1.105]
[null,null,191.66666666666666,1.105]
[null,null,195.83333333333334,1.105]
[null,null,200,1.105]
[null,null,204.16666666666666,1.105]
[null,null,208.33333333333334,1.105]
[null,null,212.5,1.105]
[null,null,216.66666666666666,1.105]
[null,null,220.83333333333334,1.105]
[null,null,225,1.105]
[null,null,229.16666666666666,1.105]
[null,null,233.33333333333334,1.105]
[null,null,237.5,1.105]
[null,null,241.66666666666666,1.105]
[null,null,245.83333333333334,1.105]
[null,null,250,1.105]
[null,null,254.16666666666666,0.94499999999999995]
[null,null,258.33333333333331,{"$f":"D111","v":0.94499999999999995}]
[null,null,262.5,{"$f":"D112","v":0.94499999999999995}]
[null,null,266.66666666666669,0.94499999999999995]
[null,null,270.83333333333331,0.94499999999999995]
[null,null,275,0.94499999999999995]
[null,null,279.16666666666669,0.94499999999999995]
[null,null,283.33333333333331,0.94499999999999995]
[null,null,287.5,0.94499999999999995]
[null,null,291.66666666666669,0.94499999999999995]
[null,null,295.83333333333331,0.94499999999999995]
[null,null,300,0.94499999999999995]
[null,null,304.16666666666669,0.94499999999999995]
[null,null,308.33333333333331,0.94499999999999995]
[null,null,312.5,0.94499999999999995]
[null,null,316.66666666666669,0.94499999999999995]
[null,null,320.83333333333331,0.94499999999999995]
[null,null,325,0.94499999999999995]
[null,null,329.16666666666669,0.94499999999999995]
[null,null,333.33333333333331,0.94499999999999995]
[null,null,337.5,0.94499999999999995]
[null,null,341.66666666666669,0.94499999999999995]
[null,null,345.83333333333331,0.94499999999999995]
[null,null,350,0.94499999999999995]
[null,null,354.16666666666669,0.94499999999999995]
[null,null,358.33333333333331,0.94499999999999995]
[null,null,362.5,0.94499999999999995]
[null,null,366.66666666666669,0.94499999999999995]
[null,null,370.83333333333331,0.94499999999999995]
[null,null,375,0.94499999999999995]
[null,null,379.16666666666669,0.94499999999999995]
[null,null,383.33333333333331,0.94499999999999995]
[null,null,387.5,0.94499999999999995]
[null,null,391.66666666666669,0.94499999999999995]
[null,null,395.83333333333331,0.94499999999999995]
[null,null,400,0.94499999999999995]
[null,null,404.16666666666669,0.94499999999999995]
[null,null,408.33333333333331,0.94499999999999995]
[null,null,412.5,0.94499999999999995]
[null,null,416.66666666666669,0.94499999999999995]
[null,null,420.83333333333331,0.94499999999999995]
[null,null,425,0.94499999999999995]
[null,null,429.16666666666669,0.94499999999999995]
[null,null,433.33333333333331,0.94499999999999995]
[null,null,437.5,0.94499999999999995]
[null,null,441.66666666666669,0.94499999999999995]
[null,null,445.83333333333331,0.94499999999999995]
[null,null,450,0.94499999999999995]
[null,null,454.16666666666669,0.94499999999999995]
[null,null,458.33333333333331,0.94499999999999995]
[null,null,462.5,0.94499999999999995]
[null,null,466.66666666666669,0.94499999999999995]
[null,null,470.83333333333331,0.94499999999999995]
[null,null,475,0.94499999999999995]
[null,null,479.16666666666669,0.94499999999999995]
[null,null,483.33333333333331,0.94499999999999995]
[null,null,487.5,0.94499999999999995]
[null,null,491.66666666666669,0.94499999999999995]
[null,null,495.83333333333331,0.94499999999999995]
[null,null,500,0.94499999999999995]

{"sheet":"EnergieProduite_kWc_m²","index":9,"n_rows":66,"n_cols":12,"rows_kept":66,"cut":false,"hidden":true,"merged":[[46,3,46,10],[3,2,3,6]]}
[]
[]
[]
[]
[]
[]
[]
[]
[]
[null,null,"Energie net produite par le générateur photovoltaïque :",null,null,null,null,{"$f":"D18*D19","v":9021},"kWh/an"]
[]
[null,null,"Energie net produite par le générateur photovoltaïque :",null,null,null,null,{"$f":"I18*I19","v":9021},"kWh/an"]
[]
[]
[]
[null,"Données:"]
[]
[null,"Puissance souhaitée :",null,{"$f":"_cmt_peak_used","v":10},"kWc",null,null,null,{"$f":"D18","v":10}]
[null,"Production spécifique:",null,{"$f":"D22*D60*(D37/100)","v":902.1},"kWh/kWc",null,null,null,{"$f":"D19","v":902.1}]
[null,"Surface de capteur:",null,{"$f":"F29*D18","v":76.92307692307692},"m2",null,null,null,{"$f":"I29*I18","v":143.84615384615384}]
[]
[null,"1 kWp = x kWh ?",null,930,null,"Brussels PVGIS output based on Climate-SAF PV Gis S, 36°, 7% system losses:",{"$f":"6200/6","v":1033.3333333333333},"http://re.jrc.ec.europa.eu/pvgis/apps4/pvest.php#"]
[null,"(baed on average PV Gis, SMA Sunny Design, own installation)"]
[null,null,null,null,null,"(factor previosly was: 956)"]
[]
[]
[null,"Type de technologie : ",null,"Rendement de conversion associé à cette technologie"]
[]
[null,null,{"$f":"'choix-multiples'!G125","v":1},{"$f":"VLOOKUP(C29,C31:E33,2,FALSE)","v":15},"%",{"$f":"VLOOKUP(C29,C31:F33,4,FALSE)","v":7.6923076923076916},null,null,{"$f":"VLOOKUP(C29,H31:I33,2,FALSE)","v":14.384615384615385}]
[null,null,null,null,null,null,null,null,null,null,null,"Wc par module"]
[null,"Polycristallin",1,{"$f":"'choix-multiples'!G127","v":15},"%",7.6923076923076916,"m2 par kWc",1,{"$f":"F31*1.87","v":14.384615384615385},13,"%",{"$f":"1000*1.6/F31","v":208.00000000000003}]
[null,"Monocristallin",2,{"$f":"'choix-multiples'!G128","v":16.5},"%",6.25,"m2 par kWc",2,{"$f":"F32*1.87","v":11.6875},16,"%",{"$f":"1000*1.6/F32","v":256}]
[null,"Monocristallin haute performance",3,{"$f":"'choix-multiples'!G129","v":19},"%",5.2631578947368425,"m2 par kWc",3,9.8421052631578956,19,"%",304]
[null,"Par défaut",7,{"$f":"'choix-multiples'!G130","v":13},"%",7.6923076923076916,"m2 par kWc",null,14.384615384615385,13,"%",208.00000000000003]
[null,"Type de montage :",null,"Facteur d'efficacité associé à la structure "]
[]
[null,null,{"$f":"'choix-multiples'!F132","v":2},{"$f":"VLOOKUP(C37,C39:E44,2,FALSE)","v":100},"%"]
[]
[null,"Toiture inclinée",1,{"$f":"'choix-multiples'!G134","v":100},"%"]
[null,"Toiture plate",2,{"$f":"'choix-multiples'!G135","v":100},"%"]
[null,{"$f":"'choix-multiples'!E136","v":"Flat roof back-to-back East-West"},3,{"$f":"'choix-multiples'!G136","v":100},"%"]
[null,"En intégré",4,{"$f":"'choix-multiples'!G137","v":90},"%","Source : ADEME"]
[null,null,null,null,null,"Source : Sunbird"]
[null,"Autre",6,null,"%"]
[]
[null,"Orientation des panneaux : "]
[null,null,null,"Inclinaison (°)"]
[null,null,null,{"$f":"C62","v":0},{"$f":"C64","v":3},{"$f":"C65","v":4},{"$f":"C66","v":5},{"$f":"C67","v":0},{"$f":"C68","v":0},{"$f":"C69","v":0},{"$f":"C70","v":0},9]
[null,null,{"$f":"'choix-multiples'!F139","v":3},{"$f":"VLOOKUP($C$49,$C$51:$M$57,2,FALSE)","v":0.87},{"$f":"VLOOKUP($C$49,$C$51:$M$57,3,FALSE)","v":0.97},{"$f":"VLOOKUP($C$49,$C$51:$M$57,4,FALSE)","v":0.99},{"$f":"VLOOKUP($C$49,$C$51:$M$57,5,FALSE)","v":1},{"$f":"VLOOKUP($C$49,$C$51:$M$57,6,FALSE)","v":1},{"$f":"VLOOKUP($C$49,$C$51:$M$57,7,FALSE)","v":0.98499999999999999},{"$f":"VLOOKUP($C$49,$C$51:$M$57,8,FALSE)","v":0.97},{"$f":"VLOOKUP($C$49,$C$51:$M$57,9,FALSE)","v":0.87},{"$f":"VLOOKUP($C$49,$C$51:$M$57,10,FALSE)","v":0.96}]
[]
[null,"Est",1,0.87,0.88,0.87,0.84,0.82,0.8,0.78,0.69,0.89]
[null,"Sud-est",2,0.87,0.95,0.96,0.96,0.95,0.94,0.92,0.82,0.94]
[null,"Sud",3,0.87,0.97,0.99,1,1,0.98499999999999999,0.97,0.87,0.96]
[null,"Sud-ouest",4,0.87,0.95,0.96,0.96,0.96,0.95,0.93,0.84,0.94]
[null,"Ouest",5,0.87,0.88,0.86,0.84,0.82,0.8,0.78,0.68,0.89]
[null,"Oost west",6,0.92,0.92,0.92,0.92,0.92,0.92,0.92,0.92,0.92]
[]
[null,"Inclinaison : ",null,"Facteur d'efficacité associé à l'orientation et l'inclinaison"]
[]
[null,null,{"$f":"'choix-multiples'!F181+2","v":3},{"$f":"VLOOKUP($C$60,$C$64:$E$66,2,FALSE)","v":0.97},null,{"$f":"(D60*100)-100","v":-3},"%"]
[null,null,null,"rendement fct orientation","facteur % surface PV / surface toiture dispo"]
[null,null,null,null,null,"Source : "]
[]
[null,"15°",3,{"$f":"E49","v":0.97},0.84306108156362225]
[null,"25°",4,{"$f":"F49","v":0.99},0.69428559658180644,"http://www.ef4.be/fr/pv/composants-dun-systeme/orientation-structure.html"]
[null,"35°",5,{"$f":"G49","v":1},0.59510193992726279,"+ extrapolation pour 40° et 45°"]

{"sheet":"Certificats_Verts","index":10,"n_rows":82,"n_cols":19,"rows_kept":82,"cut":false,"hidden":false,"merged":[[38,13,48,22]]}
[]
[]
[null,null,null,null,"Puissance électrique ≤ 5kWc",null,"Toutes tailles",null,null,"Technologie","kWc",null,null,"Paramètres"]
[null,null,"Région Bruxelles Capitale",null,"et personne morale ou pouvoir public",null,null,null,null,{"$f":"'choix-multiples'!G125","v":1},{"$f":"_cmt_peak_used","v":10},null,null,"Coefficient d'émission en CO2 de l'installation PV",{"$f":"'choix-multiples'!G93","v":394.5}]
[null,null,null,null,null,null,null,null,null,null,null,null,null,"Coefficient multiplicateur PV si Pélec > 5kWc",{"$f":"IF(AND(K4<=5,'choix-multiples'!F98=1),1.32,1.32)","v":1.32}]
[null,null,null,"Energie produite par l'installation envisagée (kWh)",{"$f":"IF(AND(K4<=5,'choix-multiples'!F98=1),H6,0)","v":0},null,{"$f":"IF(E6=0,H6,0)","v":8924},{"$f":"_Cmt_Estimat","v":8924},null,null,null,null,null,"Coefficient multiplicateur PV si Pélec < 5kWc",1.65]
[null,null,null,"CV/MWh",{"$f":"O10","v":1.9530000000000001},null,{"$f":"O10","v":1.9530000000000001}]
[null,null,null,"Nombre CV",{"$f":"E6*E7/1000","v":0},null,{"$f":"G6*G7/1000","v":17.428571999999999},{"$f":"SUM(E8:G8)","v":17.428571999999999},null,null,null,null,null,"Plage de puissance",{"$f":"IF(AND(K4>0,K4<=P13),Q13,IF(AND(K4>O14,K4<=P14),Q14,IF(AND(K4>O15,K4<=P15),Q15,IF(AND(K4>O16,K4<=P16),Q16,IF(K4>O17,Q17,\"Error\")))))","v":"]5,36]"}]
[null,null,null,"€ de CV/an pour 10 ans",{"$f":"E8*Tool!$E$91","v":0},null,{"$f":"G8*Tool!E91","v":1481.4286199999999},{"$f":"SUM(E9:G9)","v":1481.4286199999999},null,null,null,null,null,"Coef Multi",{"$f":"_xlfn.IFNA(VLOOKUP(O8,Q12:S17,2,FALSE),0)","v":1.0740000000000001}]
[null,null,null,"€ de CV/an entre 10 et 15 ans",0,null,0,{"$f":"SUM(E10:G10)","v":0},null,null,null,null,null,"Taux octroi",{"$f":"_xlfn.IFNA(VLOOKUP(O8,Q12:S17,3,FALSE),0)","v":1.9530000000000001}]
[null,null,null,"€ de CV/an après 15 ans",0,null,0,0,null,null,null,null,null,null,null,null,"Tableau Coef multi et Taux d'octroi"]
[null,null,null,"€ de CV/an après 20 ans",0,null,0,0,null,null,null,null,null,null,"Min","Max",null,"Coef multi","Taux d'octroi"]
[null,null,null,"€/kWh",{"$f":"E9/(E6+1E-78)","v":0},null,{"$f":"(G9/(G6+1E-78))","v":0.16600499999999999},{"$f":"H9/H6","v":0.16600499999999999},null,null,null,null,null,null,0,5,"<=5",1.1299999999999999,2.0550000000000002]
[null,null,null,null,null,null,null,null,null,null,null,null,null,null,5,36,{"$f":"\"]\"&O14&\",\"&P14&\"]\"","v":"]5,36]"},1.0740000000000001,1.9530000000000001]
[null,null,null,null,"Prix du marché","Achat par Elia",null,null,null,null,null,null,null,null,{"$f":"P14","v":36},100,{"$f":"\"]\"&O15&\",\"&P15&\"]\"","v":"]36,100]"},0.55900000000000005,1.016]
[null,null,null,"Valeur d'un Certificat Vert (€)",{"$f":"Tool!E91","v":85},65,null,null,null,null,null,null,null,null,{"$f":"P15","v":100},250,{"$f":"\"]\"&O16&\",\"&P16&\"]\"","v":"]100,250]"},0.35299999999999998,0.64200000000000002]
[null,null,null,null,null,null,null,null,null,null,null,null,null,null,{"$f":"P16","v":250},null,{"$f":"\"]\"&O17&\",\"&P17&\"]\"","v":"]250,]"},0.31900000000000001,0.57999999999999996]
[null,null,null,null,null,null,null,null,null,null,null,null,null,null,null,null,null,null,"https://www.brugel.brussels/themes/energies-renouvelables-11/mecanisme-des-certificats-verts-35"]
[null,null,null,null,null,null,null,null,null,null,null,null,null,null,"source : https://www.brugel.brussels/publication/document/propositions/2021/fr/PROPOSITION-28-COEFFICIENT-MULTIPLICATEUR-APPLIQUE-PV.pdf "]
[]
[]
[]
[]
[]
[]
[]
[]
[]
[]
[]
[]
[]
[]
[]
[]
[]
[]
[]
[]
[]
[]
[]
[]
[]
[]
[]
[]
[]
[]
[]
[]
[]
[]
[]
[null,null,null,null,"€ de CV / an","€ de CV / an","€ de CV / an","€ de CV / an"]
[null,null,null,null,"Pour 10 ans","Après 10 ans","Après 15 ans","Après 20 ans",null,"Nbr CV","Durée"]
[null,null,{"$f":"'choix-multiples'!F92","v":1},"= Région",{"$f":"VLOOKUP(C57,C61:E64,3,FALSE)","v":1481.4286199999999},{"$f":"VLOOKUP(C57,C61:F64,4,FALSE)","v":0},{"$f":"VLOOKUP($C$57,C61:J64,5,FALSE)","v":0},{"$f":"VLOOKUP($C$57,C61:J64,6,FALSE)","v":0},null,{"$f":"VLOOKUP($C$57,C61:J64,8,FALSE)","v":17.428571999999999},{"$f":"VLOOKUP($C$57,C61:K64,9,FALSE)","v":"CV/an pour 10 ans ------->"}]
[null,null,{"$f":"Tool!E46","v":10},"m²"]
[null,null,{"$f":"Tool!E52","v":8924},"kWh/an"]
[]
[null,null,1,"€ de CV/an",{"$f":"H9","v":1481.4286199999999},{"$f":"H10","v":0},{"$f":"H11","v":0},{"$f":"H12","v":0},null,{"$f":"H8","v":17.428571999999999},"CV/an pour 10 ans ------->"]
[null,null,3,"€ de CV/an",{"$f":"I26","v":0},{"$f":"I27","v":0},{"$f":"I28","v":0},{"$f":"I29","v":0},null,{"$f":"I25","v":0},"CV/an pour 10 et 15 ans ->"]
[null,null,2,"€ de CV/an",{"$f":"H43","v":0},{"$f":"H43","v":0},{"$f":"F63","v":0},{"$f":"H44","v":0},null,{"$f":"E39","v":0},"CV/an pour 20 ans ------->"]
[null,null,4,"€ de CV/an",{"$f":"$H$52","v":0},{"$f":"$H$52","v":0},{"$f":"$H$52","v":0},{"$f":"$H$52","v":0},null,"","Aucun CV -------------------->"]
[]
[]
[]
[]
[null,null,"Coup de soleil électrique à Bruxelles! "]
[]
[null,null,"Le Parlement bruxellois a adopté cet été une nouvelle législation en vue de renforcer le développement des énergies renouvelables à Bruxelles. Les nouvelles mesures s'avèrent particulièrement intéressantes pour les particuliers qui souhaitent acquérir et installer un système photovoltaïque. Les petites installations photovoltaïques bénéficieront désormais d'un nombre accru de certificats verts pour chaque MWh injecté dans le réseau électrique. Ce nombre varie selon la surface installée: les 20 premiers m² recevront 7,27 certificats verts par MWh, les 40 m² suivants obtiendront 5,45 certificats verts par MWh et la surface restante recevra 3,63 certificats verts par MWh. Chaque certificat vert se vend actuellement entre 90 et 100€ sur un marché spécifique. Ce mécanisme de co-financement peut se combiner avec les primes \"photovoltaïques\" octroyées en Région bruxelloise. En cumulant ces incitants financiers, un capteur photovoltaïque peut désormais être amorti au mieux en 2 ans et demi (contre 8 à 10 ans auparavant). Après cet amortissement, le particulier récoltera les bénéfices de son investissement. Et la planète aussi!"]
[null,null,"Pour plus d'information, n'hésitez pas à contacter le Facilitateur \"petits systèmes\" en Région bruxelloise: APERe - Grégory Neubourg: 02/209 04 04"]
[null,null,"L'Arrêté du 19 juillet 2007 (article 16)"]
[]
[null,null,"Situation actuelle: ","Mise à jour : 8/05/2013"]
[null,null,"http://www.bruxellesenvironnement.be/Templates/Professionnels/informer.aspx?id=32624"]
[null,null,"Depuis la dernière adaptation du coefficient,en vigueur depuis le 20 octobre 2012,  les prix des panneaux photovoltaïques ont encore baissé. Par conséquent un nouveau coefficient a été annoncé le 2 mai 2013, lequel est valable pour toutes nouvelles installations à partir du 2 août 2013. Il résulte de ce nouveau coefficient, combiné au principe de base, que 2,4 certificats verts sont délivrés par MWh produit."]
[]
[null,null,"Concrètement: "]
[]
[null,null,"pour les installations certifiées* entre  le 20 octobre 2012 et le premier août 2013 (inclus), vous recevez 4 certificats verts pour chaque MWh d'électricité produite. "]
[null,null,"pour toutes les installations certifiées* à partir du 2 août 2013 , vous recevez 2,4 certificats verts pour chaque MWh d'électricité produite. Les personnes morales et les instances publiques reçoivent également 2,4 certificats verts. "]

{"sheet":"Tableau pour le rapport","index":11,"n_rows":26,"n_cols":7,"rows_kept":26,"cut":false,"hidden":false,"merged":[[25,1,25,3],[17,1,17,5],[18,1,18,3],[19,1,19,5],[20,1,20,3],[24,1,24,5],[16,1,16,3],[1,1,1,9],[6,1,6,5],[7,1,7,2],[8,1,8,2],[9,1,9,2],[10,1,10,2],[11,1,11,2],[12,1,12,2],[13,1,13,5],[14,1,14,3],[15,1,15,3]]}
[]
[null,"PANNEAUX PHOTOVOLTAÏQUES"]
[]
[null,"Faire un copier-coller du tableau provenant du PVcalc"]
[]
[]
[null,"Caractéristiques de l'installation "]
[null,"Surface de panneaux",null,null,{"$f":"Tool!E51","v":47.761194029850749},"m²"]
[null,"Nombre de panneaux",null,null,{"$f":"E8/1.6","v":29.850746268656717},"panneaux"]
[null,"Orientation ",null,null,"Sud",null,"A remplir"]
[null,"Inclinaison",null,null,15,"°","A remplir"]
[null,"Puissance DC",null,null,{"$f":"_cmt_peak_used","v":10},"kW"]
[null,"Puissance AC",null,null,null,"kW","A remplir"]
[null,"Énergie produite"]
[null,"Estimation de l'énergie utile produite",null,null,{"$f":"_Cmt_Estimat","v":8924},"kWh/an"]
[null,"Partie autoconsommée",null,null,{"$f":"E15*E17","v":3123.3999999999996},"KWh/an"]
[null,"Rapport de l'électricité autoconsommée à la consommation annuelle",null,null,{"$f":"Tool!E70","v":0.35}]
[null,"Coûts"]
[null,"Estimation du coût brut",null,null,{"$f":"Tool!E112","v":15245.98},"€"]
[null,"Gains"]
[null,"Gain annuel du projet photovoltaïque",null,null,{"$f":"Tool!E120","v":"2047,1 - 2509,3"},"€/an"]
[null,null,"Gain sur la facture d'achat d'électricité",null,{"$f":"Tool!E75","v":"674,7 - 1136,9"},"€/an"]
[null,null,"Gain du la vente d'électricité ",null,{"$f":"Tool!E77","v":232.02400000000003},"€/an"]
[null,null,"Gain issu de la vente de CV",null,{"$f":"Tool!E93","v":1365.3720000000001},"€/an"]
[null,"Temps de retour"]
[null,"Temps de retour",null,null,{"$f":"Tool!E122","v":"7,4 - 6,1"},"ans"]

{"sheet":"Déductions_fiscales","index":12,"n_rows":82,"n_cols":22,"rows_kept":82,"cut":false,"hidden":true,"merged":[[2,7,6,12],[2,16,6,20]]}
[]
[]
[null,null,"Déductions Totales :",{"$f":"(IF(K21=0,D22,K22))*D7","v":0},"€",null,null,"\"Il est possible de répartir ses travaux sur plusieurs années, au quel cas la réduction d'impôt est accordée pour chaque année fiscale.\" http://mineco.fgov.be/",null,null,null,null,null,null,null,null,"Pour ce qui concerne les habitations occupées depuis au moins 5 ans avant le début des travaux, et si le montant de la réduction d’impôt de 40 % excède les plafonds de 2 830 ou 3 680 euros pour l’année 2011, cet excédent peut être reporté sur les 3 périodes imposables suivantes sans dépasser, par période imposable, le montant limite précité, y compris les nouvelles dépenses de la période."]
[null,null,"Coût de l'installation déductions faites :",{"$f":"IF(K21=0,D21,K21)","v":15245.98},"€"]
[]
[null,null,null,"Code"]
[null,null,{"$f":"H12","v":2},1]
[]
[]
[]
[null,null,"Dans le cas d'une année fiscale considérée :",null,null,null,null,"Dans le cas de deux années fiscales considérées",null,null,null,null,"Code"]
[null,null,null,null,null,null,null,{"$f":"'choix-multiples'!J106","v":2},null,null,null,null,{"$f":"IF(H12='choix-multiples'!J109,2,(IF(Déductions_fiscales!H12='choix-multiples'!J108,0,1)))","v":0},null,null,"Dans le cas d'une habitation occupée depuis au moins 5 ans"]
[null,null,"Coût financier :",{"$f":"IF(Tool!E104<1,Tool!F104,Tool!E104)","v":15245.98},"€ TVAC",null,null,null,null,null,{"$f":"IF(D17>D16,D13,0)","v":0},"€ TVAC",null,null,null,null,{"$f":"'choix-multiples'!F98","v":2}]
[null,null,null,null,null,null,null,null,null,null,null,null,null,null,null,null,"Coût financier :",null,null,null,{"$f":"IF(Tool!E104<1,Tool!F104,Tool!E104)","v":15245.98},"€ TVAC"]
[null,null,"Pourcentage de déduction :",{"$f":"IF(Q13=1,Coût_Net!L36*100,0)","v":0},"%",null,null,null,null,null,{"$f":"Coût_Net!L36*100","v":40},"%"]
[null,null,"Plafond : ",{"$f":"Coût_Net!M36","v":3680000},"€",null,null,"Plafond en 2 années :",null,null,{"$f":"(Coût_Net!M36)*M12","v":0},"€ en 2 ans",null,null,null,null,"Pourcentage de déduction :",null,null,null,{"$f":"IF(Q13=1,Coût_Net!L36,0)","v":0},"%"]
[null,null,"Déduction possible :",{"$f":"D13*D15/100","v":0},"€",null,null,"Déduction possible :",null,null,{"$f":"K13*K15/100","v":0},null,null,null,null,null,"Plafond : ",null,null,null,{"$f":"Coût_Net!M36","v":3680000},"€"]
[null,null,"Déduction acquise :",{"$f":"IF(D17<D16,D17,D16)","v":0},"€",null,null,"Déductions acquises en 2 années :",null,null,{"$f":"IF(K17<K16,K17,K16)","v":0},"€ en 2 ans",null,null,null,null,"Déduction possible :",null,null,null,{"$f":"U14*U16","v":0},"€"]
[null,null,null,null,null,null,null,null,null,null,null,null,null,null,null,null,"Déduction maximale :",null,null,null,{"$f":"U17*4","v":14720000},"€"]
[null,null,null,null,null,null,null,null,null,null,null,null,null,null,null,null,"Déduction acquise :",null,null,null,{"$f":"MIN(U18,U19)","v":0},"€"]
[null,null,"Coûts restants à payer :",{"$f":"(D13-D18)*D7","v":15245.98},"€",null,null,"Coûts restants à payer :",null,null,{"$f":"(K13-K18)*D7","v":0},"€"]
[null,null,"Déduction réellement acquise :",{"$f":"D13-D21","v":0},"€",null,null,"Déduction réellement acquise :",null,null,{"$f":"K13-K21","v":0},"€ en 2 ans",null,null,null,null,"Coûts restants à payer :",null,null,null,{"$f":"(U14-U20)*D7","v":15245.98},"€"]
[null,null,null,null,null,null,null,null,null,null,null,null,null,null,null,null,"Déduction réellement acquise :",null,null,null,{"$f":"U14-U22","v":0},"€"]
[]
[]
[]
[]
[]
[]
[]
[]
[]
[]
[]
[]
[]
[]
[]
[]
[]
[]
[]
[]
[]
[]
[]
[]
[]
[]
[]
[]
[]
[]
[]
[]
[]
[]
[]
[]
[]
[]
[]
[]
[]
[]
[]
[]
[]
[]
[]
[]
[]
[]
[]
[null,null,"Situation actuelle: ","Mise à jour : 8/05/2013"]
[null,null,"http://www.bruxellesenvironnement.be/Templates/Professionnels/informer.aspx?id=32624"]
[null,null,"Depuis la dernière adaptation du coefficient,en vigueur depuis le 20 octobre 2012,  les prix des panneaux photovoltaïques ont encore baissé. Par conséquent un nouveau coefficient a été annoncé le 2 mai 2013, lequel est valable pour toutes nouvelles installations à partir du 2 août 2013. Il résulte de ce nouveau coefficient, combiné au principe de base, que 2,4 certificats verts sont délivrés par MWh produit."]
[]
[null,null,"Concrètement: "]
[]
[null,null,"pour les installations certifiées* entre  le 20 octobre 2012 et le premier août 2013 (inclus), vous recevez 4 certificats verts pour chaque MWh d'électricité produite. "]
[null,null,"pour toutes les installations certifiées* à partir du 2 août 2013 , vous recevez 2,4 certificats verts pour chaque MWh d'électricité produite. Les personnes morales et les instances publiques reçoivent également 2,4 certificats verts. "]

{"sheet":"Messages","index":13,"n_rows":0,"n_cols":0,"rows_kept":0,"cut":false,"hidden":true,"merged":[]}

{"sheet":"Révision de versions","index":14,"n_rows":44,"n_cols":2,"rows_kept":44,"cut":false,"hidden":false,"merged":[]}
[]
["Version du ","Les onglets en rouges sont ceux ajoutés"]
["2018-10-04","Fonctionnement général et réparations des bugs (Comments, translations, etc)"]
[null,"Systèmes tracker et posés au sol retirés"]
[null,"Panneaux amorphes retirés"]
[null,"Chiffres de consommations estimées modifiées : (kWh/m²/an) selon le secteur d'activité"]
[null,"On ne peut plus que choisir 3 possibilités d'inclinaison : 15° ; 25° ou 35°"]
[null,"Le calcul de la surface de PV est maintenant fonction des inclinaisons encodées (la distance entre rangées pour éviter l'ombre le 21/12 varie selon inclinaison des panneaux)"]
[null,"Modification des facteurs de production selon inclinaison et orientation"]
[null,"Pour la configuration est-ouest, le facteur de production est fixe"]
[]
[null,"3 choix possibles : "]
[null,"1. on encode la puissance désirée : le logiciel prévient toujours si la puissance encodée est supérieure au maximum installable selon la surface encodée"]
[null,"2. Le logiciel calcul la puissance maximale installable selon orientation/inclinaison et surface de toiture encodée"]
[null,"3. Orientation est-ouest : Cocher la case \"oui\" dans le tableau séparée pour la configuration est-ouest => maximum de puissance installée"]
[]
[null,"Les calculs de rentabilités se font sur base de :"]
[null,"Si aucune puissance encodée : Max de puissance installable avec configuration autre que est-ouest (choix 2)"]
[null,"Si puissance encodée : Calcul sur base de cette puissance (choix 1)"]
[null,"Si case \"oui\" tableau est-ouest cochée, alors le calcul se fait avec la puissance est-ouest (choix 3)"]
[]
[null,"Désormais le calcul du nombre de CV occtroyé varie si la puissance est < ou > à 5kWc"]
[null,"L'estimation du prix de l'installation à été revue pour être représentatif de la tendance du marché actuel. Le prix varie selon la puissance encodée (max 500kWc)"]
[null,"Ajout d'un commentaire pour les primes : aide pour les investissements environnementaux pour les entreprises"]
[]
[]
[]
["Version du 28/02/2019","Ajout d'une image pour l'orientation est-ouest et d'un lien d'informations supplémentaires"]
[null,"ajout d'un texte d'explication pour la compensation (voir encadré sous \"taux d'autoconsommation\")"]
[null,"modification des unités lors du choix du secteur d'activités (tertiaire, maisons, immeubles, etc), cellule H21"]
[]
["Version 05/07/2019","Suppression du principe de compensation pour les installations de < 5kWc"]
[null,"Modification du texte explicatif disant qu'on ne prend pas en compte la compensation "]
[]
["Version 25/10/2021","modification Coefficient Multi pour les CV"]
[null,"Révision formule"]
[null,"mise en commentaire de certains macros jugée inutiles"]
[null,"changement formule pour les doonées utilisées (Puissance, surface capteur et énergie produite) pour rendre le tool plus robuste"]
[null,"Ajout montage dos à dos dans les types de montage pour rendre l'encodage plus simple"]
[null,"changement formule dans la feuille \"calcul surface\" pour rendre le calcul faisable sans maccro (jugé incomplète --> mise en commentaire des maccro plus utilisé)"]
["Version 11/05/2022","modification de la formule pour le calcul des certificats verts : suppression de la formule reprennant les économies de CO2 réelles et modifié par la formule basique de multiplication du taux d'occtroi => CV = Energie annuelle/1000*taux d'occtroi"]
[null,"suppresion du bug lié à la protection de la cellule lors du choix de l'inclinaison des panneaux via la liste déroulante"]
[null,"correction de quelques erreurs d'orthographe dans les textes"]
["Version 04/10/2022","simplification des cases à remplir"]